{"text_format":"1","workbook":"xlsx","n_sheets":27,"sheets":["Bedienungshinweise","Stammdaten","Erfüllungsoptionen","Zusatzangaben","Auswahl","Validierung","Mapping","Kalkulation","WP","SOL","HLZ","Deckblatt","BGA","BÖL","ERF","DCH","AWD","KEL","HÜL","SFP","BFLGA","NTZ","BHKW","PV","WRG","SEN","ABW"],"not_rendered":{"charts":0,"images":1,"macros":1,"external_links":0,"defined_names":423,"comments":2,"pivot_tables":0},"unopened":[],"bounds":{"document_bytes":16777216,"sheet_cells":100000,"rows_first":2000,"rows_last":500,"rows_between":2000,"halvings":0,"cell_chars":16384,"cell_head_chars":4096},"cells_cut":0,"cells_raw":0,"read":"whole","date_system":"1900"}

{"sheet":"Bedienungshinweise","index":0,"n_rows":68,"n_cols":2,"rows_kept":68,"cut":false,"hidden":false,"merged":[[1,1,1,10]]}
[]
[null,"Erneuerbare-Wärme-Gesetz (EWärmeG) Baden-Württemberg"]
[]
["  Bedienungshinweise zum Excel-Tool"]
[]
["Hinweise Überarbeitung 2024"]
[" • Das Exceltool wurde 2024 vom GIH e.V. Baden-Württemberg aktualisiert, um die Änderungen im EWärmeG 2015 durch das KlimaG BW "]
["    vom 7. Februar 2023 zu berücksichtigen. Das ursprüngliche Tool wurde vom Umweltministerium BW, der KEA-BW"]
["    und einem IT-Dienstleister aus Karlsruhe entwickelt."]
[" • Eine Testphase hat nicht stattgefunden, Fehler können gerne an it@gih-bw.de mit dem Betreff \"EWärmeG Excel Tool: Fehlerbeschreibung\" geschickt werden"]
[" • Kontrollieren Sie die ausgedruckten Nachweisformulare nochmals und füllen Sie nicht eingetragene Felder händisch aus."]
[" • Die verwendeten Nachweisformulare sind nicht barrierefrei, aber auf Stand von 2024. Barrierefreie Formulare stellt"]
["    das Ministeriums für Umwelt, Klima und Energiewirtschaft Baden-Württemberg zur Verfügung:"]
["    (https://um.baden-wuerttemberg.de/de/energie/energieeffizienz-von-gebaeuden/erneuerbare-waerme-gesetz-2015/nachweisformulare)"]
[" • Die Formulare für die Befreiung von der Nachweispflicht und für Gebäudekomplexe sind nicht hinterlegt und können mit dem Tool nicht erstellt werden."]
[" • Sie sind in der Energieberatung aktiv und möchten sich in einem Verein engagieren?"]
["    Kommen Sie gerne zu uns und gestalten die Zukunft der Energieberatung mit!"]
[]
["   Systemhinweise"]
[]
[" •  Das Excel-Tool wurde für Excel 2010 entwickelt. Damit es für Sie funktioniert, benötigen Sie also Excel 2010 oder neuer."]
[" •  Als ersten Schritt müssen Sie die Makros aktivieren (Bestätigung in gelber Zeile erforderlich)."]
[" •  Bitte beachten Sie, dass es sich bei dem Beratungs-Tool um eine normale EXCEL-Applikation handelt. "]
[" •  Alle Restriktionen und Bedienungshinweise für Excel gelten hier gleichermaßen. Die Anwendung setzt also Erfahrung im Umgang mit Excel voraus."]
[]
["   Allgemeine Hinweise zu Verwendung des Tools"]
[]
[" •  Im Excel-Tool werden die häufigen Varianten abgebildet. Seltene Lösungen können nicht abgebildet werden (z. B. bei Anschluss an ein Wärmenetz -"]
["     wenn die vom Netz verteilte Wärme nur teilweise den Anforderungen des EWärmeG entspricht)."]
[" •  Das Tool ist nicht in der Lage, alle möglichen inhaltlich nicht kompatiblen Lösungen zu überprüfen. Sie müssen also eigenverantworlich prüfen,"]
["     ob die Erfüllungsmaßnahmen logisch zusammenpassen."]
[" •  Die Schieberegler sind für eine Abschätzung gedacht. Wenn die Nachweisformulare erstellt werden sollen, müssen Sie die exakten Werte in die"]
["     vorgesehenen Felder eintragen. "]
[" •  Wird bei den Erfüllungsoptionen eine Zelle durchgestrichen angezeigt, bedeutet dies, dass diese Eingabe bei der Berechnung des Erfüllungsgrades "]
["     nicht berücksichtigt wird. Beispielsweise hat die Eingabe des Solarertrages eine höhere Priorität als die Kollektorfläche."]
[]
["   Vorgehen bei der Bearbeitung"]
[]
[" •  Wenn Sie mit der Bearbeitung eines Projektes beginnen, verwenden Sie immer die (leere) Original-Vorlage. Wenn Sie ein Projekt bearbeitet haben, speichern"]
["     Sie es mit dem Projektnamen ab, um es zu einem späteren Zeitpunkt weiter bearbeiten zu können oder um Nachweisformulare erzeugen zu können."]
[" •  In allen grau unterlegten Feldern der jeweiligen Zeile sind Eingaben erforderlich, wenn diese Option gewählt wird."]
[" •  Sind Zellen an der rechten oberen Ecke mit einem roten Dreieck versehen, ist ein Kommentar mit wichtigen Hinweisen vorhanden. Er wird sichtbar, wenn"]
["     Sie mit der Maus die Zelle berühren."]
[" •  In den Blättern \"Erfüllungsoptionen\" und \"Zusatzangaben\" finden Sie rote Ecken. Wenn Sie diese mit der Maus berühren, werden "]
["     hilfreiche Erläuterungen sichtbar."]
[" •  Beim Anklicken der Eingabefelder erscheint ein Infotext zu der erwarteten Eingabe (sofern nicht offensichtlich, wie beispielsweise bei den Stammdaten)."]
[" •  Mit dem Schieberegler sind teilweise nur grobe Schritte möglich. Bitte auch hier detaillierte Angaben in die vorgesehenen Felder einfügen."]
[" •  Im ersten Schritt sollte das Blatt Stammdaten so vollständig wie möglich ausgefüllt und die Datei abgespeichert werden. Sinnvollerweise mit Adresse"]
["     und Versionsnummer im Dateinamen."]
[" •  Wenn Sie auf dem Blatt \"Erfüllungsoptionen\" die richtige Maßnahmenkombination gefunden haben, können Sie auf dem Folgeblatt \"Zusatzangaben\" "]
["     für die Erstellung der Nachweisformulare fehlende Informationen ergänzen und diese dann drucken."]
[" •  Wenn Sie die Nachweisformulare ausgedruckt haben, überprüfen Sie bitte alle Angaben und korrigieren Sie fehlerhafte Angaben. Bitte ergänzen Sie "]
["     fehlende Daten, die nicht automatisch vom Tool übertragen werden."]
[" •  Aufgrund von Rundungsvorgängen beim Übertragen von Daten in die Nachweisformulare sind Abweichungen zu den im Tool eingegebenen "]
["     Daten möglich. Die ermittelten Erfüllungsgrade werden von den im Tool angelegten Rechenoperationen jedoch korrekt ermittelt und übertragen."]
[]
["   Technische Hinweise"]
[]
[" •  Vereinzelt kann es vorkommen, dass mit dem Schieberegler nicht genau 100 % erreichbar sind. Dann bitte den exakten Wert von Hand eingeben."]
[" •  Wenn bei einzelnen Optionen eine Auswahl zu treffen ist (z.B. Energieträger, mit dem die Wärmepumpe betrieben wird), funktioniert der Schieberegler"]
["     erst, wenn eine Auswahl getroffen wurde."]
[" •  Bei der Einzelraumfeuerung muss bei Bedarf ein Wirkungsgrad angegeben werden, da das Programm sonst keinen Erfüllungsgrad ermittelt."]
[" •  Bei der elektrisch betriebenen Wärmepumpe weist die im Gesetz vorgegebene Formel bei der Mindestjahresarbeitszahl von 2,50 nur einen Anteil "]
["     14,28 % erneuerbarer Wärme aus. Die Anforderungen des Gesetzes sind dennoch vollständig erfüllt, wenn die Wärmepumpe den gesamten jährlichen"]
["     Wärmeenergiebedarf deckt."]
[" •  Bei der mit Brennstoffen betriebenen Wärmepumpe weist die im Gesetz vorgegebene Formel bei der Mindestheizzahl von 1,20 bereits 16,6 % Anteil"]
["     erneuerbarer Energie aus, der Schieberegler ist demnach bereits kurz vor dem rechten Rand bereits bei 100 %. "]
["     Es gilt die im Gesetz vorgegebene Mindestheizzahl von 1,20."]

{"sheet":"Stammdaten","index":1,"n_rows":42,"n_cols":6,"rows_kept":42,"cut":false,"hidden":false,"merged":[[20,2,20,5],[21,2,21,5],[19,3,19,4],[41,2,41,4],[35,2,35,4],[37,2,37,4],[39,2,39,4],[23,2,23,4],[25,2,25,4],[27,2,27,4],[31,2,31,4],[33,2,33,4],[29,2,29,4],[14,2,14,5],[15,2,15,5],[16,2,16,5],[10,2,10,5],[11,2,11,5],[0,1,0,5],[1,1,1,5],[5,2,5,5],[6,2,6,5],[9,2,9,5],[2,1,2,5]]}
[null,"Erneuerbare-Wärme-Gesetz (EWärmeG)  Baden-Württemberg"]
[null,"Das Programm erlaubt es, für jedes Gebäude zu prüfen, welche Möglichkeiten zur Erfüllung des Erneuerbare-Wärme-Gesetzes es gibt und erstellt nach Durchführung der Maßnahme das Nachweisformular zur Vorlage bei der unteren Baurechtsbehörde. Bitte geben Sie zunächst Grunddaten ein, die erforderlich sind, um den Erfüllungsgrad zu ermitteln und das Nachweisformular auszufüllen."]
[null,"Der vollständige Gesetzestext kann hier heruntergeladen werden."]
[]
[null,"Eigentümer"]
[null,"Vorname:"]
[null,"Nachname:"]
[]
[null,"Adresse"]
[null,"Strasse"]
[null,"PLZ"]
[null,"Ort"]
[]
[null,"Adresse des Gebäudes"]
[null,"Strasse"]
[null,"PLZ"]
[null,"Ort"]
[]
[null,"Sachkundiger"]
[null,"Vorname und Nachname"]
[null,"Firma"]
[null,"Qualifikation des Sachkundigen"]
[]
[null,"Gebäudeart","Bitte wählen …"]
[]
[null,"Anzahl der Wohnungen"]
[]
[null,{"$f":"IF(GebäudeArt=GebäudeArtNichtwohngebäude,\"Nettogrundfläche\",IF(GebäudeArt=GebäudeArtWohngebäude,\"Wohnfläche\",\"Fläche\"))","v":"Fläche"},null,null,null,{"$f":"GetValidateWohnflächeErrorMessage(GebäudeArt,AnzahlWohnungen,Wohnfläche)","v":""}]
[]
[null,"Heizlast"]
[]
[null,"Jährlicher Wärmeenergiebedarf"]
[]
[null,"Wohngebäude Art:","Bitte wählen …"]
[]
[null,"Gebäudenutzfläche AN"]
[]
[null,"Datum Bauantrag/Bauanzeige",null,null,null,{"$f":"IF(ISBLANK(g_bauantrag),\"\",IF(ISNUMBER(g_bauantrag),\"\",ErrorMessageFehlerhaftesDatum))","v":""}]
[]
[null,"Anzahl der Vollgeschosse"]
[]
[null,"Datum der Inbetriebnahme der Anlage",null,null,null,{"$f":"IF(AND(ISNUMBER(DatumEinbauHeizungsanlge),DatumEinbauHeizungsanlge>0),IF(DatumEinbauHeizungsanlge<DATE(2015,7,1),ErrorMessageHeizungstauschVorStichtag,\"\"),ErrorMessageZusatzangabenBitteErgänzen)","v":"Bitte Angaben ergänzen."}]

{"sheet":"Erfüllungsoptionen","index":2,"n_rows":48,"n_cols":16,"rows_kept":48,"cut":false,"hidden":false,"merged":[[37,10,37,12],[33,10,33,12],[25,10,25,12],[29,10,29,12],[31,10,31,12],[35,10,35,12],[0,1,0,13],[1,1,1,13],[3,1,3,4],[3,5,3,12],[5,2,5,4],[7,10,7,12],[13,10,13,12],[15,10,15,12],[23,2,23,4],[27,10,27,12],[11,2,11,4],[17,10,17,12],[35,2,35,4],[33,2,33,4],[9,10,9,12],[19,10,19,12],[23,10,23,12]]}
[null,{"$f":"IF(OR(GebäudeArt=GebäudeArtNichtwohngebäude,GebäudeArt=GebäudeArtWohngebäude),GebäudeArt,\"\")","v":""}]
[null,"Das Erneuerbare- Wärme- Gesetz verlangt, dass nach Austausch oder erstmaligem Einbau einer zentralen Heizanlage 15 Prozent des jährlichen Wärmeenergiebedarfs aus erneuerbarer Energie gedeckt oder Ersatzmaßnahmen ergriffen werden."]
[]
[null,"Erfüllungsoptionen",null,null,null,"Erfüllungsgrad"]
[]
[null,"Solarthermie","Bitte wählen …",null,null,null,null,null,null,null,null,null,null,{"$f":"ErfüllungsgradSolarthermie","v":0},null,{"$f":"FehlermeldungenSolarertrag","v":""}]
[]
[null,"Holz-Zentralheizung","Bitte wählen …",null,null,null,null,null,null,null,null,null,null,{"$f":"ErfüllungsgradHolzKessel","v":0},null,{"$f":"FehlermeldungHolzKessel","v":""}]
[]
[null,"Wärmepumpe","Bitte wählen …",null,null,null,null,null,null,null,null,null,null,{"$f":"ErfüllungsgradWärmepumpe","v":0},null,{"$f":"FehlermeldungWärmepumpe","v":""}]
[]
[null,"Thermische Leistung der Wärmepumpe"]
[]
[null,"Biomethan (mit Brennwerttechnik)",null,null,null,null,null,null,null,null,null,null,null,{"$f":"ErfüllungsgradBioMethan","v":0},null,{"$f":"FehlermeldungBiomethan","v":""}]
[]
[null,"Bioöl (mit Brennwerttechnik)",null,null,null,null,null,null,null,null,null,null,null,{"$f":"ErfüllungsgradBioöl","v":0},null,{"$f":"FehlermeldungBioöl","v":""}]
[]
[null,"Biogenes Flüssiggas",null,null,null,null,null,null,null,null,null,null,null,{"$f":"ErfüllungsgradBiogenesFG","v":0}]
[]
[null,"Einzelraumfeuerung","Bitte wählen …",null,"Bitte wählen …",null,null,null,null,null,null,null,null,{"$f":"ErfüllungsgradEinzelraumbefeuerung","v":0},null,{"$f":"FehlermeldungEinzelraumbefeuerung","v":""}]
[]
[null,"Dachdämmung",null,null,null,null,null,null,null,null,null,120,null,{"$f":"ErfüllungsgradDachdämmung","v":0},null,{"$f":"FehlermeldungDachdämmung","v":""}]
[]
[null,"Außenwanddämmung",null,null,null,null,null,null,null,null,null,null,null,{"$f":"ErfüllungsgradAußenwandDämmung","v":0},null,{"$f":"FehlermeldungAußenwandDämmung","v":""}]
[]
[null,"Kellerdeckendämmung",null,null,null,null,null,null,null,null,"Bitte wählen …",null,null,{"$f":"ErfüllungsgradKellerdämmung","v":0},null,{"$f":"FehlermeldungKellerdämmung","v":""}]
[]
[null,"Senkung des Wärmeenergiebedarfs",null,null,null,null,null,null,null,null,null,null,null,{"$f":"ErfüllungsgradSenkungWärmeenergiebedarf","v":0}]
[]
[null,"Gesamtnachweis Gebäudehülle",null,null,null,null,null,null,null,null,null,null,null,{"$f":"ErfüllungsgradGebäudehülle","v":0},null,{"$f":"FehlermeldungGebäudehülle","v":""}]
[]
[null,"Sanierungsfahrplan",null,null,null,null,null,null,null,null,"Bitte wählen …",null,null,{"$f":"ErfüllungsgradSanierungsfahrplan","v":0},null,{"$f":"FehlermeldungSanierungsfahrplan","v":""}]
[]
[null,"Kraft-Wärme-Kopplung",null,null,null,null,null,null,null,null,null,null,null,{"$f":"ErfüllungsgradKWK","v":0},null,{"$f":"FehlermeldungKWK","v":""}]
[]
[null,"Anschluss an Wärmenetz",null,null,null,null,null,null,null,null,null,null,null,{"$f":"ErfüllungsgradWärmenetz","v":0}]
[]
[null,"Photovoltaik",null,null,null,null,null,null,null,null,null,null,null,{"$f":"ErfüllungsgradPhotovoltaik","v":0}]
[]
[null,"Hocheffiziente Wärmerückgewinnung",null,null,null,null,null,null,null,null,0,null,null,{"$f":"ErfüllungsgradRückgewonneWärmemenge","v":0},null,{"$f":"FehlermeldungHocheffizienteWärmerückgewinnung","v":""}]
[]
[null,"Nutzung von Abwärme",null,null,null,null,null,null,null,null,0,null,null,{"$f":"ErfüllungsgradNutzungAbwärme","v":0},null,{"$f":"MeldungNutzungAbwärme","v":""}]
[]
[null,null,null,null,null,null,null,null,null,null,null,null,null,{"$f":"MIN(SUM(N5:N43),1)","v":0}]
[]
[]
[]
[null,null,null,null,null," "]

{"sheet":"Zusatzangaben","index":3,"n_rows":40,"n_cols":16,"rows_kept":40,"cut":false,"hidden":false,"merged":[[39,3,39,13],[1,1,1,13],[0,1,0,13],[27,3,27,13],[33,3,33,13],[35,3,35,13],[3,2,3,13],[5,3,5,13],[17,3,17,13],[25,3,25,13]]}
[null,{"$f":"CONCATENATE(\"Zusatzangaben \",IF(OR(GebäudeArt=GebäudeArtNichtwohngebäude,GebäudeArt=GebäudeArtWohngebäude),GebäudeArt,\"\"))","v":"Zusatzangaben "}]
[null,"Um die Nachweisformulare fertigzustellen, fehlen noch weitere Angaben, die auf dieser Seite ergänzt werden können. Am Ende können dann die fertig ausgefüllten Nachweisformulare gedruckt werden. Die Nachweise für die tatsächlich umgesetzte Erfüllungsvariante sind der unteren Baurechtsbehörde vorzulegen."]
[]
[null,"Erfüllungsoptionen","Zusatzangaben für Nachweisformulare"]
[]
[null,"Solarthermie",null,"Keine weiteren Angaben notwendig",null,null,null,null,null,null,null,null,null,null,null,{"$f":"IF(ErfüllungsgradSolarthermie>0,ErrorMessageZusatzangabenAllesVollständig,\"\")","v":""}]
[]
[null,"Holz-Zentralheizung",null,null,null,null,null,null,null,null,null,null,null,null,null,{"$f":"MeldungZusatzangabenHolzkessel","v":""}]
[]
[null,"Wärmepumpe",null,"Bitte wählen …",null,null,null,"Bitte wählen …",null,null,null,null,null,null,null,{"$f":"MeldungZusatzangabenWärmepumpe","v":""}]
[]
[null,"Biomethan",null,"Bitte wählen …",null,null,null,null,null,null,null,null,null,null,null,{"$f":"MeldungZusatzangabenBioMethan","v":""}]
[]
[null,"Bioöl",null,"Bitte wählen …",null,null,null,null,null,null,null,null,null,null,null,{"$f":"MeldungZusatzangabenBioöl","v":""}]
[]
[null,"Biogenes Flüssiggas",null,"Bitte wählen …",null,null,null,null,null,null,null,null,null,null,null,{"$f":"MeldungZusatzangabenBiogenesFG","v":""}]
[]
[null,"Einzelraumfeuerung",null,"Keine weiteren Angaben notwendig",null,null,null,null,null,null,null,null,null,null,null,{"$f":"IF(ErfüllungsgradEinzelraumbefeuerung>0,ErrorMessageZusatzangabenAllesVollständig,\"\")","v":""}]
[]
[null,"Dachdämmung",null,null,1,null,null,null,null,null,null,null,null,null,null,{"$f":"MeldungZusatzangabenDachdämmung","v":""}]
[]
[null,"Außenwanddämmung",null,null,null,null,null,null,null,null,null,null,null,null,null,{"$f":"MeldungZusatzangabenAussenwanddämmung","v":""}]
[]
[null,"Kellerdeckendämmung",null,null,0.1,null,null,null,null,null,null,null,null,null,null,{"$f":"MeldungZusatzangabenKellerdeckenDämmung","v":""}]
[]
[null,"Senkung des Wärmeenergiebedarfs",null,"Keine weiteren Angaben notwendig",null,null,null,null,null,null,null,null,null,null,null,{"$f":"IF(ErfüllungsgradSenkungWärmeenergiebedarf>0,ErrorMessageZusatzangabenAllesVollständig,\"\")","v":""}]
[]
[null,"Gesamtnachweis Gebäudehülle",null,"Keine weiteren Angaben notwendig",null,null,null,null,null,null,null,null,null,null,null,{"$f":"IF(ErfüllungsgradGebäudehülle>0,ErrorMessageZusatzangabenAllesVollständig,\"\")","v":""}]
[]
[null,"Sanierungsfahrplan",null,null,null,null,null,null,null,null,null,null,null,null,null,{"$f":"MeldungZusatzangabenSanierungsfahrplan","v":""}]
[]
[null,"Kraft-Wärme-Kopplung",null,null,null,null,null,null,null,null,null,null,null,null,null,{"$f":"MeldungZusatzangabenKWKAnlage","v":""}]
[]
[null,"Anschluss ans Wärmenetz",null,"Keine weiteren Angaben notwendig",null,null,null,null,null,null,null,null,null,null,null,{"$f":"IF(ErfüllungsgradWärmenetz>0,ErrorMessageZusatzangabenAllesVollständig,\"\")","v":""}]
[]
[null,"Photovoltaik",null,"Keine weiteren Angaben notwendig",null,null,null,null,null,null,null,null,null,null,null,{"$f":"IF(ErfüllungsgradWärmenetz>0,ErrorMessageZusatzangabenAllesVollständig,\"\")","v":""}]
[]
[null,"Hocheffiziente Wärmerückgewinnung",null,null,null,null,null,null,null,null,null,null,null,null,null,{"$f":"MeldungZusatzangabenHocheffizienteWärmerückgewinnung","v":""}]
[]
[null,"Nutzung von Abwärme",null,"Keine weiteren Angaben notwendig",null,null,null,null,null,null,null,null,null,null,null,{"$f":"MeldungZusatzangabenHocheffizienteWärmerückgewinnung","v":""}]

{"sheet":"Auswahl","index":4,"n_rows":5,"n_cols":15,"rows_kept":5,"cut":false,"hidden":true,"merged":[]}
["Bitte wählen …","Bitte wählen …","Bitte wählen …","Bitte wählen …","Bitte wählen …","Bitte wählen …","Bitte wählen …","Bitte wählen …","Bitte wählen …","Bitte wählen …","Bitte wählen …","Bitte wählen …","Bitte wählen …","Bitte wählen …","Bitte wählen …"]
["Vakuumröhren","Ja","Elektrisch betrieben","Kamin-, Heiz-Einsatz","> 30% beheizt","Leistung < 20 kW","Wohngebäude","Freistehend","Vor 30.6.2015 ","Scheitholz","Erdreich","Ausgetauscht","Berechtigt nach Bundes- oder Landesrecht zur Ausstellung von Energieausweisen","Sanierungsfahrplan","Sanierungsfahrplan"]
["Flachkollektoren","Nein","Brennstoff betrieben","Grundofen","> 25% beheizt","Leistung > 20 kW","Nichtwohngebäude","Einseitig angebaut","Nach 30.6.2015 ","Holzhackschnitzel","Luft","Nachträglich eingebaut","Person, die für zulassungspflichtiges Bau-, Ausbau- oder anlagentechnisches Gewerbe oder für das Schornsteinfegerwesen die Vorraussetzungen zur Eintragung in die Handwerksrolle erfüllt",null,"Vor-Ort-Beratungsbericht (Bafa)"]
[null,null,null,"Pelletofen","Wasserwärmeübertrager",null,null,"Andere",null,"Holzpellets","Grundwasser",null,"Handwerksmeister der zulassungsfreien Handwerke dieser Bereiche",null,"Portfolio-Sanierungsfahrplan (§5)"]
[null,null,null,null,null,null,null,null,null,"Anderer","Andere",null,"Person, die aufgrund ihrer Ausbildung oder ihres beruflichen Werdegangs berechtigt ist, ein solches Handwerk ohne Meistertitel selbstständig auszuüben"]

{"sheet":"Validierung","index":5,"n_rows":121,"n_cols":1,"rows_kept":121,"cut":false,"hidden":true,"merged":[]}
["Validierung Wohnfläche"]
["Das Wärmegesetzt gilt nur für Gebäude mit mehr als 50 m² Wohnfläch"]
["Die Größe der Wohnungen ist nicht plausibel, bitte prüfen Sie Ihre Eingaben."]
["Bitte überprüfen Sie Zahl der Wohnungen und Wohnfläche"]
[]
["Validierung Solarertrag"]
["Ergänzen Sie zunächst den Wärmeenergiebedarf des Gebäudes auf der Eingangsseite des Programms."]
["Der Solarertrag muss kleiner sein als der Wärmeenergiebedarf des Gebäudes, bitte prüfen Sie Ihre Eingabe."]
["Der Solarertrag deckt mehr als die Hälfte des Wärmeenergiebedarfs des Gebäudes. Sind Sie sich sicher?"]
["Der Solarertrag ist höher als technisch erreichbar; bitte prüfen Sie die Eingabewerte."]
["Der Solarertrag ist sehr hoch. Bitte überprüfen Sie Ihre Berechnung"]
[]
["Validierung Holzkessel"]
["Die vom Holzkessel erzeugte Wärmemenge  muss kleiner sein als der Wärmeenergiebedarf des Gebäudes, bitte prüfen Sie Ihre Eingabe"]
["Die Heizleistung der Anlage ist nicht angegeben"]
["Die Nennleistung ist höher als die Heizleistung"]
[]
["Validierung Biomethan"]
["Die Biomethanmenge kann nicht größer sein als der Brennstoffbedarf des Gebäudes, bitte überprüfen Sie Ihre Eingabe"]
["Biomethan kann maximal zu einer 2/3 Erfüllung führen"]
["Biogas kann nur dann als Erfüllungsoption angerechnet werden, wenn der Kessel der best verfügbaren Technik entspricht. Bitte wählen Sie einen anderen Kesseltyp oder eine andere Erfüllungsoption."]
["Ein hydraulischer Abgleich wird dringend empfohlen."]
["Bitte geben Sie die Leistung der Heizungsanlage ein"]
[]
["Validierung Bioöl"]
["Die Bioölmenge kann nicht größer sein als der Brennstoffbedarf des Gebäudes, bitte überprüfen Sie Ihre Eingabe"]
["Bioöl kann maximal zu einer 2/3 Erfüllung führen"]
["Bioöl kann nur dann als Erfüllungsoption angerechnet werden, wenn der Kessel der best verfügbaren Technik entspricht. Bitte wählen Sie einen anderen Kesseltyp oder eine andere Erfüllungsoption."]
["Ein hydraulischer Abgleich wird dringend empfohlen."]
["Bitte geben Sie die Leistung der Heizungsanlage ein"]
[]
["Validierung Biogenes FG"]
["Die biogenes Flüssiggasmenge kann nicht größer sein als der Brennstoffbedarf des Gebäudes, bitte überprüfen Sie Ihre Eingabe"]
["Biogenes Flüssiggas kann maximal zu einer 2/3 Erfüllung führen"]
["Biogenes Flüssiggas kann nur dann als Erfüllungsoption angerechnet werden, wenn der Kessel der best verfügbaren Technik entspricht. Bitte wählen Sie einen anderen Kesseltyp oder eine andere Erfüllungsoption."]
["Ein hydraulischer Abgleich wird dringend empfohlen."]
["Bitte geben Sie die Leistung der Heizungsanlage ein"]
[]
["Validierung Wärmepumpe"]
["Die erzeugte Wärmemenge kann nicht größer sein als der Wärmeenergiebedarf des Gebäudes. Bitte überprüfen Sie Ihre Einga-ben."]
["Die berechnete Jahresarbeitszahl muss mindestens 2,5 betragen, eine Anrechnung ist bei geringeren Werten nicht möglich."]
["Diese Jahresarbeitszahl erscheint außergewöhnlich günstig. Sind Sie sich sicher?"]
["Die eingegebene Jahresarbeitszahl ist nicht plausibel."]
["Die berechnete Jahresheizzahl muss mindestens 1,20 betragen, eine Anrechnung ist bei geringeren Werten nicht möglich."]
["Diese Jahresheizzahl erscheint außergewöhnlich günstig. Sind Sie sich sicher?"]
["Die eingegebene Jahresheizzahl ist nicht plausibel."]
["Bitte die Jahresarbeitszahl bzw. die Jahresheizzahl angeben."]
["Ihr Gerät hat einen COP-Wert unter der von Ihnen angegebenen Jahresarbeitszahl. Dies ist nur bei einer Auslegungstemperatur der Heizflächen unter 35 °C erreichbar."]
["Die thermische Leistung ihrer Wärmepumpe beträgt mehr als 25% der Heizlast, das EWärmeG wird somit vollständig erfüllt."]
[]
["Validierung Einzelraumfeuereung"]
["Wirkungsgrade können nicht über 100 % liegen, bitte prüfen Sie Ihre Eingabe."]
["Der Wirkungsgrad des Gerätes reicht zur Erfüllung des EWärmeG nicht aus"]
["Es können maximal 100 % der Wohnfläche beheizt werden, bitte überprüfen Sie Ihre Eingabe."]
["Es wird weniger als 30 % der Wohnfläche beheizt, daher kann eine Einzelraumfeuerung nur in Verbindung mit einem Wasserwärmeübertrager als Erfüllungsoption angerechnet werden."]
["Sind Sie sicher, dass die gewählte Kombination aus Grundofen und Warmwasserübertrager korrekt ist?"]
[]
["Validierung Dachdämmung"]
["Die angegebene Dachfläche ist kleiner als plausibel"]
["Die angegebene Dachfläche ist sehr groß; sind sie sicher?"]
["Die gedämmte Fläche kann nicht größer sein als die gesamte Dachfläche, bitte korrigieren."]
["Bei Gebäuden mit mehr als vier Vollgeschossen wird die Dämmung der Dachflächen nur dann als Erfüllung des Gesetzes anerkannt, wenn die Dachflächen vor dem 30.6.2015 entsprechend den obigen Anforderungen gedämmt wurde."]
["Bitte geben Sie die Anzahl der Vollgeschosse an."]
["Der mittlere U-Wert der Dachflächen muss die Anforderungen der EnEV Anlage 3 Tabelle 1 Zeile 4a um zumindest 20 % unterschreiten. Der eingegebene Wert ist zu hoch."]
["Der mittlere U-Wert der Flachdachflächen muss die Anforderungen der EnEV Anlage 3 Tabelle 1 Zeile 4 b um zumindest 20 % unterschrei-ten. Der eingegebene Wert ist zu hoch."]
[]
["Validierung Außenwand"]
["Die gedämmte Fläche kann nicht größer sein als die gesamte Außenwandfläche, bitte korrigieren."]
["Die angegebene Wandfläche ist sehr groß, sind Sie sicher?"]
["Der mittlere U-Wert der Außenwände  muss die Anforderungen der EnEV Anlage 3 Tabelle 1 Zeile 1 um zumindest 20 % unterschreiten. Der eingegebene Wert ist zu hoch."]
[]
["Validierung Kellerdeckendämmung"]
["Sind Sie sicher? Der Wert ist sehr niedrig."]
["Der U-Wert muss mindestens 20% besserer sein als nach EnEV für Nachrüstungen gefordert. Schlechter gedämmte Flächen können nicht angerechnet werden."]
["Der mittlere U-Wert der Decken nach unten gegen Erdreich oder unbeheizte Räume muss die Anforderungen der EnEV Anlage 3 Tabelle 1 Zeile 5a um zumindest 20 % unterschreiten. Der eingegebene Wert ist zu hoch."]
["Der mittlere U-Wert der Fußbodenaufbauten  muss die Anforderungen der EnEV Anlage 3 Tabelle 1 Zeile 5b um zumindest 20 % unterschreiten. Der eingegebene Wert ist zu hoch."]
["Der mittlere U-Wert der Decken nach unten an Außenluft  muss die Anforderungen der EnEV Anlage 3 Tabelle 1 Zeile 5c um zumindest 20 % unterschreiten. Der eingegebene Wert ist zu hoch."]
["Erfüllungsoption nur zulässig bei Gebäuden mit maximal vier Vollgeschossen"]
[]
["Valiedierung Sanierungsfahrplan"]
["Sanierungsfahrpläne könenn nur angerechnet werden, wenn sie beim Austausch der Heizungsanlage nicht älter als 5 jahre sind."]
["Für Nichtwohngebäude ist nur die Optionen 'Sanierungsfahrplan' erlaubt"]
[]
["Validierung Gebäudehülle"]
["Der in Ihrem Gebäude erreichte Wert für HT‘ liegt leider über der Mindestanforderung; die bisherigen Sanierungsmaßnahmen sind damit nicht anrechenbar"]
["Der von Ihnen eingegebene Wert ist äußerst günstig. Bitte überprüfen Sie diesen Wert nochmals."]
["Bitte geben Sie das Datum des Bauantrag bzw.der Bauanzeige bei den Stammdaten an."]
["Bitte geben Sie die bei den Stammdaten die Angabe zur Wohngebäudeart an."]
["Bitte geben Sie die bei den Stammdaten die Angabe für An an."]
[]
["Validierung KWK"]
["Bitte geben Sie die Wohnfläche an."]
["Bitte geben Sie den Wärmeenergiebedarf an."]
["Es können nur KWK-Anlagen als Erfüllung angerechnet werden, die hocheffizient sind."]
["Der Gesamtwirkungsgrad muss mindestens 80% betragen, damit eine KWK-Anlage anrechenbar ist."]
["Die erzeugte Strommenge kann in einem Jahr nicht vom BHKW erzeugt werden"]
["Die erzeugte Strommenge ist sehr hoch, sind Sie sicher?"]
["Die erzeugte Strommenge und damit die Laufzeit des BHKW ist sehr niedrig, sind Sie sicher?"]
["Bitte geben Sie die thermische Leistung des BHKW in kW an."]
[]
["Validierung Kellerdämmung"]
["Bitte geben Sie die Anzahl der Vollgeschosse an."]
["Die Erfüllungsoption ist nur für Gebäude mit maximal vier Vollgeschosse zulässig."]
[]
["ValidierungZusatzangaben"]
["Alle Angaben sind vollständig."]
["Bitte Angaben ergänzen."]
["Nicht alle Zusatzangaben sind vollständig angegeben. Bitte vervollständigen Sie diese Angaben, bevor die Nachweisformulare gedruckt werden."]
[]
["Validierung Heizungstausch"]
["Das Datum des Heizungstausches liegt vor Inkrafttreten des KlimaG Baden-Württemberg am 11.02.2023. Nach  §26a EWärmeG darf der Nachweis nach EWärmeG 2015 oder der aktuellen Version erbracht werden. Liegt das Einbaudatum vor der Novellierung 2015 ist nach §26 auch die Erfüllung nach der Urfassung möglich."]
[]
["Validierung Datum"]
["Bitte geben Sie ein gültiges Datum ein."]
[]
["Validierung Hocheffiziente Wärmerückgewinnung"]
["Der eingegebene Betriebsvolumenstrom lässt keinen pauschalisierten Nachweis zu"]
["Bei Wahl des pauschalierten Erfüllungsnachweises, müssen alle geforderten Bedingungen erfüllt sein."]
[]
["Validierung Nutzung von Abwärme"]
["Der Stromaufwand für den Betrieb der Abwärmenutzungsanlage darf 10 % der rückgewonnen Wärme nicht überschreiten"]

{"sheet":"Mapping","index":6,"n_rows":87,"n_cols":3,"rows_kept":87,"cut":false,"hidden":true,"merged":[]}
["Wärmeenergiebedarf","g_waermeenergie",{"$f":"Wärmeenergiebedarf","v":0}]
["Gebäudeheizlast","g_hzl",{"$f":"Heizlast","v":0}]
["Wohnfläche","g_wfl",{"$f":"Wohnfläche","v":0}]
["Nettogrundfläche","g_ngf",{"$f":"Wohnfläche","v":0}]
["Freistehend","l_frei",{"$f":"IF(WohngebäudeArt=WohngebäudeArtFreistehend,TRUE,FALSE)","v":false}]
["Einseitig angebaut","l_einseitig",{"$f":"IF(WohngebäudeArt=WohngebäudeArtEinseitigAngebaut,TRUE,FALSE)","v":false}]
["Anzahl Wohnungen","g_we",{"$f":"AnzahlWohnungen","v":0}]
["Vakuumröhrenkollektor oder Flachkollektor","l_kollektortyp",{"$f":"NOT(IstKollektorVakuumröhre)","v":true}]
["gewählte Kollektorfläche","g_kollektorfl",{"$f":"Kollektorfläche","v":0}]
["für vollständige Erfüllung erforderliche Kollektorfläche","g_min_kollektorfl",{"$f":"ErförderlicheKollektorfläche","v":0}]
["Anteil der Solaranlage an der Gesamtverpflichtung","r_erf_solar",{"$f":"ErfüllungsgradSolarthermie","v":0}]
["Solarertrag","g_Solarertrag",{"$f":"Solarertrag","v":0}]
["Leistung des zentralen Heizkessels","g_kesselleistung",{"$f":"LeistungHeizungsAnlageBioMethan","v":0}]
["Anteil des Biomassekessels an der Gesamtverpflichtung","r_erf_holz",{"$f":"ErfüllungsgradHolzKessel","v":0}]
["wird Biomethan eingesetzt ?","l_biomethan",{"$f":"AND(ISNUMBER(BiomethanAnteilInErdgas),BiomethanAnteilInErdgas>0)","v":false}]
["eingesetzte Menge an Biomethan","g_biomethanmenge"]
["Anteil der Gesamtverpflichtung durch Biomethan","r_erf_biomethan",{"$f":"ErfüllungsgradBioMethan","v":0}]
["wird Bioöl eingesetzt ?","l_bioöl",{"$f":"AND(ISNUMBER(BioölAnteilInHeizöl),BioölAnteilInHeizöl>0)","v":false}]
["eingesetzte Menge an Bioöl","g_biooelmenge"]
["Anteil der Gesamtverpflichtung durch Bioöl","r_erf_bioöl",{"$f":"ErfüllungsgradBioöl","v":0}]
["wird Biogenes Flüssiggas eingesetzt?","l_bioFG",{"$f":"AND(ISNUMBER(BiogenerAnteilinFG),BiogenerAnteilinFG>0)","v":false}]
["eingesetzte Menge an biogenem Flüssiggas","g_bioFGmenge",{"$f":"ErfüllungsgradBiogenesFG","v":0}]
["Anteil der Gesamtverpflichtung durch biogenes FG","r_erf_bioFG",{"$f":"ErfüllungsgradBioöl","v":0}]
["Wärmeerzeugung der Wärmepumpe","g_wp_waerme",{"$f":"WärmepumpeWärmemenge","v":0}]
["Jahresarbeitszahl der elektrischen Wärmepumpe","r_jaz",{"$f":"IF(WirdElektrischeWärmepumpeVerwendet,JahresarbeitszahlJahresHeizzahl,0)","v":0}]
["Thermische Leistung der elektrischen Wärmepumpe","r_TlWP",{"$f":"ThermLeistungElWP","v":0}]
["Jahresheizzahl der brennstoffbetriebenen WP","r_jhz",{"$f":"IF(WirdBrennstoffWärmepumpeVerwendet,JahresarbeitszahlJahresHeizzahl,0)","v":0}]
["aus Wärmeerzeugung WP und JAZ bzw JHZ errechnete Erneuerbare Wärme","g_erneuerbare_waerme",{"$f":"IF(WirdElektrischeWärmepumpeVerwendet,ErneuerbareWärmeElektrischeWärmepumpe,ErneuerbareWärmeBrennstoffWärmepumpe)","v":0}]
["Anteil der Gesamtverpflichtung durch WP","r_erf_wp",{"$f":"ErfüllungsgradWärmepumpe","v":0}]
["Wirkungsgrad des Holzofens","g_eta_holz",{"$f":"EinzelraumFeuerungWirkungsgrad","v":0}]
["vom Holzofen beheizte Fläche","g_holzflaeche",{"$f":"EinzelraumfeuerungWohnfläche","v":{"$error":"#NAME?"}}]
["Ist ein den alten anforderungen entsprechender Einzelofen installiert","l_einzel_alt"]
["Anteil der Gesamtverpflichtung durch Einzelofen","r_erf_einzelofen",{"$f":"ErfüllungsgradEinzelraumbefeuerung","v":0}]
["gesamte Dachfläche, Dachschräge etc","g_dachflaeche",{"$f":"SummeDachflächen","v":0}]
["gesamte Flachdachfläche","g_flachdachflaeche",{"$f":"FlachdachFläche","v":0}]
["gedämmte Dachfläche, Dachschräge etc","g_dach_gedaemmt",{"$f":"SummeGedämmteFlächen","v":0}]
["gedämmte Flachdachfläche","g_flachdach_gedaemmt",{"$f":"GedämmtesFlachdach","v":0}]
["Anteil an Gesamtverpflichtung durch Dachdämmung","r_erf_dachdaemmung",{"$f":"ErfüllungsgradDachdämmung","v":0}]
["gesamte Außenwandfläche","g_wandflaeche",{"$f":"AußenwandFläche","v":0}]
["gedämmte Außenwandflaeche","g_wandflaeche_gedaemmt",{"$f":"GedämmteAußenwandFläche","v":0}]
["Anteil an der Gesamtverpflichtung durch Dämmung der Außenwand","r_erf_wanddaemmung",{"$f":"ErfüllungsgradAußenwandDämmung","v":0}]
["Anteil an der Gesamtverpflichtung durch Kellerdeckendämmung","r_erf_kellerdaemmung",{"$f":"ErfüllungsgradKellerdämmung","v":0}]
["tatsächlicher HT'  des Gebäudes","r_ht_strich",{"$f":"HTStrich","v":0}]
["erforderlicher HT'  des Gebäudes","r_ht_strich_vorgabe",{"$f":"HTStrichVorgabe","v":0}]
["Anteil an der Gesamtverpflichtung durch Maßnahmenbündel","r_erf_massnahmenbuendel",{"$f":"ErfüllungsgradGebäudehülle","v":0}]
["Ist ein anrechenbarer Sanierungsfahrplan vorhanden?","l_sfp",{"$f":"Kalkulation!C199","v":false}]
["Anteil an Gesamtverpflichtung durch Sanierungsfahrplan","r_erf_sfp",{"$f":"ErfüllungsgradSanierungsfahrplan","v":0}]
["elektrische Leistung des BHKW","r_p_bhkw",{"$f":"ElektrischeLeistungKWKAnlage","v":0}]
["jährlich vom BHKW erzeugte Strommenge","g_kwkstrom",{"$f":"IF(Kalkulation!C234,LeistungKWKAnlage,0)","v":0}]
["jährlich vom BHKW erzeugte Wärmemenge","g_kwkwaerme",{"$f":"IF(Kalkulation!C244,LeistungKWKAnlage,0)","v":0}]
["Anteil an der Gesamtverpflichtung durch ein BHKW","r_erf_bhkw",{"$f":"ErfüllungsgradKWK","v":0}]
["Ist das Gebäude an ein Wärmenetz angeschlossen?","l_waermenetz",{"$f":"IstAnschlussAnsWärmenetz","v":{"$error":"#NAME?"}}]
["Anteil an Gesamtverpflichtung durch Wärmenetzanschluss","r_erf_waermenetz",{"$f":"ErfüllungsgradWärmenetz","v":0}]
["elektrische leistung der Photovoltaikanlage","r_pv_leistung",{"$f":"Photovoltaik","v":0}]
["Anteil an Gesamtverpflichtung durch PV","r_erf_pv",{"$f":"ErfüllungsgradPhotovoltaik","v":0}]
["Ist ein anrechenbarer Sanierungsfahrplan vorhanden?","l_sfp",{"$f":"WelcherSanierungsfahrplanWirdVerwendet","v":"Bitte wählen …"}]
["Gesamterfüllungsgrad als Summe aller Teilerfüllungsgrade","r_erf_gesamt",{"$f":"GesamtErfüllungsgrad","v":0}]
[]
[null,"g_tausch_hza",{"$f":"DatumEinbauHeizungsanlge","v":"00:00:00"}]
[null,"g_nach_hza",{"$f":"DatumEinbauHeizungsanlge","v":"00:00:00"}]
[null,"l_scheitholz_hlz",{"$f":"IF(HolzkesselBrennstoff=HolzkesselBrennstoffScheitholz,TRUE,FALSE)","v":false}]
[null,"l_hackschnitzel_hlz",{"$f":"IF(HolzkesselBrennstoff=HolzkesselBrennstoffHolzhackschnitzel,TRUE,FALSE)","v":false}]
[null,"l_holzpellets_hlz",{"$f":"IF(HolzkesselBrennstoff=HolzkesselBrennstoffHolzpellets,TRUE,FALSE)","v":false}]
[null,"l_mehrk_hlz",{"$f":"HolzkesselIstTeilMehrkesselanlage=JaNeinAuswahlJa","v":false}]
[null,"g_kw_hlz",{"$f":"NennleistungHolzZentralheizung","v":0}]
[null,"g_mehrk_hlz",{"$f":"HolzZentralHeizungHeizLeistungGesamteAnlage","v":0}]
[null,"HolzkesselIstTeilMehrkesselanlage",{"$f":"ABS(HolzZentralHeizungHeizLeistungGesamteAnlage-NennleistungHolzZentralheizung)<1","v":true}]
[null,"l_brennwert_bga",{"$f":"BiomethanKesselEntsprichtVerfügbarerTechnick=JaNeinAuswahlJa","v":false}]
[null,"l_brennwert_öl",{"$f":"BioölKesselEntsprichtVerfügbarerTechnick=JaNeinAuswahlJa","v":false}]
[null,"l_quelle_erdreich",{"$f":"WärmepumpeWärmequelle=WärmepumpeWärmequelleErdreich","v":false}]
[null,"l_quelle_luft",{"$f":"WärmepumpeWärmequelle=WärmepumpeWärmequelleLuft","v":false}]
[null,"l_quelle_grundwasser",{"$f":"WärmepumpeWärmequelle=WärmepumpeWärmequelleGrundwasser","v":false}]
[null,"l_quelle_sonst",{"$f":"WärmepumpeWärmequelle=WärmepumpeWärmequelleSonstige","v":false}]
[null,"g_vorlauftemp",{"$f":"WärmepumpeAuslegungstemperatur","v":0}]
[null,"l_best_voll_mono_wp",{"$f":"WärmepumpeIstEinzigeWärmequelle=JaNeinAuswahlJa","v":false}]
[null,"r_cop_sole",{"$f":"IF(OR(C70,C73),WärmepumpeCOPWert,0)","v":0}]
[null,"r_cop_wasser",{"$f":"IF(C72,WärmepumpeCOPWert,0)","v":0}]
[null,"r_cop_Luft7",{"$f":"WärmepumpeCOPWert","v":{"$error":"#NAME?"}}]
[null,"r_cop_Luft2",{"$f":"WärmepumpeCOPWertA2","v":0}]
[null,"r_cop_Luft10",{"$f":"WärmepumpeCOPWertA10","v":0}]
[null,"r_u_wert_dach_ist_dch",{"$f":"UWertDachdämmung","v":0}]
[null,"r_u_wert_flach_ist_dch",{"$f":"UWertFlachdachdämmung","v":0}]
[null,"r_u_wert_awd",{"$f":"UWertAussenwandDämmung","v":0}]
[null,"r_u_wert_kel",{"$f":"UWertKellerdeckenDämmungNachUnten","v":0}]
[null,"g_erstellungsdatum_sfp",{"$f":"DatumSanierungsfahrplan","v":"00:00:00"}]
[null,"l_hocheff_kwk",{"$f":"KWKGerärIstHochEffizient","v":0}]
[null,"g_gesamtwirk_kwk",{"$f":"WirkungsgradKWKAnlage","v":0}]

{"sheet":"Kalkulation","index":7,"n_rows":291,"n_cols":10,"rows_kept":291,"cut":false,"hidden":true,"merged":[]}
["Bezeichnung","Ist Valide","Wert"]
["Ist das Gebäude ein Wohngebäude oder Nichtwohngebäude?",{"$f":"OR(  GebäudeArt=GebäudeArtWohngebäude,GebäudeArt=GebäudeArtNichtwohngebäude)","v":false},{"$f":"IF(B2,OR(GebäudeArt=GebäudeArtWohngebäude,GebäudeArt=GebäudeArtNichtwohngebäude),FALSE)","v":false}]
["Ist der Kollektortyp Vakuumröhre?",{"$f":"OR(  ThermischesolaranlagenTyp=ThermischesolaranlagenTypFlachkollektoren,ThermischesolaranlagenTyp=ThermischesolaranlagenTypVakuumröhren)","v":false},{"$f":"IF(B3, ThermischesolaranlagenTyp=ThermischesolaranlagenTypVakuumröhren,FALSE)","v":false}]
["Ist das Wohngebäude ein Mehrfamilienhaus oder Nichtwohngebäude?",{"$f":"AND(ISNUMBER(Wohnfläche),B2)","v":false},{"$f":"IF(B4,OR(GebäudeArt=GebäudeArtNichtwohngebäude,AND(ISNUMBER(AnzahlWohnungen),AnzahlWohnungen>2)),FALSE)","v":false}]
["Erforderliche Kollektorfläche Flachkollektor EinZweiFamilienhaus",null,{"$f":"Wohnfläche*0.07","v":0}]
["Erforderliche Kollektorfläche Vakuumröhre EinZweiFamilienhaus",null,{"$f":"C5*0.8","v":0}]
["Erforderliche Kollektorfläche Flachkollektor Mehrfamilienhaus",null,{"$f":"Wohnfläche*0.06","v":0}]
["Erforderliche Kollektorfläche Vakuumröhre Mehrfamilienhaus",null,{"$f":"C7*0.8","v":0}]
["Erforderliche Kollektorfläche Vakuumröhre",{"$f":"AND(B3,B4)","v":false},{"$f":" IF(B9,  IF($C$4,C8,C6),0)","v":0}]
["Erforderliche Kollektorfläche Flachkollektor",{"$f":"AND(B3,B4)","v":false},{"$f":"IF($C$4,C7,C5)","v":0}]
["Erforderliche Kollektorfläche",{"$f":"AND(B9,B10,C2)","v":false},{"$f":"IF(C3,C9,C10)","v":0}]
[]
["Ist der Wärmeenergiebedarf angegeben?",{"$f":"AND(ISNUMBER(Wärmeenergiebedarf),Wärmeenergiebedarf>0)","v":false},{"$f":"IF(B13, TRUE,FALSE)","v":false}]
["Ist der Solarertrag angegeben?",{"$f":"AND(ISNUMBER(Solarertrag),Solarertrag>0)","v":false},{"$f":"IF(B14,Solarertrag,0)","v":0}]
["Ist der Solarertrag größer als der Wärmeenergiebedarf?",{"$f":"AND(B13,B14)","v":false},{"$f":"IF(B15,IF(Solarertrag>Wärmeenergiebedarf,TRUE,FALSE),FALSE)","v":false}]
["Ist der Solarertrag größer als 50 % des Wärmeenergiebedarfs?",{"$f":"B15","v":false},{"$f":"IF(B16,IF(Solarertrag>Wärmeenergiebedarf/2,TRUE,FALSE),FALSE)","v":false}]
["Ist der Quotient aus Solarertrag und Kollektorfläche größer als 600?",{"$f":"AND(B14,Kollektorfläche>0)","v":false},{"$f":"IF(B17,IF(Solarertrag/Kollektorfläche>600,TRUE,FALSE),TRUE)","v":true}]
["Ist der Quotient aus Solarertrag und Kollektorfläche größer als 450?",{"$f":"B17","v":false},{"$f":"IF(B18,IF(Solarertrag/Kollektorfläche>450,TRUE,FALSE),TRUE)","v":true}]
["Erfüllungsgrad basierend auf den Solarertrag",{"$f":"AND(B13,B14,B15,B16,B17,B18,NOT(C15),NOT(C16),NOT(C17),NOT(C18))","v":false},{"$f":"IF(B19,IF(Solarertrag/Wärmeenergiebedarf>0.15,1,(Solarertrag/Wärmeenergiebedarf)/0.15),0)","v":0}]
["Fehlermeldung für Solarertrag",{"$f":"B14","v":false},{"$f":"IF(B20,ChooseErrorMessage( NOT(IstWäermeenergiebedarfAngegeben),ErrorMessageWärmeenergiebedarfNichtAngegeben,   SolarertragIstGrößerWärmeenrgiebedarf,ErrorMessageSolarertragGrößerWärmeenergiebedarf,SolarertragGrößerAlsHälfteWärmeenergiebedarf,ErrorMessageSolarertragGrößerAlsHälfteWärmeenergiebedarf,SolarertragGrößerAlsTechnischErreichbar,ErrorMessageSolarertragGrößerAlsTechnischErreichbar,SolarertragSehrHoch,ErrorMessageSolarertragSehrHoch),\"\")","v":""}]
[]
["Ist Kollktortyp angegeben",{"$f":"B3","v":false},{"$f":"B22","v":false}]
["Ist Erfüllungsgrad basierend auf den Solarertrag? ",{"$f":"AND(B22,B19)","v":false},{"$f":"IF(B23,B14,FALSE)","v":false}]
["Erfüllungsgrad",{"$f":"OR(B22,B23)","v":false},{"$f":"IF(B24,IF(IstErfüllungsgradBasierendAufSolarertrag,ErfüllungsgradSolarertrag,IF(ErförderlicheKollektorfläche>0,MIN(Kollektorfläche/ErförderlicheKollektorfläche,1),0)),0)","v":0}]
[]
["Ist Heizleistung des Holz-Kessels angegeben?",{"$f":"AND(ISNUMBER(HolzZentralHeizungHeizLeistungGesamteAnlage),HolzZentralHeizungHeizLeistungGesamteAnlage>0)","v":false},{"$f":"IF(B26, TRUE,0)","v":0}]
["Deckt der Kessel den gesamten Energiebedarf",{"$f":"OR(HolzZentralHeizungDecktGanzenEnergiebedarfAb=JaNeinAuswahlJa,HolzZentralHeizungDecktGanzenEnergiebedarfAb=JaNeinAuswahlNein)","v":false},{"$f":"IF(HolzZentralHeizungDecktGanzenEnergiebedarfAb=JaNeinAuswahlJa,TRUE,FALSE)","v":false}]
["Welchen Nennlesitung liefert der Kessel?",{"$f":"OR(AND(ISNUMBER(NennleistungHolzZentralheizung),NennleistungHolzZentralheizung>0),C27)","v":false},{"$f":"IF(B28,NennleistungHolzZentralheizung,0)","v":0}]
["Ist die Nennleistung größer als die Heizleistung",{"$f":"B28","v":false},{"$f":"IF(AND(B29,B26),IF(NennleistungHolzZentralheizung>HolzZentralHeizungHeizLeistungGesamteAnlage,TRUE,FALSE),FALSE)","v":false}]
["Erfüllungsgrad durch Deckung gesamter Energiebedarf",{"$f":"B27","v":false},{"$f":"IF(AND(B30,C27),1,0)","v":0}]
["Erfüllungsgrad durch Nennleistung",{"$f":"AND(B26,B27)","v":false},{"$f":"IF(B31, IF(NennleistungHolzZentralheizung/HolzZentralHeizungHeizLeistungGesamteAnlage>0.15,1,(NennleistungHolzZentralheizung/HolzZentralHeizungHeizLeistungGesamteAnlage)/0.15),0)","v":0}]
["Erfüllungsgrad",{"$f":"OR(IstNennleistungHolzkesselAngegeben,C27)","v":false},{"$f":"MAX(C30,C31)","v":0}]
["Fehlermeldung für Holzkessel",{"$f":"OR(B26,B28)","v":false},{"$f":"IF(B33,ChooseErrorMessage(NOT(OR(C27, IstNennleistungHolzkesselAngegeben)),ErrorMessageHolzkesselHeizleistungNichtAngegeben,AND(NOT(C27),KesselleistungIstGrößerWärmeenergiebedarf),ErrorMessageHolzkesselNennleistungGrößerHeizleistung),\"\")","v":""}]
[]
["Wird Holzkessel verwendet",null,{"$f":"IF(ErfüllungsgradHolzKessel>0,TRUE,FALSE)","v":false}]
["Brennstoff ist valide?",null,{"$f":"OR(HolzkesselBrennstoff=HolzkesselBrennstoffScheitholz,HolzkesselBrennstoff=HolzkesselBrennstoffHolzhackschnitzel,HolzkesselBrennstoff=HolzkesselBrennstoffHolzpellets, HolzkesselBrennstoff=HolzkesselBrennstoffAnderer)","v":false}]
["Leistung Holzkessel ist valide?",{"$f":"IF(HolzkesselIstTeilMehrkesselanlage=JaNeinAuswahlJa,TRUE,FALSE)","v":false},{"$f":"IF(B37,AND(ISNUMBER(NennleistungHolzZentralheizung),NennleistungHolzZentralheizung>0),TRUE)","v":true}]
["Leistung Gesamtanlage ist valide?",{"$f":"IF(HolzkesselIstTeilMehrkesselanlage=JaNeinAuswahlJa,TRUE,FALSE)","v":false},{"$f":"IF(B38,AND(ISNUMBER(HolzZentralHeizungHeizLeistungGesamteAnlage),HolzZentralHeizungHeizLeistungGesamteAnlage>0),TRUE)","v":true}]
["Alle Angaben vollständig?",{"$f":"C35","v":false},{"$f":"IF(B39,AND(C36,C37,C38),TRUE)","v":true}]
["Meldung",null,{"$f":"IF(ErfüllungsgradHolzKessel>0, IF(ZusatzangabenHolzkesselVollständig,ErrorMessageZusatzangabenAllesVollständig,ErrorMessageZusatzangabenBitteErgänzen),\"\")","v":""}]
[]
["Ist die Leistung der Biomethan Heizungsanlage angegeben?",{"$f":"AND(ISNUMBER(LeistungHeizungsAnlageBioMethan),LeistungHeizungsAnlageBioMethan>0)","v":false},{"$f":"IF(B42,TRUE,FALSE)","v":false}]
["Biomethananteil",{"$f":"AND(ISNUMBER(BiomethanAnteilInErdgas),BiomethanAnteilInErdgas>0)","v":false},{"$f":"IF(B43,MIN(BiomethanAnteilInErdgas,0.1),0)","v":0}]
["Ist Deckungsanteil angegeben",{"$f":"AND(ISNUMBER(DeckungsanteilBiomethan),DeckungsanteilBiomethan>0)","v":false},{"$f":"B44","v":false}]
["Erfüllungsgrad",{"$f":"AND(B43,B44)","v":false},{"$f":"IF(B45,(C43/10)*DeckungsanteilBiomethan*0.6666,0)","v":0}]
["Fehlermeldung für Erfüllungsgrad",{"$f":"B44","v":false},{"$f":"IF(B46,ChooseErrorMessage(NOT(C42),ErrorMessageBiomethanLeistungHeizungsanlageNichtAngegeben),\"\")","v":""}]
[]
["Wird Biomethan verwendet?",null,{"$f":"IF(ErfüllungsgradBioMethan>0,TRUE,FALSE)","v":false}]
["Ist Auswahl Stand der Technick valide?",null,{"$f":"OR(BiomethanKesselEntsprichtVerfügbarerTechnick=JaNeinAuswahlJa,BiomethanKesselEntsprichtVerfügbarerTechnick=JaNeinAuswahlNein)","v":false}]
["Alle Eingabe sind vollstängig?",{"$f":"C48","v":false},{"$f":"IF(B50,C49,TRUE)","v":true}]
["Ist Stand der Technick = True",null,{"$f":"BiomethanKesselEntsprichtVerfügbarerTechnick=JaNeinAuswahlJa","v":false}]
["Meldung",null,{"$f":"IF(C48,ChooseValidationMessage(C50,ErrorMessageZusatzangabenAllesVollständig,ErrorMessageZusatzangabenBitteErgänzen,NOT(C51),ErrorMessageBiomethanKesselIstNichtStandDerTechnik),\"\")","v":""}]
[]
["Ist die Leistung der Bioöl Heizungsanlage angegeben?",{"$f":"AND(ISNUMBER(LeistungHeizungsAnlageBioÖl),LeistungHeizungsAnlageBioÖl>0)","v":false},{"$f":"IF(B54,TRUE,FALSE)","v":false}]
["Bioölanteil",{"$f":"AND(ISNUMBER(BioölAnteilInHeizöl),BioölAnteilInHeizöl>0)","v":false},{"$f":"IF(B55,MIN(BioölAnteilInHeizöl,0.1),0)","v":0}]
["Ist Deckungsanteil angegeben",{"$f":"AND(ISNUMBER(DeckungsanteilBioöl),DeckungsanteilBioöl>0)","v":false},{"$f":"B56","v":false}]
["Erfüllungsgrad",{"$f":"AND(B55,B56)","v":false},{"$f":"IF(B57,(C55/10)*DeckungsanteilBioöl*0.6666,0)","v":0}]
["Fehlermeldung für Erfüllungsgrad",{"$f":"B56","v":false},{"$f":"IF(B58,ChooseErrorMessage(NOT(C54),ErrorMessageBioölLeistungHeizungsanlageNichtAngegeben),\"\")","v":""}]
[]
["Wird Bioöl verwendet?",null,{"$f":"IF(ErfüllungsgradBioöl>0,TRUE,FALSE)","v":false}]
["Ist Auswahl Stand der Technick valide?",null,{"$f":"OR(BioölKesselEntsprichtVerfügbarerTechnick=JaNeinAuswahlJa,BioölKesselEntsprichtVerfügbarerTechnick=JaNeinAuswahlNein)","v":false}]
["Alle Eingabe sind vollstängig?",{"$f":"C60","v":false},{"$f":"IF(B62,C61,TRUE)","v":true}]
["Ist Stand der Technick = True",null,{"$f":"BioölKesselEntsprichtVerfügbarerTechnick=JaNeinAuswahlJa","v":false}]
["Meldung",null,{"$f":"IF(C60,ChooseValidationMessage(C62,ErrorMessageZusatzangabenAllesVollständig,ErrorMessageZusatzangabenBitteErgänzen,NOT(C63),ErrorMessageBioölKesselIstNichtStandDerTechnik),\"\")","v":""}]
[]
["Ist die Leistung des biogenenen Flüssiggaskessels angegeben?",{"$f":"AND(ISNUMBER(LeistungHeizungsAnlageBiogenesFG),LeistungHeizungsAnlageBiogenesFG>0)","v":false},{"$f":"IF(B66,TRUE,FALSE)","v":false}]
["Biogener Anteil",{"$f":"AND(ISNUMBER(BiogenerAnteilinFG),BiogenerAnteilinFG>0)","v":false},{"$f":"IF(B67,MIN(BiogenerAnteilinFG,0.1),0)","v":0}]
["Ist Deckungsanteil angegeben",{"$f":"AND(ISNUMBER(DeckungsanteilBiogenesFG),DeckungsanteilBiogenesFG>0)","v":false},{"$f":"B68","v":false}]
["Erfüllungsgrad",{"$f":"AND(B67,B68)","v":false},{"$f":"IF(B69,(C67/10)*DeckungsanteilBiogenesFG*0.6666,0)","v":0}]
["Fehlermeldung für Erfüllungsgrad",{"$f":"B68","v":false},{"$f":"IF(B70,ChooseErrorMessage(NOT(C66),ErrorMessageBiogenesFGLeistungHeizungsanlageNichtAngegeben),\"\")","v":""}]
[]
["Wird Biogenes Flüssiggas verwendet?",null,{"$f":"IF(ErfüllungsgradBiogenesFG>0,TRUE,FALSE)","v":false}]
["Ist Auswahl Stand der Technick valide?",null,{"$f":"OR(BiogenesFGKesselEntsprichtVerfügbarerTechnick=JaNeinAuswahlJa,BiogenesFGKesselEntsprichtVerfügbarerTechnick=JaNeinAuswahlNein)","v":false}]
["Alle Eingabe sind vollstängig?",{"$f":"C72","v":false},{"$f":"IF(B74,C73,TRUE)","v":true}]
["Ist Stand der Technick = True",null,{"$f":"BiogenesFGKesselEntsprichtVerfügbarerTechnick=JaNeinAuswahlJa","v":false}]
["Meldung",null,{"$f":"IF(C72,ChooseValidationMessage(C74,ErrorMessageZusatzangabenAllesVollständig,ErrorMessageZusatzangabenBitteErgänzen,NOT(C75),ErrorMessageBiogenesFGKesselIstNichtStandDerTechnik),\"\")","v":""}]
[]
["Wird Wärmepumpe verwendet?",{"$f":"OR(WirdWärmepumpeVerwendet=WärmepumpeTypeElektrisch,WirdWärmepumpeVerwendet=WärmepumpeTypeBrennstoff)","v":false},{"$f":"B78","v":false}]
["Wird eine elektrische Wärmepumpe verwendet?",{"$f":"OR(WirdWärmepumpeVerwendet=WärmepumpeTypeElektrisch,WirdWärmepumpeVerwendet=WärmepumpeTypeBrennstoff)","v":false},{"$f":"IF(B79,IF( WirdWärmepumpeVerwendet=WärmepumpeTypeElektrisch,TRUE,FALSE),FALSE)","v":false}]
["Ist Jahresarbeitszahl oder Jahresheizzahl angegeben?",{"$f":"ISNUMBER(JahresarbeitszahlJahresHeizzahl)","v":false},{"$f":"IF(B80,JahresarbeitszahlJahresHeizzahl>0,FALSE)","v":false}]
["Ist Jahresarbeitszahl größer 7",{"$f":"ISNUMBER(JahresarbeitszahlJahresHeizzahl)","v":false},{"$f":"IF(B81,JahresarbeitszahlJahresHeizzahl>7)","v":false}]
["Ist Jahresarbeitszahl zwischen 5 und 7",{"$f":"ISNUMBER(JahresarbeitszahlJahresHeizzahl)","v":false},{"$f":"IF(B82,AND(JahresarbeitszahlJahresHeizzahl>5,JahresarbeitszahlJahresHeizzahl<=7))","v":false}]
["Ist Jahresarbeitszahl kleiner 2,5",{"$f":"ISNUMBER(JahresarbeitszahlJahresHeizzahl)","v":false},{"$f":"IF(B83,JahresarbeitszahlJahresHeizzahl<2.5)","v":false}]
["Ist Jahresarbeitszahl zwischen 2,5 und 7",{"$f":"ISNUMBER(JahresarbeitszahlJahresHeizzahl)","v":false},{"$f":"IF(B84,AND(JahresarbeitszahlJahresHeizzahl>=2.5,JahresarbeitszahlJahresHeizzahl<=7),FALSE)","v":false}]
["Ist der Wärmeenergiebedarf angegeben?",{"$f":"AND(ISNUMBER(Wärmeenergiebedarf),Wärmeenergiebedarf>0)","v":false},{"$f":"IF(B85, TRUE,FALSE)","v":false}]
["Ist Wärmemenge größer als Wärmeenergiebedarf",{"$f":"ISNUMBER(WärmepumpeWärmemenge)","v":false},{"$f":"IF(B86,Wärmeenergiebedarf<WärmepumpeWärmemenge,FALSE)","v":false}]
["Ist Wärmemenge kleiner als Wärmeenergiebedarf",{"$f":"ISNUMBER(WärmepumpeWärmemenge)","v":false},{"$f":"IF(B87,Wärmeenergiebedarf>WärmepumpeWärmemenge,FALSE)","v":false}]
["Ist Wärmemenge = Wärmeenergiebedarf",{"$f":"ISNUMBER(WärmepumpeWärmemenge)","v":false},{"$f":"IF(B88,Wärmeenergiebedarf=WärmepumpeWärmemenge,FALSE)","v":false}]
["Erneuerbare Wärme = (Jahresarbeitszahl – 1,8) x Wärmemenge der Wärmepumpe",{"$f":"AND(B84,B79)","v":false},{"$f":"IF(B89,  WärmepumpeWärmemenge *(JahresarbeitszahlJahresHeizzahl-1.8)/JahresarbeitszahlJahresHeizzahl,0)","v":0}]
["Deckungsanteil = Erneuerbare Wärme / Wärmeenergiebedarf ",{"$f":"B89","v":false},{"$f":"IF(B90,  ErneuerbareWärmeElektrischeWärmepumpe/Wärmeenergiebedarf,0)","v":0}]
["Thermische Leistung der elektrisch betriebenen WP >= 25% Gebäudeheizlast?",{"$f":"C79","v":false},{"$f":"IF(B91,ThermLeistungElWP>=0.25*Heizlast,FALSE)","v":false}]
["Erfüllungsgrad elektrische Wärmepumpe",{"$f":"AND(C79,OR(C84,C88))","v":false},{"$f":"IF(B92,IF(DeckungsanteilElWpHeizlast,1,IF(DeckungsanteilElektrischeWärmepumpe>=0.15,1,DeckungsanteilElektrischeWärmepumpe/0.15)),0)","v":0}]
["Wird eine brennstoff Wärmepumpe verwendet?",{"$f":"OR(WirdWärmepumpeVerwendet=WärmepumpeTypeElektrisch,WirdWärmepumpeVerwendet=WärmepumpeTypeBrennstoff)","v":false},{"$f":"IF(B93,IF( WirdWärmepumpeVerwendet=WärmepumpeTypeBrennstoff,TRUE,FALSE),FALSE)","v":false}]
["Ist Jahresheizzahl größer 2",{"$f":"ISNUMBER(JahresarbeitszahlJahresHeizzahl)","v":false},{"$f":"IF(B94,JahresarbeitszahlJahresHeizzahl>2)","v":false}]
["Ist Jahresheizzahl zwischen 1,5 und 2",{"$f":"ISNUMBER(JahresarbeitszahlJahresHeizzahl)","v":false},{"$f":"IF(B95,AND(JahresarbeitszahlJahresHeizzahl>1.5,JahresarbeitszahlJahresHeizzahl<=2))","v":false}]
["Ist Jahresheizzahl kleiner 1,2",{"$f":"ISNUMBER(JahresarbeitszahlJahresHeizzahl)","v":false},{"$f":"IF(B96,JahresarbeitszahlJahresHeizzahl<1.2)","v":false}]
["Ist die Jahresheizzahl zwishen 1,2 und 2",{"$f":"ISNUMBER(JahresarbeitszahlJahresHeizzahl)","v":false},{"$f":"IF(B97,AND(JahresarbeitszahlJahresHeizzahl>=1.2,JahresarbeitszahlJahresHeizzahl<=2),FALSE)","v":false}]
["Erneuerbare Wärme = (Jahresheizzahl – 1) x Wärmemenge der Wärmepumpe",{"$f":"AND(B93,B97)","v":false},{"$f":"IF(B98,  WärmepumpeWärmemenge *(JahresarbeitszahlJahresHeizzahl-1)/JahresarbeitszahlJahresHeizzahl,0)","v":0}]
["Deckungsanteil = Erneuerbare Wärme / Wärmeenergiebedarf ",{"$f":"B98","v":false},{"$f":"IF(B99,  ErneuerbareWärmeBrennstoffWärmepumpe/Wärmeenergiebedarf,0)","v":0}]
["Erfüllungsgrad brennstoff Wärmepumpe",{"$f":"AND(C97,OR(C93,C88))","v":false},{"$f":"IF(B100,IF(DeckungsanteilBrennstoffWärmepumpe>=0.15,1,DeckungsanteilBrennstoffWärmepumpe/0.15),0)","v":0}]
["Erfüllungsgrad",{"$f":"AND( B80,OR(B100,B92))","v":false},{"$f":"IF(B101,  IF(C86,0,  IF(C88,1,IF(C79,C92,IF(C93,C100,0)))),0)","v":0}]
["Fehlermeldung für Erfüllungsgrad",{"$f":"B78","v":false},{"$f":"IF(  B102,ChooseErrorMessage(C86,ErrorMessageWärmepumpeWärmemengeIstGrößerWärmeenergiebedarf,AND(WirdElektrischeWärmepumpeVerwendet,C82),ErrorMessageWärmepumpeJahresarbeitszahlGrößer5,AND(WirdElektrischeWärmepumpeVerwendet,C83),ErrorMessageWärmepumpeJahresarbeitszahlIstKleiner3Komma5,AND(WirdElektrischeWärmepumpeVerwendet,C81),ErrorMessageWärmepumpeJahresarbeitszahlGrößer7,AND(WirdBrennstoffWärmepumpeVerwendet,C96),ErrorMessageWärmepumpeJahresheizzahlzuklein,AND(WirdBrennstoffWärmepumpeVerwendet,C95),ErrorMessageWärmepumpeJahresheizzahlgrößer1komma5,AND(WirdBrennstoffWärmepumpeVerwendet,Kalkulation!C94),ErrorMessageWärmepumpeJahresheizzahlGrößer2,NOT(C80),ErrorMessageWärmepumpeMissingJahresarbeitszahlJahresheizzahl),\"\")","v":""}]
[]
["Wird Wärmepumpe verwendet?",null,{"$f":"IF(ErfüllungsgradWärmepumpe>0,TRUE,FALSE)","v":false}]
["Ist Wärmequelle valide?",null,{"$f":"OR(WärmepumpeWärmequelle=WärmepumpeWärmequelleErdreich,WärmepumpeWärmequelle=WärmepumpeWärmequelleGrundwasser,WärmepumpeWärmequelle=WärmepumpeWärmequelleLuft,WärmepumpeWärmequelle=WärmepumpeWärmequelleSonstige)","v":false}]
["Ist Auslegungstemeperatur valide",null,{"$f":"AND(ISNUMBER(WärmepumpeAuslegungstemperatur),WärmepumpeAuslegungstemperatur>0)","v":false}]
["Ist einzige Wärmequelle valide",null,{"$f":"OR(WärmepumpeIstEinzigeWärmequelle=JaNeinAuswahlJa,WärmepumpeIstEinzigeWärmequelle=JaNeinAuswahlNein)","v":false}]
["Muss COP Wert angegeben werden?",null,true]
["Muss COP2 und COPA10 angegeben werden?",null,{"$f":"WärmepumpeWärmequelle=WärmepumpeWärmequelleLuft","v":false}]
["COP Wert angegeben?",{"$f":"C108","v":true},{"$f":"IF(B110,WärmepumpeCOP>0,FALSE)","v":false}]
["COP2 und COPA10 angegeben?",{"$f":"C109","v":false},{"$f":"IF(B111,AND(WärmepumpeCOPWertA10>0,WärmepumpeCOPWertA2>0),FALSE)","v":false}]
["Alle Angaben vollständig?",{"$f":"C78","v":false},{"$f":"IF(B112,AND(C105,C106,C107,IF(C108,C110,TRUE),IF(C109,C111,TRUE)),FALSE)","v":false}]
["Meldung Vollständigkeit",null,{"$f":"IF(ErfüllungsgradWärmepumpe>0, IF(ZusatzangabenWärmepumpeVollständig,ErrorMessageZusatzangabenAllesVollständig,ErrorMessageZusatzangabenBitteErgänzen),\"\")","v":""}]
["Meldung",null,{"$f":"C113","v":""}]
[]
["Wird Einzelraumfeuerung verwendet",{"$f":"OR(WirdEinzelraumfeuerungVerwendet=EinzelraumfeuerungTypeKamin,WirdEinzelraumfeuerungVerwendet=EinzelraumfeuerungTypeGrundofen,WirdEinzelraumfeuerungVerwendet=EinzelraumfeuerungTypePellet)","v":false},{"$f":"B116","v":false}]
["Ist Wirkungsgrad <100%",{"$f":"ISNUMBER(EinzelraumFeuerungWirkungsgrad)","v":false},{"$f":"IF(B117,EinzelraumFeuerungWirkungsgrad<=1)","v":false}]
["Ist Wirkungsgrad >100%",{"$f":"B117","v":false},{"$f":"IF(B118,EinzelraumFeuerungWirkungsgrad>1)","v":false}]
["Wird Kamin verwendet",{"$f":"OR(WirdEinzelraumfeuerungVerwendet=EinzelraumfeuerungTypeKamin,WirdEinzelraumfeuerungVerwendet=EinzelraumfeuerungTypeGrundofen,WirdEinzelraumfeuerungVerwendet=EinzelraumfeuerungTypePellet)","v":false},{"$f":"IF(B119,WirdEinzelraumfeuerungVerwendet=EinzelraumfeuerungTypeKamin)","v":false}]
["Wird Pellet verwendet",{"$f":"B119","v":false},{"$f":"IF(B120,WirdEinzelraumfeuerungVerwendet=EinzelraumfeuerungTypePellet)","v":false}]
["Wird Grundofen verwendet",{"$f":"B120","v":false},{"$f":"IF(B121,WirdEinzelraumfeuerungVerwendet=EinzelraumfeuerungTypeGrundofen)","v":false}]
["Wird Kamin verwendet und Wirkungsgrad <80%",{"$f":"AND(B116,B118)","v":false},{"$f":"IF(B122,AND(l_kachel, EinzelraumFeuerungWirkungsgrad<0.8))","v":false}]
["Wird Kamin verwendet und Wirkungsgrad >80%",{"$f":"AND(B117,B119)","v":false},{"$f":"IF(B123,AND(C119,EinzelraumFeuerungWirkungsgrad>=0.8))","v":false}]
["Wird Pellet verwendet und Wirkungsgrad <90%",{"$f":"AND(B116,B119)","v":false},{"$f":"IF(B124,AND(C120,EinzelraumFeuerungWirkungsgrad<0.9))","v":false}]
["Wird Pellet verwendet und Wirkungsgrad >90%",{"$f":"AND(B117,B120)","v":false},{"$f":"IF(B125,AND(C120,EinzelraumFeuerungWirkungsgrad>=0.9))","v":false}]
["Ist Wasserwärmeübertrager eingebaut",{"$f":"OR(EinzelraumfeuerungWärmenutzung=EinzelraumfeuerrungWärmenutzungWarmwasserübertrager)","v":false},{"$f":"B126","v":false}]
["Ist Kamin oder Pellet",{"$f":"B116","v":false},{"$f":"OR(WirdEinzelraumfeuerungVerwendet=EinzelraumfeuerungTypeKamin,WirdEinzelraumfeuerungVerwendet=EinzelraumfeuerungTypeGrundofen,WirdEinzelraumfeuerungVerwendet=EinzelraumfeuerungTypePellet)","v":false}]
["Ist Wirkungsgrad erfüllt",{"$f":"B117","v":false},{"$f":"IF(C119,C123,IF(C120,C125, IF(C121,TRUE,    FALSE)))","v":false}]
["Erfüllungsgrad > 30% beheizt",{"$f":"EinzelraumfeuerungWärmenutzung=EinzelraumfeuerrungWärmenutzung30","v":false},{"$f":"IF(AND(B129,C128),1,0)","v":0}]
["Erfüllungsgrad > 25% beheizt",{"$f":"EinzelraumfeuerungWärmenutzung=EinzelraumfeuerrungWärmenutzung20","v":false},{"$f":"IF(AND(B130,C128),0.6666,0)","v":0}]
["Erfüllungsgrad Wasserwärmeübertrager",{"$f":"EinzelraumfeuerungWärmenutzung=EinzelraumfeuerrungWärmenutzungWarmwasserübertrager","v":false},{"$f":"IF(AND(B131,C128),1,0)","v":0}]
["Erüllungsgrad",{"$f":"AND( C116,  OR(B129,B130,B131))","v":false},{"$f":"IF(B132,MAX(C129,C130,C131),0)","v":0}]
["Fehlermeldungen für Erfüllungsgrad",{"$f":"B132","v":false},{"$f":"IF(  B133,ChooseErrorMessage(AND(C121,C126),ErrorMessageEinzelraumfeuerungGrundofenMitWarmwasserübertrager,C122,ErrorMessageEinzelraumfeuerungWirkungsgradZuKlein,C124,ErrorMessageEinzelraumfeuerungWirkungsgradZuKlein),\"\")","v":""}]
[]
["Wird Dachdämmung verwendet",{"$f":"AND(OR(ISNUMBER(Dachfläche),ISNUMBER(FlachdachFläche)),NOT(ISTEXT(Dachfläche)),NOT(ISTEXT(FlachdachFläche)))","v":false},{"$f":"IF(B135,OR(Dachfläche>0,FlachdachFläche>0),FALSE)","v":false}]
["Anzahl der Geschosse angegeben",{"$f":"AND(ISNUMBER(g_geschosse),g_geschosse>0)","v":false},{"$f":"B136","v":false}]
["Summe Dachflächen",{"$f":"C135","v":false},{"$f":"IF(B137,Dachfläche+FlachdachFläche,0)","v":0}]
["Ist Summe Dachflächen < 1/6 Wohnfläche",{"$f":"B137","v":false},{"$f":"IF(B138,SummeDachflächen<Wohnfläche/6,TRUE)","v":true}]
["Ist Summe Dachflächen > Wohnfläche",{"$f":"B137","v":false},{"$f":"IF(B139,SummeDachflächen>Wohnfläche,TRUE)","v":true}]
["Summe gedämmte Dachfächen",{"$f":"OR(ISNUMBER(Dachfläche),ISNUMBER(FlachdachFläche),ISNUMBER(GedämmtesFlachdach),ISNUMBER(GedämteDachfläche))","v":false},{"$f":"IF(B140,GedämteDachfläche+GedämmtesFlachdach,0)","v":0}]
["SummeGedämmteFlächen/SummeDachflächen",{"$f":"AND(B137,B140)","v":false},{"$f":"IF( B141,  SummeGedämmteFlächen/SummeDachflächen,0)","v":0}]
["Ist gedämte Fläche > Dachfläche",{"$f":"AND(B140,B137)","v":false},{"$f":"IF(B142,OR( SummeGedämmteFlächen>SummeDachflächen,GedämmtesFlachdach>FlachdachFläche,GedämteDachfläche>Dachfläche),FALSE)","v":false}]
["Sind Eingaben valide?",{"$f":"AND(B142,NOT(C142),B138,NOT(C138))","v":false},{"$f":"IF(B143,C135,FALSE)","v":false}]
["Weniger als 4",{"$f":"AND(ISNUMBER(g_geschosse),g_geschosse>0)","v":false},{"$f":"IF(B144,g_geschosse<=4,FALSE)","v":false}]
["Mehr als 4 und weniger als 8 Geschosse",{"$f":"AND(ISNUMBER(g_geschosse),g_geschosse>0)","v":false},{"$f":"IF(B145,AND(g_geschosse>4,g_geschosse<=8),FALSE)","v":false}]
["Mehr als 8 Geschosse",{"$f":"AND(ISNUMBER(g_geschosse),g_geschosse>0)","v":false},{"$f":"IF(B146,g_geschosse>8,FALSE)","v":false}]
["Erfüllungsgrad mehr 8 Geschosse",{"$f":"AND(C143,C146)","v":false},{"$f":"IF(B147,C141*1/3,0)","v":0}]
["Erfüllungsgrad 4-8 Geschosse",{"$f":"AND(C143,C145)","v":false},{"$f":"IF(B148,C141*2/3,0)","v":0}]
["Erfüllungsgrad weniger 4 Geschosse",{"$f":"AND(C143,C144)","v":false},{"$f":"IF(AND(B149,C135),C141,0)","v":0}]
["Erüllungsgrad",{"$f":"OR(B149,B148,B147)","v":false},{"$f":"MAX(C149,C148,C147)","v":0}]
["Fehlermeldungen für Erfüllungsgrad",{"$f":"C135","v":false},{"$f":"IF( B151,ChooseErrorMessage(C138,ErrorMessageDachdämmungZuKleineDachfläche,C139,[0]!ErrorMessageDachdämmungZuGroßeDachfläche,C142,ErrorMessageDachdämmungGedämmteFlächeGrößerFläche,NOT(C136),ErrorMessageDachdämmungKeineGeschossanzahlangegeben),\"\")","v":""}]
[]
["Wird Dachdämmung verwendet?",null,{"$f":"ErfüllungsgradDachdämmung>0","v":false}]
["Ist U-Wert Dach valide?",{"$f":"AND(ISNUMBER(Dachfläche),Dachfläche>0)","v":false},{"$f":"IF(B154,AND(ISNUMBER(UWertDachdämmung),UWertDachdämmung>0),TRUE)","v":true}]
["Ist U-Wert Flachdach valide?",{"$f":"AND(ISNUMBER(FlachdachFläche),FlachdachFläche>0)","v":false},{"$f":"IF(B155,AND(ISNUMBER(UWertFlachdachdämmung),UWertFlachdachdämmung>0),TRUE)","v":true}]
["Ist U-Wert Dach > 0,192?",{"$f":"C154","v":true},{"$f":"AND(B156,UWertDachdämmung>0.192)","v":false}]
["Ist U-Wert Flachdach > 0,160?",{"$f":"C155","v":true},{"$f":"AND(B157,UWertFlachdachdämmung>0.16)","v":false}]
["Meldung Vollständig?",null,{"$f":"IF(C153,AND(C154,C155),TRUE)","v":true}]
["Meldung",null,{"$f":"IF(C153,ChooseValidationMessage(C158,ErrorMessageZusatzangabenAllesVollständig,ErrorMessageZusatzangabenBitteErgänzen,C156,ErrorMessageUWertDachdämmungZuHoch,C157,ErrorMessageUWertDachflächendämmungZuHoch),\"\")","v":""}]
[]
["Wird Aussenwanddämmung verwendet",{"$f":"ISNUMBER(AußenwandFläche)","v":false},{"$f":"IF(B161,AußenwandFläche>0)","v":false}]
["Ist Gedämmtefläche > Fläche",{"$f":"AND(ISNUMBER(GedämmteAußenwandFläche),C161)","v":false},{"$f":"IF(B162,GedämmteAußenwandFläche>AußenwandFläche,FALSE)","v":false}]
["Ist Fläche > Wohnfläche * 5",{"$f":"AND(B161,ISNUMBER(Wohnfläche))","v":false},{"$f":"AND(B163,AußenwandFläche>Wohnfläche*5)","v":false}]
["Erüllungsgrad",{"$f":"AND(B161,B162)","v":false},{"$f":"IF( B164, MIN(1,GedämmteAußenwandFläche/AußenwandFläche),0)","v":0}]
["Fehlermeldungen Erüllungsgrad",{"$f":"B164","v":false},{"$f":"IF( B165,ChooseErrorMessage(C162,ErrorMessageAußenwanddämmungDämmungZuGroß,C163,ErrorMessageAußenwanddämmungWandflächeZuGroß),\"\")","v":""}]
[]
["Wird Aussenwanddämmung verwendet?",null,{"$f":"ErfüllungsgradAußenwandDämmung>0","v":false}]
["Ist U-Wert Wand valide?",{"$f":"AND(ISNUMBER(AußenwandFläche),AußenwandFläche>0)","v":false},{"$f":"IF(B168,AND(ISNUMBER(UWertAussenwandDämmung),UWertAussenwandDämmung>0),FALSE)","v":false}]
["Ist U-Wert Wand > 0,192?",{"$f":"C168","v":false},{"$f":"AND(B169,UWertAussenwandDämmung>0.192)","v":false}]
["Meldung Vollständig?",null,{"$f":"IF(C167,C168,TRUE)","v":true}]
["Meldung",null,{"$f":"IF(C167,ChooseValidationMessage(C170,ErrorMessageZusatzangabenAllesVollständig,ErrorMessageZusatzangabenBitteErgänzen,C169,ErrorMessageUWertAussenwandZuHoch),\"\")","v":""}]
[]
["Wird Kellerdämmung verwendet",{"$f":"OR(KellerdeckenDämmungEntsprichtAnforderung=JaNeinAuswahlJa,KellerdeckenDämmungEntsprichtAnforderung=JaNeinAuswahlNein)","v":false},{"$f":"IF(B173,KellerdeckenDämmungEntsprichtAnforderung=JaNeinAuswahlJa)","v":false}]
["Ist die Geschoßanzahl angegeben",{"$f":"AND(ISNUMBER(g_geschosse),g_geschosse>0)","v":false},{"$f":"B174","v":false}]
["2 Geschosse oder weniger",{"$f":"B174","v":false},{"$f":"IF(B175,g_geschosse<=2,FALSE)","v":false}]
["Erfüllungsgrad 1-2 Geschosse",{"$f":"B175","v":false},{"$f":"IF(AND(B176,C173,C175),2/3,0)","v":0}]
["3-4 Geschosse",{"$f":"B175","v":false},{"$f":"IF(B177,AND(g_geschosse>2,g_geschosse<=4),FALSE)","v":false}]
["Erfüllungsgrad 3-4 Geschosse",{"$f":"B177","v":false},{"$f":"IF(AND(B178,C173,C177),1/3,0)","v":0}]
["Mehr als 4 Geschosse",{"$f":"B178","v":false},{"$f":"IF(B179,g_geschosse>4,FALSE)","v":false}]
["Erfüllungsgrad 3-4 Geschosse",{"$f":"B179","v":false},{"$f":"IF(AND(B181,C173,C179),0,0)","v":0}]
["Erfüllungsgrad",{"$f":"AND(B175,B177,B176)","v":false},{"$f":"IF(B181,MAX(C176,C178,C180),0)","v":0}]
["Fehlermeldungen Erüllungsgrad",{"$f":"l_kellerdeckendaemmung","v":false},{"$f":"IF( B182,ChooseErrorMessage(NOT(C174),ErrorMessageKellerdämmungKeineGeschossanzahlangegeben,C180,ErrorMessageKellerdämmungGültigFürMaxZweiGeschosse,C179,ErrorMessageKellerdeckenDämmungNurZulässigmitMax4Geschosse),\"\")","v":""}]
[]
["Wird Kellerdeckendämmung verwendet?",null,{"$f":"ErfüllungsgradKellerdämmung>0","v":false}]
["Ist U-Wert Wand valide?",null,{"$f":"OR(AND(ISNUMBER(UWertKellerdeckenDämmungNachUnten),UWertKellerdeckenDämmungNachUnten>0),AND(ISNUMBER(UWertFußbodenaufbauten),UWertFußbodenaufbauten>0),AND(ISNUMBER(UWertKellerdeckenDämmungNachUntenAnAussenluft),UWertKellerdeckenDämmungNachUntenAnAussenluft>0))","v":false}]
["U-Wert Decken nach unten>0,24?",{"$f":"$C$185","v":false},{"$f":"IF(B186,UWertKellerdeckenDämmungNachUnten>0.24,TRUE)","v":true}]
["U-Wert Fußbodenaufbauten nach unten>0,4?",{"$f":"$C$185","v":false},{"$f":"IF(B187,UWertFußbodenaufbauten>0.4,FALSE)","v":false}]
["Für U-Wert Decken nach unten an Außenluft>0,192?",{"$f":"$C$185","v":false},{"$f":"IF(B188,UWertKellerdeckenDämmungNachUntenAnAussenluft>0.192,FALSE)","v":false}]
["Meldung Vollständig?",null,{"$f":"IF(C184,AND(C185),TRUE)","v":true}]
["Meldung",null,{"$f":"IF(C184,ChooseValidationMessage(C189,ErrorMessageZusatzangabenAllesVollständig,ErrorMessageZusatzangabenBitteErgänzen,C186,ErrorMessageUWertKellerDeckenNachUntenZuHoch,Kalkulation!C187,ErrorMessageUWertFußbodenaufbautenZuHoch,Kalkulation!C188,ErrorMessageUwertKellerDeckenNachUntenAnAussenluft),\"\")","v":""}]
[]
["Wird Sanierungsfahrplan verwendet",{"$f":"OR(WelcherSanierungsfahrplanWirdVerwendet=SanierungsfahrplanPortfolioSanierungsfahrplan,WelcherSanierungsfahrplanWirdVerwendet=SanierungsfahrplanSanierungsfahrplan,WelcherSanierungsfahrplanWirdVerwendet=SanierungsfahrplanVorOrtBeratungsBericht)","v":false},{"$f":"IF(B192,OR(WelcherSanierungsfahrplanWirdVerwendet=SanierungsfahrplanPortfolioSanierungsfahrplan,WelcherSanierungsfahrplanWirdVerwendet=SanierungsfahrplanSanierungsfahrplan,WelcherSanierungsfahrplanWirdVerwendet=SanierungsfahrplanVorOrtBeratungsBericht))","v":false}]
["Korrekte Maßnahme NichtWohngebäude",{"$f":"AND(GebäudeArt=GebäudeArtNichtwohngebäude,C192)","v":false},{"$f":"IF(B193,WelcherSanierungsfahrplanWirdVerwendet=SanierungsfahrplanSanierungsfahrplan,FALSE)","v":false}]
["Erfüllungsgrad NichtWohngebäude",{"$f":"GebäudeArt=GebäudeArtNichtwohngebäude","v":false},{"$f":"IF(AND(B194,C192,C193),1,0)","v":0}]
["Erfüllungsgrad Wohngebäude",{"$f":"GebäudeArt=GebäudeArtWohngebäude","v":false},{"$f":"IF(AND(B195,C192),1/3,0)","v":0}]
["Erfüllungsgrad",{"$f":"B192","v":false},{"$f":"IF(AND(B196,C192),MAX(C194,C195),0)","v":0}]
["Meldung",null,{"$f":"IF(C192,ChooseErrorMessage(AND(B194,NOT(C194)),ErrorMessageSanierungsfahrplanFalscheOptionNichtWohngebäude),\"\")","v":""}]
[]
["Wird Sanierungsfahrplan verwendet",null,{"$f":"ErfüllungsgradSanierungsfahrplan>0","v":false}]
["Ist Datum angegeben?",{"$f":"C199","v":false},{"$f":"IF(B200,  AND(ISNUMBER(DatumSanierungsfahrplan),DatumSanierungsfahrplan>0),FALSE)","v":false}]
["Ist Heizungstausch angegeben?",{"$f":"ISNUMBER(DatumEinbauHeizungsanlge)","v":false},{"$f":"B201","v":false}]
["Ist Sanierungsfahrplan < Heizungstausch",{"$f":"AND(C200,C201)","v":false},{"$f":"IF(B202,DatumSanierungsfahrplan<EDATE(DatumEinbauHeizungsanlge,-60),FALSE)","v":false}]
["Meldung vollständig?",null,{"$f":"IF(C199,AND(C200,C201),TRUE)","v":true}]
["Meldung",null,{"$f":"IF(C199,ChooseValidationMessage(C203,ErrorMessageZusatzangabenAllesVollständig,ErrorMessageZusatzangabenBitteErgänzen,C202,ErrorMessageSanierungsfahrplanZuAlt),\"\")","v":""}]
[]
["Wird Wärmenetz verwendet",{"$f":"ISNUMBER(AnteilWärmeenergiebedarfAusWärmenetz)","v":false},{"$f":"IF(B206,AnteilWärmeenergiebedarfAusWärmenetz>0)","v":false}]
["Erfüllungsgrad",{"$f":"B206","v":false},{"$f":"IF(AND(B207,C206),MIN(AnteilWärmeenergiebedarfAusWärmenetz/100,1),0)","v":0}]
[]
["Wird Photovoltaik verwendet",{"$f":"AND(ISNUMBER(Photovoltaik),ISNUMBER(Wohnfläche),Wohnfläche>0)","v":false},{"$f":"IF(B209,Photovoltaik>0,FALSE)","v":false},null,null,null,null,null,null,4.5]
["yy = Wohnfläche * 0,02",{"$f":"B209","v":false},{"$f":"0.02*Wohnfläche","v":0}]
["Erfüllungsgrad",{"$f":"C209","v":false},{"$f":"IF(B211, MIN(Photovoltaik/C210,1),0)","v":0}]
[]
["Ist Datum Bauantrag bzw. Bauanzeige angegeben?",{"$f":"ISNUMBER(g_bauantrag)","v":false},{"$f":"AND(B213,g_bauantrag>0)","v":false}]
["Muss AN angegeben werden?",{"$f":"WohngebäudeArt=WohngebäudeArtFreistehend","v":false},{"$f":"IF(B214,g_an>0,TRUE)","v":true}]
["Ist Gebäudeart angegeben?",{"$f":"OR(WohngebäudeArt=WohngebäudeArtFreistehend,WohngebäudeArt=WohngebäudeArtEinseitigAngebaut,WohngebäudeArt=WohngebäudeArtSonstige)","v":false},{"$f":"B215","v":false}]
["Ist HT ‘ angegeben?",{"$f":"ISNUMBER(HTStrich)","v":false},{"$f":"IF(B216,HTStrich>0)","v":false}]
["HT ‘Vorgabe ",{"$f":"B215","v":false},{"$f":"IF(B217,GetHTStrichVorgabe(WohngebäudeArt=WohngebäudeArtFreistehend,WohngebäudeArt=WohngebäudeArtEinseitigAngebaut,WohngebäudeArt=WohngebäudeArtSonstige,g_an),0)","v":0}]
["Ist HT ‘Vorgabe gültig",{"$f":"B217","v":false},{"$f":"IF(B218,C217>0,FALSE)","v":false}]
["Erfüllungsgrad vor 1.11.1977",{"$f":"AND(C218,C216,C213)","v":false},{"$f":"IF(AND(B219,g_bauantrag<DATE(1977,11,1)),GetGebäudehülleErfüllungsGradVor_1_11_1977(HTStrich,HTStrichVorgabe),0)","v":0}]
["Fehlermeldung für Erfüllungsgrad vor 1.11.1977",{"$f":"B219","v":false},{"$f":"AND(B220,g_bauantrag<DATE(1977,11,1),HTStrich>HTStrichVorgabe*1.7)","v":false}]
["Erfüllungsgrad nach 1.11.1977 und vor 31.12.1994",{"$f":"B219","v":false},{"$f":"IF(AND(B221,g_bauantrag>=DATE(1977,11,1),g_bauantrag<=DATE(1994,12,31)),GetGebäudehülleErfüllungsGradVor_31_12_1994(HTStrich,HTStrichVorgabe),0)","v":0}]
["Fehlermeldung für Erfüllungsgrad nach 1.11.1977 und vor 31.12.1994",{"$f":"B219","v":false},{"$f":"AND(B222,g_bauantrag>=DATE(1977,11,1),g_bauantrag<=DATE(1994,12,31),HTStrich>HTStrichVorgabe*1.4)","v":false}]
["Erfüllungsgrad nach 1.1.1995 und vor 31.1.2002",{"$f":"B219","v":false},{"$f":"IF(AND(B223,g_bauantrag>=DATE(1995,1,1),g_bauantrag<=DATE(2002,2,1)),GetGebäudehülleErfüllungsGradVor_31_11_2002(HTStrich,HTStrichVorgabe),0)","v":0}]
["Fehlermeldung für Erfüllungsgrad nach 1.1.1995 und vor 31.1.2002",{"$f":"B219","v":false},{"$f":"AND(B224,g_bauantrag>=DATE(1995,1,1),g_bauantrag<=DATE(2002,1,31),HTStrich>HTStrichVorgabe*1.1)","v":false}]
["Erfüllungsgrad nach 1.2.2002 und vor 31.3.2008",{"$f":"B219","v":false},{"$f":"IF(AND(B225,g_bauantrag>=DATE(2002,2,1),g_bauantrag<=DATE(2008,3,31)),GetGebäudehülleErfüllungsGradVor_31_3_2008(HTStrich,HTStrichVorgabe),0)","v":0}]
["Fehlermeldung für Erfüllungsgrad nach 1.2.2002 und vor 31.3.2008",{"$f":"B219","v":false},{"$f":"AND(B226,g_bauantrag>=DATE(2002,2,1),g_bauantrag<=DATE(2008,3,31),HTStrich>HTStrichVorgabe*0.8)","v":false}]
["Fehlermeldung für Bauantrag bzw. Bauanzeige nicht angegeben",{"$f":"AND(NOT(C213),C216)","v":false},{"$f":"B227","v":false}]
["Fehlermeldung für Gebäude Art nicht angegeben",{"$f":"NOT(C215)","v":true},{"$f":"B228","v":true}]
["Fehlermeldung für An nicht angegeben",{"$f":"NOT(C214)","v":false},{"$f":"B229","v":false}]
["Warnmeldung für zu gutem HT´",{"$f":"AND(C218,C216,C213)","v":false},{"$f":"AND(B230,HTStrich<0.15)","v":false}]
["Erfüllungsgrad",null,{"$f":"MAX(C219,C221,C223,C225)","v":0}]
["Fehlermeldung",{"$f":"C216","v":false},{"$f":"IF(B232,ChooseErrorMessage(C220,ErrroMessageValidierungGebäudehülle,C222,ErrroMessageValidierungGebäudehülle,C224,ErrroMessageValidierungGebäudehülle,C226,ErrroMessageValidierungGebäudehülle,C227,ErrroMessageValidierungGebäudehülleDatumBauantragFehlt,C228,ErrroMessageValidierungGebäudehülleGebäudeartFehlt,C229,ErrroMessageValidierungGebäudehülleANFehlt,C230,ErrroMessageValidierungGebäudehülleWertZuGünstig),\"\")","v":""}]
[]
["Ist Anlage kleiner 20kW?",{"$f":"ISNUMBER(ElektrischeLeistungKWKAnlage)","v":false},{"$f":"IF(B234,ElektrischeLeistungKWKAnlage<=20,FALSE)","v":false}]
["Ist Wohnfläche angegeben?",{"$f":"ISNUMBER(Wohnfläche)","v":false},{"$f":"IF(B235,Wohnfläche>0,FALSE)","v":false}]
["Ist Leistung angegeben?",{"$f":"ISNUMBER(LeistungKWKAnlage)","v":false},{"$f":"IF(B236,LeistungKWKAnlage>0,FALSE)","v":false}]
["Leistung/Wohnfläche",{"$f":"AND(C235,C236)","v":false},{"$f":"IF(B237,LeistungKWKAnlage/Wohnfläche,0)","v":0}]
["Erzeugte Strommenge/Leistung Anlage",{"$f":"AND(B236,B234)","v":false},{"$f":"IF(  AND(B238,C234), LeistungKWKAnlage/ElektrischeLeistungKWKAnlage,0)","v":0}]
["Erzeugte Strommenge/Leistung Anlage>8760",{"$f":"B238","v":false},{"$f":"IF(B239,C238>8760,FALSE)","v":false}]
["Erzeugte Strommenge/Leistung Anlage>7000",{"$f":"B239","v":false},{"$f":"IF(AND(B240,NOT(C239)),C238>7000,FALSE)","v":false}]
["Erzeugte Strommenge/Leistung Anlage<1000",{"$f":"B240","v":false},{"$f":"IF(B241,C238<1000,FALSE)","v":false}]
["Erfüllungsgrad Anlage kleiner 20kW",{"$f":"AND(B237,C234)","v":false},{"$f":"IF(AND(B242,NOT(C239),NOT(C241)), MIN(1,C237/15),0)","v":0}]
["Fehlermeldung Erfüllungsgrad Anlage kleiner 20kW",{"$f":"AND(C234,C236)","v":false},{"$f":"IF(B243,  ChooseErrorMessage(NOT(C235),ErrorMessageKWKWohnflächeFehlt,C240,ErrorMessageKWKStrommengeIstSehrHoch,C239,ErrorMessageKWKStrommengeKannNichtInEinemJahrErzeugtWerden,C241,ErrorMessageKWKStrommengeIstSehrNiedrig),\"\")","v":""}]
["Ist Anlage grüßer 20kW?",{"$f":"B234","v":false},{"$f":"IF(B244,ElektrischeLeistungKWKAnlage>20,FALSE)","v":false}]
["Ist Wärmebedarf angegeben?",{"$f":"ISNUMBER(Wärmeenergiebedarf)","v":false},{"$f":"IF(B245,Wärmeenergiebedarf>0,FALSE)","v":false}]
["Leistung/Wärmeenergiebedarf",{"$f":"AND(C236,C245)","v":false},{"$f":"IF(B246, LeistungKWKAnlage/Wärmeenergiebedarf,0)","v":0}]
["Erfüllungsgrad Anlage größer 20kW",{"$f":"AND(B246,C244,C245)","v":false},{"$f":"IF(B247, MIN(1,C246/0.5),0)","v":0}]
["Fehlermeldung Erfüllungsgrad Anlage größer 20kW",{"$f":"C244","v":false},{"$f":" IF(B248, IF(C245,\"\",ErrorMessageKWKWärmeenergiebedarfFehlt),\"\")","v":""}]
["Erfüllungsgrad",null,{"$f":"MAX(C242,C247)","v":0}]
["Fehlermeldung",null,{"$f":"CONCATENATE(C243,C248)","v":""}]
[]
["Wird KWK verwendet",null,{"$f":"ErfüllungsgradKWK>0","v":false}]
["Ist Effizienzangabe valide?",null,{"$f":"OR(KWKGerärIstHochEffizient=JaNeinAuswahlJa,KWKGerärIstHochEffizient=JaNeinAuswahlNein)","v":false}]
["Ist Wirkungsgrad valide?",null,{"$f":"AND(ISNUMBER(WirkungsgradKWKAnlage),WirkungsgradKWKAnlage>0)","v":false}]
["Ist Anlage hocheffizient?",{"$f":"C253","v":false},{"$f":"IF(B255,KWKGerärIstHochEffizient=JaNeinAuswahlJa,FALSE)","v":false}]
["ist Wirkungsgrad <80%",{"$f":"C254","v":false},{"$f":"IF(B256,WirkungsgradKWKAnlage<0.8,FALSE)","v":false}]
["Ist ThermischeLeistung valide",{"$f":"AND(C252,ISNUMBER(ThermischeLeistungKWKAnlage))","v":false},{"$f":"AND(B257,ThermischeLeistungKWKAnlage>0)","v":false}]
["Sind die Angaben vollständig?",null,{"$f":"AND(C253,C254)","v":false}]
["Meldung",null,{"$f":"IF(C252,ChooseValidationMessage(C258,ErrorMessageZusatzangabenAllesVollständig,ErrorMessageZusatzangabenBitteErgänzen,NOT(C255),ErrorMessageKWKNichtEffizient,C256,ErrorMessageKWKGeringerWirkungsgrad,NOT(C257),ErrorMessageZusatzangabeThermischeLeistungKWKAnlageFehlt),\"\")","v":""}]
[]
["Wird Senkung Wärmeenergiedarf verwendet?",{"$f":"ISNUMBER(WärmeenergiebedarfSenkung)","v":false},{"$f":"IF(B261,WärmeenergiebedarfSenkung>0,FALSE)","v":false}]
["Erfüllungsgrad",{"$f":"C261","v":false},{"$f":"IF(B262,IF(WärmeenergiebedarfSenkung>15,1,WärmeenergiebedarfSenkung/15),0)","v":0}]
[]
["Wird hocheffiziente Wärmerückgewinnung verwendet?",{"$f":"OR(ISNUMBER(RückgewonneneWärmemenge),ISNUMBER(MittlererBetriebstvolumenstrom))","v":true},{"$f":"IF(B264,OR(RückgewonneneWärmemenge>0,MittlererBetriebstvolumenstrom>0),FALSE)","v":false}]
["Ist der Wärmeenergiebedarf angegeben?",{"$f":"AND(ISNUMBER(Wärmeenergiebedarf),Wärmeenergiebedarf>0)","v":false},{"$f":"IF(B265, TRUE,FALSE)","v":false}]
["Wird Rückgewonene Wärme verwendet",{"$f":"ISNUMBER(RückgewonneneWärmemenge)","v":true},{"$f":"IF(B266,RückgewonneneWärmemenge>0,FALSE)","v":false}]
["Wird Betriebsvolumenstrom verwendet?",{"$f":"ISNUMBER(MittlererBetriebstvolumenstrom)","v":false},{"$f":"IF(B267,MittlererBetriebstvolumenstrom>0,FALSE)","v":false}]
["Rückgewonnene Wärme/Wärmeenrgiebedarf",{"$f":"AND(C264,C265)","v":false},{"$f":"IF(B268,IF(C266,RückgewonneneWärmemenge,MittlererBetriebstvolumenstrom*13)/Wärmeenergiebedarf,0)","v":0}]
["Ist mittlere Betriebsvolumenstrom > 9.000",{"$f":"B267","v":false},{"$f":"IF(AND(B269,NOT(C266)),MittlererBetriebstvolumenstrom>9000,FALSE)","v":false}]
["Erüllungsgrad",{"$f":"B268","v":false},{"$f":"MIN(IF(AND(B270,NOT(C269)),IF(BerechneteRückgewonnenWärmemenge>15,1,BerechneteRückgewonnenWärmemenge/15),0)*100,1)","v":0}]
["Meldung",{"$f":"AND(B269,C269)","v":false},{"$f":"IF(B271,ErrorMessageHocheffizienteWärmerückgewinnungBetriebsstromZuGroß,\"\")","v":""}]
[]
["Wird hocheffiziente Wärmerückgewinnung verwendet?",null,{"$f":"ErfüllungsgradRückgewonneWärmemenge>0","v":false}]
["Ist Wärmerückgewinnungsgrad  > 70%",{"$f":"$C$273","v":false},{"$f":"AND(B274,OR(WärmerückgewinnungsgradIst70Prozent=JaNeinAuswahlJa,WärmerückgewinnungsgradIst70Prozent=JaNeinAuswahlNein))","v":false}]
["Ist Leistungszahl > 10",{"$f":"$C$273","v":false},{"$f":"AND(B275,OR(WärmerückgewinnungLeistungszahlIstGrößer10=JaNeinAuswahlJa,WärmerückgewinnungLeistungszahlIstGrößer10=JaNeinAuswahlNein))","v":false}]
["Ist  pauschalisiert",null,{"$f":"NOT(AND(ISNUMBER(RückgewonneneWärmemenge   ),RückgewonneneWärmemenge>0))","v":true}]
["Sind pausschale Angaben vollständig?",null,{"$f":"AND(OR(WärmerückgewinnungBelüfteteNettogrundfläche=JaNeinAuswahlJa,WärmerückgewinnungBelüfteteNettogrundfläche=JaNeinAuswahlNein),OR(WärmerückgewinnungLüftungsNennvolumenstrom=JaNeinAuswahlJa,WärmerückgewinnungLüftungsNennvolumenstrom=JaNeinAuswahlNein),OR(WärmerückgewinnungMittlererBetriebsvolumenstrom=JaNeinAuswahlJa,WärmerückgewinnungMittlererBetriebsvolumenstrom=JaNeinAuswahlNein))","v":false}]
["Sind pauschale Angaben erfüllt?",null,{"$f":"AND(WärmerückgewinnungBelüfteteNettogrundfläche=JaNeinAuswahlJa,WärmerückgewinnungLüftungsNennvolumenstrom=JaNeinAuswahlJa,WärmerückgewinnungMittlererBetriebsvolumenstrom=JaNeinAuswahlJa)","v":false}]
["Sind pflicht Angaben vollständig?",null,{"$f":"AND(C274,C275)","v":false}]
["Sind die Angaben vollständig?",null,{"$f":"IF(C276,AND(C277,C279),C279)","v":false}]
["Meldung",null,{"$f":"IF(C273,ChooseValidationMessage(C280,ErrorMessageZusatzangabenAllesVollständig,ErrorMessageZusatzangabenBitteErgänzen,AND(C276,NOT(C278)),ErrorMessageHocheffizienteWärmerückgewinnungNichtAlleBedingungenSindErfüllt),\"\")","v":""}]
[]
[]
["Wird Nutzung Abwärme verwendet?",{"$f":"AND(ISNUMBER(RückgewonneAbwärmemenge),ISNUMBER(StromaufwandAbwärmenutzungsaufwand))","v":false},{"$f":"IF(B284,AND(RückgewonneAbwärmemenge>0,StromaufwandAbwärmenutzungsaufwand>0),FALSE)","v":false}]
["Ist Wärmeennergiebedarf angegeben?",{"$f":"ISNUMBER(Wärmeenergiebedarf)","v":false},{"$f":"IF(B285,Wärmeenergiebedarf>0,FALSE)","v":false}]
["Abwärmemenge – 3 x Stromaufwand ",{"$f":"C284","v":false},{"$f":"IF(B286,RückgewonneAbwärmemenge -3 * StromaufwandAbwärmenutzungsaufwand,0)","v":0}]
["Abwärmemenge – 3 x Stromaufwand / Wärmeenergiebedarf",{"$f":"AND(B285,B286)","v":false},{"$f":"MAX(IF(B287,C286/Wärmeenergiebedarf,0),0)","v":0}]
["Ist Stromaufwand > 10% Abwärmemenge",{"$f":"B284","v":false},{"$f":"IF(B288,StromaufwandAbwärmenutzungsaufwand>0.1*RückgewonneAbwärmemenge,FALSE)","v":false}]
[]
["Erfüllungsgrad",{"$f":"B287","v":false},{"$f":"MIN(1,IF(AND(B290,NOT(C288)),IF(C287>0.15,1,C287/0.15),0))","v":0}]
["Meldung",{"$f":"B288","v":false},{"$f":"IF(AND(B291,C288),ErrorMessageNutzungAbwärmeStromAufwandZuGroß,\"\")","v":""}]

{"sheet":"WP","index":8,"n_rows":180,"n_cols":30,"rows_kept":180,"cut":false,"hidden":true,"merged":[[19,16,19,17],[1,1,1,30],[2,1,2,30],[11,3,11,14],[11,15,11,17],[11,18,11,28],[84,16,84,17],[21,16,21,17],[43,25,43,28],[46,1,46,15],[46,16,46,30],[47,1,49,15],[47,16,49,30],[66,1,66,30],[67,1,67,30],[76,3,76,14],[76,15,76,17],[76,18,76,28],[86,16,86,17],[111,3,111,5],[113,3,113,5],[118,4,121,12],[118,13,121,13],[118,14,119,16],[118,17,121,17],[126,24,127,26],[126,27,127,28],[127,14,128,16],[125,23,128,23],[123,3,124,4],[125,4,128,12],[125,13,128,13],[125,14,126,16],[125,17,128,17],[125,18,128,22],[118,18,121,22],[118,23,121,23],[119,24,120,26],[119,27,120,28],[120,14,121,16],[130,1,133,4],[130,5,133,5],[130,6,131,22],[130,23,133,24],[131,25,132,28],[131,29,132,29],[132,6,133,22],[137,25,137,28],[146,7,146,8],[146,12,146,13],[146,19,146,20],[146,21,146,26],[175,15,177,28],[180,2,182,14],[180,15,182,27],[154,22,154,23],[154,24,154,26],[156,24,156,26],[175,2,177,9],[175,10,177,14],[154,17,154,18],[150,3,150,5],[150,13,150,15],[150,17,150,18],[154,7,154,9],[154,13,154,16]]}
[]
[null,"Wärmepumpe "]
[null,"Nachweis des Eigentümers nach § 20 EWärmeG"]
[]
[null,"Hinweis: Diese Vorlage dient der Nachweisführung und ist der unteren Baurechtsbehörde spätestens 18 Monate nach Inbetriebnahme der neuen"]
[null,"Heizanlage vorzulegen. Die erste Seite ist vom Eigentümer auszufüllen und zu unterschreiben, die Folgeseiten vom Sachkundigen."]
[]
[]
[null,null,null,"Anschrift des Gebäudes (für das der Nachweis geführt wird)"]
[]
[null,null,null,"Straße und Hausnummer",null,null,null,null,null,null,null,null,null,null,null,"Postleitzahl",null,null,"Ort"]
[null,null,null,{"$f":"c_strasse_objekt","v":0},null,null,null,null,null,null,null,null,null,null,null,{"$f":"c_plz_objekt","v":0},null,null,{"$f":"c_ort_objekt","v":0}]
[]
[]
[]
[null,null,"Wärmepumpe - Wohngebäude und Nichtwohngebäude"]
[]
[null,null,null,"Hinweis: Bitte zutreffende Angaben ankreuzen und entsprechende Werte eintragen. "]
[]
[null,null,null,{"$f":"IF(WirdWärmepumpeVerwendet=WärmepumpeTypeElektrisch,\"X\",\"\")","v":""}," Elektrisch angetriebene Wärmepumpe",null,null,null,null,null,null,null,null,null,null,null,{"$f":"IF(D20=\"X\",JahresarbeitszahlJahresHeizzahl,\"\")","v":""},null," Jahresarbeitszahl (JAZ) *"]
[null,null,null,null," oder "]
[null,null,null,{"$f":"IF(WirdWärmepumpeVerwendet=WärmepumpeTypeBrennstoff,\"X\",\"\")","v":""}," Mit Brennstoffen betriebene Wärmepumpe",null,null,null,null,null,null,null,null,null,null,null,{"$f":"IF(D22=\"X\",JahresarbeitszahlJahresHeizzahl,\"\")","v":""},null," Jahresheizzahl (JHZ) *",null,null,null,null,null," "]
[null,null,null,"*) in die Wärmepumpe integrierte Ergänzungsheizungen (z.B. Elektroheizstab) sind in die JAZ bzw. JHZ einzuberechnen"]
[]
[null,null,null,"Erfüllungsnachweis nach § 5 Abs. 2 und § 13 Abs. 1 EWärmeG"]
[]
[null,null,null,"Hinweis: Deckt die elektrische oder mit Brennstoffen betriebene Wärmepumpe den gesamten jährlichen Wärmeenergiebedarf,"]
[null,null,null,"oder beträgt bei einer elektrisch angetriebenen Wärmepumpe die thermische Leistung mindestens 25 % der Gebäudeheizlast,"]
[null,null,null," sind die Anforderungen des EWärmeG vollständig erfüllt (Erfüllungsgrad = 100 %).  "]
[null,null,null,"Eine anteilige Erfüllung kann angerechnet werden (§ 11 oder § 18 EWärmeG)."]
[]
[null,null,null,"1.","Es wird eine elektrisch angetriebene Wärmepumpe mit einer Jahresarbeitszahl von "]
[null,null,null,null,"mindestens 2,50 bzw. eine mit Brennstoffen betriebene Wärmepumpe mit einer "]
[null,null,null,null,"Jahresheizzahl von mindestens 1,20 betrieben, mit der die Anforderungen des "]
[null,null,null,null,"EWärmeG vollständig erfüllt werden (Erfüllungsgrad = 100 %).",null,null,null,null,null,null,null,null,null,null,null,null,null,null,null,null,null,null,null,null,{"$f":"IF(ErfüllungsgradWärmepumpe*100=100,\"X\",\"\")","v":""}]
[null,null,null,null,"oder"]
[null,null,null,"2.","Es wird eine elektrisch angetriebene Wärmepumpe mit einer Jahresarbeitszahl von "]
[null,null,null,null,"mindestens 2,50 bzw. eine mit Brennstoffen betriebene Wärmepumpe mit einer "]
[null,null,null,null,"Jahresheizzahl von mindestens 1,20 betrieben, mit der die Anforderungen des "]
[null,null,null,null,"EWärmeG anteilig erfüllt werden (Erfüllungsgrad weniger als 100 %).",null,null,null,null,null,null,null,null,null,null,null,null,null,null,null,null,null,null,null,null,{"$f":"IF(ErfüllungsgradWärmepumpe*100<100,\"X\",\"\")","v":"X"}]
[]
[null,null,"Erfüllungsgrad (bitte immer angeben, muss mit den Angaben des Sachkundigen übereinstimmen)"]
[]
[null,null,"Die installierte und betriebene Wärmepumpe erfüllt die Anforderungen des EWärmeG zu:",null,null,null,null,null,null,null,null,null,null,null,null,null,null,null,null,null,null,null,null,null,null,{"$f":"ErfüllungsgradWärmepumpe*100","v":0},null,null,null," %"]
[]
[]
[null,"Ort, Datum",null,null,null,null,null,null,null,null,null,null,null,null,null,null,"Unterschrift des Eigentümers"]
[]
[]
[]
[]
[]
[]
[]
[]
[]
[]
[]
[]
[]
[]
[]
[]
[]
[]
[]
[null,"Wärmepumpe "]
[null,"Bestätigung des Sachkundigen nach § 20 EWärmeG"]
[]
[null,"Hinweis: Diese Vorlage dient der Nachweisführung und ist vom Eigentümer bei der unteren Baurechtsbehörde spätestens 18 Monate nach "]
[null,"Inbetriebnahme der neuen Heizanlage vorzulegen. "]
[]
[]
[null,null,null,"Anschrift des Gebäudes (für das der Nachweis geführt wird)"]
[]
[null,null,null,"Straße und Hausnummer",null,null,null,null,null,null,null,null,null,null,null,null,"Postleitzahl",null,null,"Ort"]
[null,null,null,{"$f":"c_strasse_objekt","v":0},null,null,null,null,null,null,null,null,null,null,null,{"$f":"c_plz_objekt","v":0},null,null,{"$f":"c_ort_objekt","v":0}]
[]
[]
[]
[null,null,"Wärmepumpe  - Wohngebäude und Nichtwohngebäude"]
[]
[null,null,null,"Hinweis: Bitte zutreffende Angaben ankreuzen und entsprechende Werte eintragen. "]
[]
[null,null,null,{"$f":"IF(WirdWärmepumpeVerwendet=WärmepumpeTypeElektrisch,\"X\",\"\")","v":""}," Elektrisch angetriebene Wärmepumpe",null,null,null,null,null,null,null,null,null,null,null,{"$f":"IF(D85=\"X\",JahresarbeitszahlJahresHeizzahl,\"\")","v":""},null," Jahresarbeitszahl (JAZ) *"]
[null,null,null,null," oder"]
[null,null,null,{"$f":"IF(WirdWärmepumpeVerwendet=WärmepumpeTypeBrennstoff,\"X\",\"\")","v":""}," Mit Brennstoffen betriebene Wärmepumpe",null,null,null,null,null,null,null,null,null,null,null,{"$f":"IF(D87=\"X\",JahresarbeitszahlJahresHeizzahl,\"\")","v":""},null," Jahresheizzahl (JHZ) *"]
[null,null,null,"*) in die Wärmepumpe integrierte Ergänzungsheizungen (z.B. Elektroheizstab) sind in die JAZ bzw. JHZ einzuberechnen"]
[]
[null,null,null,"Erfüllungsnachweis nach § 5 Abs. 2 und § 13 Abs. 1 EWärmeG"]
[]
[null,null,"A.","Vollständige Erfüllung (Monoenergetische Anlage)"]
[]
[null,null,null,"Hinweis: Deckt die betriebene Wärmepumpe den gesamten jährlichen Wärmeenergiebedarf, sind die Anforderungen des"]
[null,null,null,"EWärmeG vollständig erfüllt (Erfüllungsgrad = 100 %). "]
[]
[null,null,null,"Es wird eine elektrisch angetriebene Wärmepumpe mit einer Jahresarbeitszahl von   "]
[null,null,null,"mindestens 2,50 oder eine mit Brennstoffen betriebene Wärmepumpe mit einer Jahres-"]
[null,null,null,"heizzahl von mindestens 1,20 betrieben, die den gesamten jährlichen Wärmeenergie-"]
[null,null,null,"bedarf deckt."]
[null,null,null,"Die Anforderungen des EWärmeG sind damit vollständig erfüllt (Erfüllungsgrad = 100 %).",null,null,null,null,null,null,null,null,null,null,null,null,null,null,null,null,null,null,null,null,null,null,{"$f":"IF(WärmepumpeWärmemenge=Wärmeenergiebedarf,\"X\",\"\")","v":"X"}]
[]
[null,null,null,"oder"]
[]
[null,null,null,"Es wird eine elektrisch angetriebene Wärmepumpe mit einer Jahresarbeitszahl von   "]
[null,null,null,"mindestens 2,50 betrieben, deren thermische Leistung mindestens 25 % der Gebäudeheizlast beträgt."]
[null,null,null,"(potentielle Heizleistung bei Normaußentemperatur am Standort sowie 35°C Vorlauftemperatur)."]
[null,null,null,"Die Anforderungen des EWärmeG sind damit vollständig erfüllt (Erfüllungsgrad = 100 %).",null,null,null,null,null,null,null,null,null,null,null,null,null,null,null,null,null,null,null,null,null,null,{"$f":"IF(DeckungsanteilElWpHeizlast,\"X\",\"\")","v":""}]
[]
[null,null,"B.","Anteilige Erfüllung (Wärmepumpe und weitere(r) Wärmeerzeuger (hybride Wärmepumpe))"]
[]
[null,null,null,{"$f":"IF(WärmepumpeWärmemenge=Wärmeenergiebedarf,\"\",Wärmeenergiebedarf)","v":""},null,null," kWh jährlicher Wärmeenergiebedarf des Gebäudes (§ 3 Nr. 4 EWärmeG)"]
[]
[null,null,null,{"$f":"IF(WärmepumpeWärmemenge=Wärmeenergiebedarf,\"\",WärmepumpeWärmemenge)","v":""},null,null," kWh von der Wärmepumpe erzeugte jährliche Wärmemenge"]
[]
[null,null,null,"Hinweis: Berechnung a. gilt für elektrisch angetriebene Wärmepumpen (JAZ = Jahresarbeitszahl), Berechnung b. gilt für mit"]
[null,null,null,"Brennstoffen betriebene Wärmepumpen (JHZ = Jahresheizzahl)."]
[]
[null,null,null,"a.","anrechenbare, von der Wärmepumpe\ngelieferte erneuerbare Wärmemenge ",null,null,null,null,null,null,null,null,"  = ","JAZ - 1,8",null,null,"x","von der Wärmepumpe erzeugte jährliche Wärmemenge (kWh)",null,null,null,null,"="]
[null,null,null,null,null,null,null,null,null,null,null,null,null,null,null,null,null,null,null,null,null,null,null,null,{"$f":"IF(WärmepumpeWärmemenge=Wärmeenergiebedarf,\"\",IF(WirdElektrischeWärmepumpeVerwendet=TRUE,ErneuerbareWärmeElektrischeWärmepumpe,\"\"))","v":""},null,null," kWh"]
[null,null,null,null,null,null,null,null,null,null,null,null,null,null,"JAZ"]
[]
[]
[null,null,null,"oder "]
[]
[null,null,null,"b.","anrechenbare, von der Wärmepumpe\ngelieferte erneuerbare Wärmemenge ",null,null,null,null,null,null,null,null,"  = ","JHZ - 1,0",null,null,"x","von der Wärmepumpe erzeugte jährliche Wärmemenge (kWh)",null,null,null,null,"="]
[null,null,null,null,null,null,null,null,null,null,null,null,null,null,null,null,null,null,null,null,null,null,null,null,{"$f":"IF(WärmepumpeWärmemenge=Wärmeenergiebedarf,\"\",IF(WirdBrennstoffWärmepumpeVerwendet=TRUE,ErneuerbareWärmeBrennstoffWärmepumpe,\"\"))","v":""},null,null," kWh"]
[null,null,null,null,null,null,null,null,null,null,null,null,null,null,"JHZ"]
[]
[]
[null,"erreichter\nErfüllungsgrad",null,null,null,"=","anrechenbare, von der Wärmepumpe gelieferte erneuerbare Wärmemenge (kWh)",null,null,null,null,null,null,null,null,null,null,null,null,null,null,null,null,"x 100 % ="]
[null,null,null,null,null,null,null,null,null,null,null,null,null,null,null,null,null,null,null,null,null,null,null,null,null,{"$f":"IF(WärmepumpeWärmemenge<Wärmeenergiebedarf,ErfüllungsgradWärmepumpe*100,\"\")","v":""},null,null,null," %"]
[null,null,null,null,null,null,"jährlicher Wärmeenergiebedarf des Gebäudes (kWh) x 0,15"]
[]
[]
[null,null,"Erfüllungsgrad (bitte immer angeben)"]
[]
[null,null,"Die installierte und betriebene Wärmepumpe erfüllt die Anforderungen des EWärmeG zu:",null,null,null,null,null,null,null,null,null,null,null,null,null,null,null,null,null,null,null,null,null,null,{"$f":"ErfüllungsgradWärmepumpe*100","v":0},null,null,null," %"]
[]
[]
[null,null,"Wärmepumpe - Wohngebäude und Nichtwohngebäude"]
[]
[null,null,null,"Hinweis: Bitte zutreffende Angaben ankreuzen und entsprechende Werte und Daten eintragen. "]
[]
[null,null,null,"Wärmequelle"]
[]
[null,null,null,{"$f":"IF(WärmepumpeWärmequelle=WärmepumpeWärmequelleErdreich,\"X\",\"\")","v":""}," Erdreich",null,null,"oder",null,{"$f":"IF(WärmepumpeWärmequelle=WärmepumpeWärmequelleLuft,\"X\",\"\")","v":""}," Luft",null,"oder",null,{"$f":"IF(WärmepumpeWärmequelle=WärmepumpeWärmequelleGrundwasser,\"X\",\"\")","v":""}," Grundwasser",null,null,null,"oder",null,null,null,null,null,null,null," Andere"]
[]
[null,null,null,"Leistungsziffer(n) (COP) der Wärmepumpe aus Prüfstandsmessungen für "]
[]
[null,null,null,{"$f":"IF(D147=\"X\",WärmepumpeCOP,\"\")","v":""},null,null," Sole/Wasser B0/W35",null,null,null,null,null,null,"    oder",null,null,null,{"$f":"IF(O147=\"X\",WärmepumpeCOP,\"\")","v":""},null," Wasser/Wasser W10/W35"]
[]
[null,null,null,"oder"]
[]
[null,null,null,"Luft/Wasser ",null,null,null,{"$f":"IF(WärmepumpeWärmequelle=WärmepumpeWärmequelleLuft,WärmepumpeCOP,\"\")","v":""},null,null," A-7/W35",null,null,"    und ",null,null,null,{"$f":"IF(WärmepumpeWärmequelle=WärmepumpeWärmequelleLuft,WärmepumpeCOPWertA2,\"\")","v":""},null," A2/W35",null,null,"und",null,{"$f":"IF(WärmepumpeWärmequelle=WärmepumpeWärmequelleLuft,WärmepumpeCOPWertA10,\"\")","v":""},null,null," A10/W35"]
[]
[null,null,null,"Auslegungstemperatur des Heizungssystems in °C (maximale Vorlauftemperatur):",null,null,null,null,null,null,null,null,null,null,null,null,null,null,null,null,null,null,null,null,{"$f":"WärmepumpeAuslegungstemperatur","v":0}]
[]
[]
[]
[null,null,null,"Ich bin Sachkundiger im Sinne des § 3 Nr. 11 EWärmeG als"]
[]
[null,null,null,null,{"$f":"IF(Qualifikation=SachkundigerBundesOderLandesRecht,\"X\",\"\")","v":""}," Berechtigter nach Bundes- oder Landesrecht zur Ausstellung von Energieausweisen,"]
[]
[null,null,null,null,{"$f":"IF(Qualifikation=SachkundigerZulassungspflichtigesGewerbe,\"X\",\"\")","v":""}," Person, die für ein zulassungspflichtiges Bau-, Ausbau- oder anlagentechnisches Gewerbe oder für "]
[null,null,null,null,null," das Schornsteinfegerwesen die Voraussetzungen zur Eintragung in die Handwerksrolle erfüllt,"]
[]
[null,null,null,null,{"$f":"IF(Qualifikation=SachkundigerHandwerksmeister,\"X\",\"\")","v":""}," Handwerksmeister der zulassungsfreien Handwerke dieser Bereiche,"]
[]
[null,null,null,null,{"$f":"IF(Qualifikation=SachkundigerOhneMeistertitel,\"X\",\"\")","v":""}," Person, die aufgrund ihrer Ausbildung oder ihres beruflichen Werdegangs berechtigt ist, ein solches "]
[null,null,null,null,null," Handwerk ohne Meistertitel selbständig auszuüben."]
[]
[null,null,null,"Hinweis: Ordnungswidrig handelt, wer in den Nachweisen vorsätzlich oder fahrlässig falsche Angaben macht (§ 23 EWärmeG)."]
[]
[null,null,"Name",null,null,null,null,null,null,null,null,"Vorname",null,null,null,null,null,"Firma des Sachkundigen"]
[null,null,{"$f":"c_nachname_sachkundiger","v":0},null,null,null,null,null,null,null,{"$f":"c_vorname_Sachkundiger","v":0},null,null,null,null,{"$f":"c_firmenname_sachkundiger","v":0}]
[]
[]
[]
[null,null,"Ort, Datum",null,null,null,null,null,null,null,null,null,null,null,null,null,null,"Unterschrift des Sachkundigen"]

{"sheet":"SOL","index":9,"n_rows":162,"n_cols":28,"rows_kept":162,"cut":false,"hidden":true,"merged":[[138,23,138,26],[157,2,159,9],[157,10,159,14],[157,15,159,27],[162,2,164,14],[162,15,164,27],[131,5,134,8],[131,9,134,9],[131,10,132,19],[131,20,134,22],[132,23,133,26],[132,27,133,27],[133,10,134,19],[109,20,112,22],[110,23,111,26],[110,27,111,27],[111,14,112,19],[121,3,121,5],[123,3,123,5],[89,15,89,16],[98,3,98,5],[98,15,98,16],[100,3,100,5],[100,15,100,16],[109,9,112,12],[109,13,112,13],[109,14,110,19],[87,15,87,16],[21,15,21,16],[32,12,32,13],[51,23,51,26],[54,1,54,14],[54,15,54,28],[55,1,57,14],[55,15,57,28],[69,1,69,28],[70,1,70,28],[79,3,79,14],[79,15,79,17],[79,18,79,26],[19,15,19,16],[1,1,1,28],[2,1,2,28],[11,3,11,14],[11,15,11,17],[11,18,11,26]]}
[]
[null,"Solarthermische Anlage "]
[null,"Nachweis des Eigentümers nach § 20 EWärmeG"]
[]
[null,"Hinweis: Diese Vorlage dient der Nachweisführung und ist der unteren Baurechtsbehörde spätestens 18 Monate nach Inbetriebnahme der neuen"]
[null,"Heizanlage vorzulegen. Die erste Seite ist vom Eigentümer auszufüllen und zu unterschreiben, die Folgeseiten vom Sachkundigen."]
[]
[]
[null,null,null,"Anschrift des Gebäudes (für das der Nachweis geführt wird)"]
[]
[null,null,null,"Straße und Hausnummer",null,null,null,null,null,null,null,null,null,null,null,"Postleitzahl",null,null,"Ort"]
[null,null,null,{"$f":"c_strasse_objekt","v":0},null,null,null,null,null,null,null,null,null,null,null,{"$f":"c_plz_objekt","v":0},null,null,{"$f":"c_ort_objekt","v":0}]
[]
[]
[]
[null,null,"Solarthermie - Wohngebäude und Nichtwohngebäude"]
[]
[null,null,null,"Hinweis: Bitte zutreffende Angaben ankreuzen und entsprechende Werte eintragen. "]
[]
[null,null,null,{"$f":"IF(l_kollektortyp=TRUE,\"X\",\"\")","v":"X"}," Flachkollektor",null,null,null,null,null,null,null,null,null,null,{"$f":"IF(l_kollektortyp=TRUE,g_kollektorfl,\"\")","v":0},null," m2 installierte Kollektorfläche (Apertur)"]
[null,null,null,null," oder"]
[null,null,null,{"$f":"IF(l_kollektortyp=FALSE,\"X\",\"\")","v":""}," Vakuumröhrenkollektor",null,null,null,null,null,null,null,null,null,null,{"$f":"IF(l_kollektortyp=FALSE,g_kollektorfl,\"\")","v":""},null," m2 installierte Kollektorfläche (Apertur)"]
[]
[null,null,"A.","Pauschalierter Erfüllungsnachweis nach § 7 oder § 14 EWärmeG"]
[]
[null,null,null,"Hinweis: Die zur vollständigen Erfüllung (Erfüllungsgrad = 100 %) des EWärmeG erforderliche Kollektorfläche errechnet sich durch Multi-"]
[null,null,null,"plikation der Wohnfläche mit dem Faktor 0,07 (Ein- und Zweifamilienhäuser) oder 0,06 (Mehrfamilienhäuser) bzw. der Nettogrundfläche "]
[null,null,null,"mit dem Faktor 0,06 (Nichtwohngebäude). Kommen Vakuumröhrenkollektoren zum Einsatz, verringert sich die erforderliche Kollektorfläche"]
[null,null,null,"um 20 %. Eine anteilige Erfüllung kann angerechnet werden (§ 11 oder § 18 EWärmeG)."]
[]
[null,null,null,"1.","Die installierte Kollektorfläche entspricht mindestens der erforderlichen Kollektorfläche."]
[null,null,null,null,"Damit sind die Anforderung des EWärmeG vollständig erfüllt (Erfüllungsgrad = 100 %).",null,null,null,null,null,null,null,null,null,null,null,null,null,null,null,null,null,null,{"$f":"IF(IstErfüllungsgradBasierendAufSolarertrag,\"\",IF(ErfüllungsgradSolarthermie*100=100,\"X\",\"\"))","v":""}]
[null,null,null,null,"oder "]
[null,null,null,"2.","Die installierte Kollektorfläche ist kleiner als die erforderliche Kollektorfläche."]
[null,null,null,null,"Damit sind die Anforderung des EWärmeG anteilig erfüllt (Erfüllungsgrad weniger als 100 %).",null,null,null,null,null,null,null,null,null,null,null,null,null,null,null,null,null,null,{"$f":"IF(IstErfüllungsgradBasierendAufSolarertrag,\"\",IF(ErfüllungsgradSolarthermie*100<100,\"X\",\"\"))","v":"X"}]
[]
[null,null,"oder"]
[]
[null,null,"B.","Berechnung im Einzelfall nach §§ 5 Abs. 1, 6 Abs.1 oder 13 Abs. 1 EWärmeG"]
[]
[null,null,null,"Hinweis: Beträgt der Anteil des Solarertrags am jährlichen Wärmeenergiebedarf mindestens 15 %, sind die Anforderungen des EWärmeG"]
[null,null,null,"vollständig erfüllt (Erfüllungsgrad = 100 %). Eine anteilige Erfüllung kann angerechnet werden (§ 11 oder § 18 EWärmeG)."]
[]
[null,null,null,"1.","Der Solarertrag deckt mindestens 15 % des jährlichen Wärmeenergiebedarfs."]
[null,null,null,null,"Damit sind die Anforderung des EWärmeG vollständig erfüllt (Erfüllungsgrad = 100 %).",null,null,null,null,null,null,null,null,null,null,null,null,null,null,null,null,null,null,{"$f":"IF(IstErfüllungsgradBasierendAufSolarertrag,IF(ErfüllungsgradSolarthermie*100=100,\"X\",\"\"),\"\")","v":""}]
[null,null,null,null,"oder "]
[null,null,null,"2.","Der Solarertrag deckt weniger als 15 % des jährlichen Wärmeenergiebedarfs."]
[null,null,null,null,"Damit sind die Anforderung des EWärmeG anteilig erfüllt (Erfüllungsgrad weniger als 100 %).",null,null,null,null,null,null,null,null,null,null,null,null,null,null,null,null,null,null,{"$f":"IF(IstErfüllungsgradBasierendAufSolarertrag,IF(ErfüllungsgradSolarthermie*100<100,\"X\",\"\"),\"\")","v":""}]
[]
[null,null,"Erfüllungsgrad (bitte immer angeben, muss mit den Angaben des Sachkundigen übereinstimmen)"]
[]
[null,null,"Die installierte und betriebene solarthermische Anlage erfüllt die Anforderungen des EWärmeG zu:",null,null,null,null,null,null,null,null,null,null,null,null,null,null,null,null,null,null,null,null,{"$f":"ErfüllungsgradSolarthermie*100","v":0},null,null,null," %"]
[]
[]
[null,"Ort, Datum",null,null,null,null,null,null,null,null,null,null,null,null,null,"Unterschrift des Eigentümers"]
[]
[]
[]
[]
[]
[]
[]
[]
[]
[]
[]
[]
[]
[]
[null,"Solarthermische Anlage "]
[null,"Bestätigung des Sachkundigen nach § 20 EWärmeG"]
[]
[null,"Hinweis: Diese Vorlage dient der Nachweisführung und ist vom Eigentümer bei der unteren Baurechtsbehörde spätestens 18 Monate nach "]
[null,"Inbetriebnahme der neuen Heizanlage vorzulegen. "]
[]
[]
[null,null,null,"Anschrift des Gebäudes (für das der Nachweis geführt wird)"]
[]
[null,null,null,"Straße und Hausnummer",null,null,null,null,null,null,null,null,null,null,null,"Postleitzahl",null,null,"Ort"]
[null,null,null,{"$f":"c_strasse_objekt","v":0},null,null,null,null,null,null,null,null,null,null,null,{"$f":"c_plz_objekt","v":0},null,null,{"$f":"c_ort_objekt","v":0}]
[]
[]
[]
[null,null,"Solarthermie - Wohngebäude und Nichtwohngebäude"]
[]
[null,null,null,"Hinweis: Bitte zutreffende Angaben ankreuzen und entsprechende Werte eintragen. "]
[]
[null,null,null,{"$f":"IF(l_kollektortyp=TRUE,\"X\",\"\")","v":"X"}," Flachkollektor",null,null,null,null,null,null,null,null,null,null,{"$f":"IF(l_kollektortyp=TRUE,g_kollektorfl,\"\")","v":0},null," m2 installierte Kollektorfläche (Apertur)"]
[null,null,null,null," oder"]
[null,null,null,{"$f":"IF(l_kollektortyp=FALSE,\"X\",\"\")","v":""}," Vakuumröhrenkollektor",null,null,null,null,null,null,null,null,null,null,{"$f":"IF(l_kollektortyp=FALSE,g_kollektorfl,\"\")","v":""},null," m2 installierte Kollektorfläche (Apertur)"]
[]
[null,null,"A.","Pauschalierter Erfüllungsnachweis nach § 7 oder § 14 EWärmeG"]
[null,null,null,null,null,null,null,null,null," "]
[null,null,null,"Hinweis: Die zur vollständigen Erfüllung (Erfüllungsgrad = 100 %) des EWärmeG erforderliche Kollektorfläche errechnet sich durch"]
[null,null,null,"Multiplikation der Wohnfläche mit dem Faktor 0,07 (Ein- und Zweifamilienhäuser) oder 0,06 (Mehrfamilienhäuser) bzw. der Netto-"]
[null,null,null,"grundfläche mit dem Faktor 0,06 (Nichtwohngebäude). Kommen Vakuumröhrenkollektoren zum Einsatz, verringert sich die "]
[null,null,null,"erforderliche Kollektorfläche um 20 %. Eine anteilige Erfüllung kann angerechnet werden (§ 11 oder § 18 EWärmeG)."]
[]
[null,null,null,{"$f":"IF(IstErfüllungsgradBasierendAufSolarertrag,\"\",IF(GebäudeArt=GebäudeArtWohngebäude,g_wfl,\"\"))","v":""},null,null," m2  Wohnfläche",null,null,null,null,null,null,null,null,{"$f":"IF(IstErfüllungsgradBasierendAufSolarertrag,\"\",IF(GebäudeArt=GebäudeArtWohngebäude,g_we,\"\"))","v":""},null," Anzahl Wohneinheiten*"]
[null,null,null,null,null,null," oder "]
[null,null,null,{"$f":"IF(IstErfüllungsgradBasierendAufSolarertrag,\"\",IF(GebäudeArt=GebäudeArtNichtwohngebäude,g_ngf,\"\"))","v":""},null,null," m2  Nettogrundfläche",null,null,null,null,null,null,null,null,{"$f":"IF(IstErfüllungsgradBasierendAufSolarertrag,\"\",ErförderlicheKollektorfläche)","v":0},null," m2 erforderliche Kollektorfläche (zur vollständigen"]
[null,null,null,null,null,null,null,null,null,null,null,null,null,null,null,null,null," Erfüllung notwendige Kollektorfläche (Apertur))"]
[]
[null,null,null,"1.","Die installierte Kollektorfläche entspricht mindestens der erforderlichen Kollektorfläche."]
[null,null,null,null,"Damit sind die Anforderung des EWärmeG vollständig erfüllt (Erfüllungsgrad = 100 %).",null,null,null,null,null,null,null,null,null,null,null,null,null,null,null,null,null,null,{"$f":"IF(IstErfüllungsgradBasierendAufSolarertrag,\"\",IF(ErfüllungsgradSolarthermie*100=100,\"X\",\"\"))","v":""}]
[null,null,null,null,"oder"]
[null,null,null,"2. ","Die installierte Kollektorfläche ist kleiner als die erforderliche Kollektorfläche."]
[null,null,null,null,"Damit sind die Anforderung des EWärmeG anteilig erfüllt (Erfüllungsgrad weniger als 100 %)."]
[]
[null,null,null,null,null,null,null,null,null,"erreichter \nErfüllungsgrad",null,null,null,"=","installierte Kollektorfläche (m2)",null,null,null,null,null,"x 100 % ="]
[null,null,null,null,null,null,null,null,null,null,null,null,null,null,null,null,null,null,null,null,null,null,null,{"$f":"IF(ErfüllungsgradSolarthermie*100=100,\"\",IF(IstErfüllungsgradBasierendAufSolarertrag,\"\",ErfüllungsgradSolarthermie*100))","v":0},null,null,null," %"]
[null,null,null,null,null,null,null,null,null,null,null,null,null,null,"erforderliche Kollektorfläche (m2)"]
[]
[]
[null,null,"oder"]
[]
[null,null,"B.","Berechnung im Einzelfall nach §§ 5 Abs. 1, 6 Abs.1 oder 13 Abs. 1 EWärmeG"]
[]
[null,null,null,"Hinweis: Der jährliche Solarertrag der Anlage ist nach anerkannten Regeln der Technik, z. B. DIN V 4701-10, DIN V 18599 oder "]
[null,null,null,"mit geeigneten Simulationsprogrammen zu ermitteln. "]
[]
[null,null,null,{"$f":"IF(IstErfüllungsgradBasierendAufSolarertrag,g_waermeenergie,\"\")","v":""},null,null," kWh jährlicher Wärmeenergiebedarf des Gebäudes (§ 3 Nr. 4 EWärmeG)"]
[]
[null,null,null,{"$f":"IF(IstErfüllungsgradBasierendAufSolarertrag,g_Solarertrag,\"\")","v":""},null,null," kWh jährlicher Solarertrag der installierten Anlage"]
[]
[null,null,null,"1.","Der Solarertrag deckt mindestens 15 % des jährlichen Wärmeenergiebedarfs."]
[null,null,null,null,"Damit sind die Anforderung des EWärmeG vollständig erfüllt (Erfüllungsgrad = 100 %).",null,null,null,null,null,null,null,null,null,null,null,null,null,null,null,null,null,null,{"$f":"IF(IstErfüllungsgradBasierendAufSolarertrag,IF(ErfüllungsgradSolarthermie*100=100,\"X\",\"\"),\"\")","v":""}]
[null,null,null,null,"oder"]
[null,null,null,"2.","Der Solarertrag deckt weniger als 15 % des jährlichen Wärmeenergiebedarfs."]
[null,null,null,null,"Damit sind die Anforderung des EWärmeG anteilig erfüllt (Erfüllungsgrad weniger als 100 %)."]
[]
[null,null,null,null,null,"erreichter \nErfüllungsgrad",null,null,null,"  = ","jährlicher Solarertrag der installierten Anlage (kWh)",null,null,null,null,null,null,null,null,null,"x 100 % ="]
[null,null,null,null,null,null,null,null,null,null,null,null,null,null,null,null,null,null,null,null,null,null,null,{"$f":"IF(ErfüllungsgradSolarthermie*100=100,\"\",IF(IstErfüllungsgradBasierendAufSolarertrag,ErfüllungsgradSolarthermie*100,\"\"))","v":""},null,null,null," %"]
[null,null,null,null,null,null,null,null,null,null,"jährlicher Wärmeenergiebedarf des Gebäudes (kWh) x 0,15        "]
[]
[]
[null,null,"Erfüllungsgrad (bitte immer angeben)"]
[]
[null,null,"Die installierte und betriebene solarthermische Anlage erfüllt die Anforderungen des EWärmeG zu:",null,null,null,null,null,null,null,null,null,null,null,null,null,null,null,null,null,null,null,null,{"$f":"ErfüllungsgradSolarthermie*100","v":0},null,null,null," %"]
[null,null,"* Angabe kann bei Plausibilität (nicht eingehender geprüft) vom Eigentümer übernommen werden."]
[]
[]
[null,null,null,"Ich bin Sachkundiger im Sinne des § 3 Nr. 11 EWärmeG als"]
[]
[null,null,null,null,{"$f":"IF(Qualifikation=SachkundigerBundesOderLandesRecht,\"X\",\"\")","v":""}," Berechtigter nach Bundes- oder Landesrecht zur Ausstellung von Energieausweisen,"]
[]
[null,null,null,null,{"$f":"IF(Qualifikation=SachkundigerZulassungspflichtigesGewerbe,\"X\",\"\")","v":""}," Person, die für ein zulassungspflichtiges Bau-, Ausbau- oder anlagentechnisches Gewerbe oder für "]
[null,null,null,null,null," das Schornsteinfegerwesen die Voraussetzungen zur Eintragung in die Handwerksrolle erfüllt,"]
[]
[null,null,null,null,{"$f":"IF(Qualifikation=SachkundigerHandwerksmeister,\"X\",\"\")","v":""}," Handwerksmeister der zulassungsfreien Handwerke dieser Bereiche,"]
[]
[null,null,null,null,{"$f":"IF(Qualifikation=SachkundigerOhneMeistertitel,\"X\",\"\")","v":""}," Person, die aufgrund ihrer Ausbildung oder ihres beruflichen Werdegangs berechtigt ist, ein solches "]
[null,null,null,null,null," Handwerk ohne Meistertitel selbständig auszuüben."]
[]
[null,null,null,"Hinweis: Ordnungswidrig handelt, wer in den Nachweisen vorsätzlich oder fahrlässig falsche Angaben macht (§ 23 EWärmeG)."]
[]
[null,null,"Name",null,null,null,null,null,null,null,"Vorname",null,null,null,null,"Firma des Sachkundigen"]
[null,null,{"$f":"c_nachname_sachkundiger","v":0},null,null,null,null,null,null,null,{"$f":"c_vorname_Sachkundiger","v":0},null,null,null,null,{"$f":"c_firmenname_sachkundiger","v":0}]
[]
[]
[]
[null,null,"Ort, Datum",null,null,null,null,null,null,null,null,null,null,null,null,"Unterschrift des Sachkundigen"]

{"sheet":"HLZ","index":10,"n_rows":162,"n_cols":28,"rows_kept":162,"cut":false,"hidden":true,"merged":[[39,15,39,28],[40,15,42,28],[40,1,42,14],[81,3,81,14],[1,1,1,28],[2,1,2,28],[81,18,81,26],[71,1,71,27],[72,1,72,27],[11,3,11,14],[11,15,11,17],[11,18,11,26],[36,23,36,26],[39,1,39,14],[81,15,81,17],[92,10,92,11],[94,10,94,11],[120,3,120,5],[118,3,118,5],[94,12,94,19],[131,27,132,27],[162,2,164,14],[130,8,131,19],[132,8,133,19],[157,2,159,9],[157,10,159,14],[157,15,159,27],[162,15,164,27],[130,20,133,22],[138,23,138,26],[130,7,133,7],[130,3,133,6],[131,23,132,26]]}
[]
[null,"Feste Biomasse - Holz-Zentralheizung"]
[null,"Nachweis des Eigentümers nach § 20 EWärmeG "]
[]
[null,"Hinweis: Diese Vorlage dient der Nachweisführung und ist der unteren Baurechtsbehörde spätestens 18 Monate nach Inbetriebnahme der neuen"]
[null,"Heizanlage vorzulegen. Die erste Seite ist vom Eigentümer auszufüllen und zu unterschreiben, die Folgeseiten vom Sachkundigen."]
[]
[]
[null,null,null,"Anschrift des Gebäudes (für das der Nachweis geführt wird)"]
[]
[null,null,null,"Straße und Hausnummer",null,null,null,null,null,null,null,null,null,null,null,"Postleitzahl",null,null,"Ort"]
[null,null,null,{"$f":"c_strasse_objekt","v":0},null,null,null,null,null,null,null,null,null,null,null,{"$f":"c_plz_objekt","v":0},null,null,{"$f":"c_ort_objekt","v":0}]
[]
[]
[]
[null,null,"Feste Biomasse"]
[null,null,"Holz-Zentralheizung  - Wohngebäude und Nichtwohngebäude"]
[]
[null,null,null,"Hinweis: Bitte zutreffende Angaben ankreuzen und entsprechende Werte eintragen. "]
[]
[null,null,null,"Erfüllungsnachweis nach § 5 Abs. 1 und § 13 Abs. 1 EWärmeG",null,null,null,null,null,null,null,null,null,null,null,null,null,null," "]
[]
[null,null,null,"Hinweis: Deckt der mit fester Biomasse betriebene zentrale Heizkessel mindestens 15 % des jährlichen Wärmeenergiebedarfs "]
[null,null,null,"oder beträgt dessen Anteil bei Mehrkesselanlagen mindestens 15 % der gesamten installierten Heizleistung, sind die Anforderungen "]
[null,null,null,"des EWärmeG vollständig erfüllt (Erfüllungsgrad = 100 %). Eine anteilige Erfüllung kann angerechnet werden (§ 11 oder "]
[null,null,null,"§ 18 EWärmeG)."]
[]
[null,null,null,"1.","Es wird ein zentraler Heizkessel mit fester Biomasse betrieben, mit dem die "]
[null,null,null,null,"Anforderungen des EWärmeG vollständig erfüllt werden (Erfüllungsgrad = 100 %).",null,null,null,null,null,null,null,null,null,null,null,null,null,null,null,null,null,null,{"$f":"IF(ErfüllungsgradHolzKessel*100=100,\"X\",\"\")","v":""}]
[null,null,null,null,"oder"]
[null,null,null,"2.","Es wird ein zentraler Heizkessel mit fester Biomasse betrieben, mit dem die  "]
[null,null,null,null,"Anforderungen des EWärmeG anteilig erfüllt werden (Erfüllungsgrad weniger als 100 %).",null,null,null,null,null,null,null,null,null,null,null,null,null,null,null,null,null,null,{"$f":"IF(ErfüllungsgradHolzKessel*100<100,\"X\",\"\")","v":"X"}]
[]
[null,null,"Erfüllungsgrad (bitte immer angeben, muss mit den Angaben des Sachkundigen übereinstimmen)"]
[]
[null,null,"Der installierte und mit fester Biomasse betriebene Heizkessel erfüllt die Anforderungen"]
[null,null,"des EWärmeG zu:",null,null,null,null,null,null,null,null,null,null,null,null,null,null,null,null,null,null,null,null,{"$f":"ErfüllungsgradHolzKessel*100","v":0},null,null,null," %"]
[]
[]
[null,"Ort, Datum",null,null,null,null,null,null,null,null,null,null,null,null,null,"Unterschrift des Eigentümers"]
[]
[]
[]
[]
[]
[]
[]
[]
[]
[]
[]
[]
[]
[]
[]
[]
[]
[]
[]
[]
[]
[]
[]
[]
[]
[]
[]
[]
[]
[]
[]
[null,"Feste Biomasse - Holz-Zentralheizung "]
[null,"Bestätigung des Sachkundigen nach § 20 EWärmeG"]
[]
[null,"Hinweis: Diese Vorlage dient der Nachweisführung und ist vom Eigentümer bei der unteren Baurechtsbehörde spätestens 18 Monate nach "]
[null,"Inbetriebnahme der neuen Heizanlage vorzulegen. "]
[]
[]
[null,null,null,"Anschrift des Gebäudes (für das der Nachweis geführt wird)"]
[]
[null,null,null,"Straße und Hausnummer",null,null,null,null,null,null,null,null,null,null,null,"Postleitzahl",null,null,"Ort"]
[null,null,null,{"$f":"c_strasse_objekt","v":0},null,null,null,null,null,null,null,null,null,null,null,{"$f":"c_plz_objekt","v":0},null,null,{"$f":"c_ort_objekt","v":0}]
[]
[]
[]
[null,null,"Feste Biomasse "]
[null,null,"Holz-Zentralheizung  - Wohngebäude und Nichtwohngebäude"]
[]
[null,null,null,"Hinweis: Bitte zutreffende Angaben ankreuzen und entsprechende Werte eintragen. "]
[]
[null,null,null,"Angaben zum Brennstoff:"]
[]
[null,null,null,{"$f":"IF(HolzkesselBrennstoff=HolzkesselBrennstoffHolzhackschnitzel,\"X\",\"\")","v":""}," Hackschnitzel",null,null,null,null,null,"        oder",null,{"$f":"IF(HolzkesselBrennstoff=HolzkesselBrennstoffScheitholz,\"X\",\"\")","v":""}," Scheitholz"]
[null,null,null,null," oder"]
[null,null,null,{"$f":"IF(HolzkesselBrennstoff=HolzkesselBrennstoffHolzpellets,\"X\",\"\")","v":""}," Holzpellets",null,null,null,null,null,"        oder",null,null,null,null,null,null,null,null,null," Anderer"]
[]
[null,null,null,"Erfüllungsnachweis nach § 5 Abs. 1 oder § 13 Abs. 1 EWärmeG"]
[]
[null,null,"A.","Zentraler Heizkessel"]
[]
[null,null,null,"Hinweis: Deckt der mit fester Biomasse betriebene zentrale Heizkessel mindestens 15 % des jährlichen Wärmeenergiebedarfs, sind "]
[null,null,null,"die Anforderungen des EWärmeG vollständig erfüllt (Erfüllungsgrad = 100 %). Eine anteilige Erfüllung kann angerechnet werden "]
[null,null,null,"(§ 11 oder § 18 EWärmeG)."]
[]
[null,null,null,"Es wird ein zentraler Heizkessel mit fester Biomasse betrieben, der den jährlichen Wärmeenergie-"]
[null,null,null,"bedarf zu mehr als 15 % deckt und damit die Anforderungen des EWärmeG vollständig erfüllt"]
[null,null,null,"(Erfüllungsgrad = 100 %).",null,null,null,null,null,null,null,null,null,null,null,null,null,null,null,null,null,null,null,{"$f":"IF(HolzZentralHeizungDecktGanzenEnergiebedarfAb=\"Ja\",\"X\",\"\")","v":""}]
[]
[null,null,"oder"]
[]
[null,null,"B.","Mehrkesselanlage"]
[]
[null,null,null,"Hinweis: Deckt bei einer Mehrkesselanlage der mit fester Biomasse betriebene zentrale Heizkessel einen Teil des jährlichen Wärme-"]
[null,null,null,"energiebedarfs, wird vereinfachend das Verhältnis der Kesselleistungen als Verhältnis der erzeugten Wärmemengen dieser Wärme-"]
[null,null,null,"erzeuger angenommen. Mit einem Anteil des mit fester Biomasse befeuerten Heizkessels an der gesamten installierten Heizleistung "]
[null,null,null,"von mindestens 15 % sind die Anforderungen des EWärmeG vollständig erfüllt (Erfüllungsgrad = 100 %). Eine anteilige Erfüllung "]
[null,null,null,"kann angerechnet werden (§ 11 oder § 18 EWärmeG)."]
[]
[null,null,null,{"$f":"IF(HolzZentralHeizungDecktGanzenEnergiebedarfAb=\"Ja\",\"\",NennleistungHolzZentralheizung)","v":0},null,null," kW Nennwärmeleistung des zur Deckung der Grundlast vorgesehenen Biomassekessels"]
[]
[null,null,null,{"$f":"IF(HolzZentralHeizungDecktGanzenEnergiebedarfAb=\"JA\",\"\",HolzZentralHeizungHeizLeistungGesamteAnlage)","v":0},null,null," kW gesamte installierte Heizleistung der Mehrkesselanlage"]
[]
[null,null,null,"1.","Es wird ein zentraler Heizkessel mit fester Biomasse betrieben, dessen Anteil an  "]
[null,null,null,null,"der gesamten installierten Heizleistung mindestens 15 % beträgt. Damit sind die "]
[null,null,null,null,"Anforderungen des EWärmeG vollständig erfüllt (Erfüllungsgrad = 100 %).",null,null,null,null,null,null,null,null,null,null,null,null,null,null,null,null,null,null,{"$f":"IF(HolzZentralHeizungDecktGanzenEnergiebedarfAb=\"Ja\",\"\",IF(ErfüllungsgradHolzKessel*100=100,\"X\",\"\"))","v":""}]
[null,null,null,null,"oder "]
[null,null,null,"2.","Es wird ein zentraler Heizkessel mit fester Biomasse betrieben, dessen Anteil an "]
[null,null,null,null,"der gesamten installierten Heizleistung weniger als 15 % beträgt. Damit sind die"]
[null,null,null,null,"Anforderungen des EWärmeG anteilig erfüllt (Erfüllungsgrad weniger als 100 %)."]
[]
[null,null,null,"erreichter\nErfüllungsgrad",null,null,null,"=","Nennwärmeleistung des mit Biomasse betriebenen Heizkessels (kW)",null,null,null,null,null,null,null,null,null,null,null,"x 100 % ="]
[null,null,null,null,null,null,null,null,null,null,null,null,null,null,null,null,null,null,null,null,null,null,null,{"$f":"IF(HolzZentralHeizungDecktGanzenEnergiebedarfAb=\"Ja\",\"\",IF(X139=100,\"\",ErfüllungsgradHolzKessel*100))","v":0},null,null,null," %"]
[null,null,null,null,null,null,null,null,"gesamte installierte Heizleistung der Mehrkesselanlage (kW) x 0,15"]
[]
[]
[null,null,"Erfüllungsgrad (bitte immer angeben)"]
[]
[null,null,"Der installierte und mit fester Biomasse betriebene Heizkessel erfüllt die Anforderungen"]
[null,null,"des EWärmeG zu:",null,null,null,null,null,null,null,null,null,null,null,null,null,null,null,null,null,null,null,null,{"$f":"ErfüllungsgradHolzKessel*100","v":0},null,null,null," %"]
[]
[]
[]
[null,null,null,"Ich bin Sachkundiger im Sinne des § 3 Nr. 11 EWärmeG als"]
[]
[null,null,null,null,{"$f":"IF(Qualifikation=SachkundigerBundesOderLandesRecht,\"X\",\"\")","v":""}," Berechtigter nach Bundes- oder Landesrecht zur Ausstellung von Energieausweisen,"]
[]
[null,null,null,null,{"$f":"IF(Qualifikation=SachkundigerZulassungspflichtigesGewerbe,\"X\",\"\")","v":""}," Person, die für ein zulassungspflichtiges Bau-, Ausbau- oder anlagentechnisches Gewerbe oder für "]
[null,null,null,null,null," das Schornsteinfegerwesen die Voraussetzungen zur Eintragung in die Handwerksrolle erfüllt,"]
[]
[null,null,null,null,{"$f":"IF(Qualifikation=SachkundigerHandwerksmeister,\"X\",\"\")","v":""}," Handwerksmeister der zulassungsfreien Handwerke dieser Bereiche,"]
[]
[null,null,null,null,{"$f":"IF(Qualifikation=SachkundigerOhneMeistertitel,\"X\",\"\")","v":""}," Person, die aufgrund ihrer Ausbildung oder ihres beruflichen Werdegangs berechtigt ist, ein solches "]
[null,null,null,null,null," Handwerk ohne Meistertitel selbständig auszuüben."]
[]
[null,null,null,"Hinweis: Ordnungswidrig handelt, wer in den Nachweisen vorsätzlich oder fahrlässig falsche Angaben macht (§ 23 EWärmeG)."]
[]
[null,null,"Name",null,null,null,null,null,null,null,"Vorname",null,null,null,null,"Firma des Sachkundigen"]
[null,null,{"$f":"c_nachname_sachkundiger","v":0},null,null,null,null,null,null,null,{"$f":"c_vorname_Sachkundiger","v":0},null,null,null,null,{"$f":"c_firmenname_sachkundiger","v":0}]
[]
[]
[]
[null,null,"Ort, Datum",null,null,null,null,null,null,null,null,null,null,null,null,"Unterschrift des Sachkundigen"]

{"sheet":"Deckblatt","index":11,"n_rows":70,"n_cols":25,"rows_kept":70,"cut":false,"hidden":true,"merged":[[68,1,68,27],[69,1,69,14],[69,15,69,27],[70,1,70,14],[70,15,70,27],[62,2,62,14],[62,15,62,23],[62,24,62,26],[63,2,63,10],[63,11,63,14],[63,15,63,23],[63,24,63,26],[60,2,60,10],[60,11,60,14],[60,15,60,23],[60,24,60,26],[61,2,61,10],[61,11,61,14],[61,15,61,23],[61,24,61,26],[58,2,58,10],[58,11,58,14],[58,15,58,23],[58,24,58,26],[59,2,59,10],[59,11,59,14],[59,15,59,23],[59,24,59,26],[56,2,56,10],[56,11,56,14],[56,15,56,23],[56,24,56,26],[57,2,57,10],[57,11,57,14],[57,15,57,23],[57,24,57,26],[54,2,54,10],[54,11,54,14],[54,15,54,23],[54,24,54,26],[55,2,55,10],[55,11,55,14],[55,15,55,23],[55,24,55,26],[52,2,52,10],[52,11,52,14],[52,15,52,23],[52,24,52,26],[53,2,53,10],[53,11,53,14],[53,15,53,23],[53,24,53,26],[50,2,50,10],[50,11,50,14],[50,15,50,23],[50,24,50,26],[51,2,51,10],[51,11,51,14],[51,15,51,23],[51,24,51,26],[48,2,48,10],[48,11,48,14],[48,15,48,23],[48,24,48,26],[49,2,49,10],[49,11,49,14],[49,15,49,23],[49,24,49,26],[45,2,46,10],[45,11,46,14],[45,15,46,23],[45,24,46,26],[47,2,47,10],[47,11,47,14],[47,15,47,23],[47,24,47,26],[36,3,36,5],[36,15,36,17],[1,1,1,27],[2,1,2,27],[14,3,14,8],[14,9,14,14],[17,3,17,14],[17,15,17,18],[17,19,17,25],[22,3,22,14],[22,15,22,18],[22,19,22,25],[25,3,25,13],[34,10,34,11]]}
[]
[null,"Deckblatt "]
[null,"Nachweis des Eigentümers nach § 20 EWärmeG"]
[]
[null,"Hinweis: Diese Vorlage dient der Nachweisführung und ist der unteren Baurechtsbehörde spätestens 18 Monate nach Inbetriebnahme der "]
[null,"neuen Heizanlage vorzulegen. Dieses Deckblatt und alle anderen Nachweise zu den gewählten Erfüllungsoptionen sind gesammelt einzureichen."]
[null,"Handelt es sich um einen Gebäudekomplex (§ 3 Nr.12 EWärmeG), ist das Formular Gebäudekomplex zusätzlich einzureichen. "]
[null,"Bitte achten Sie darauf, dass alle Unterlagen widerspruchsfrei und vollständig ausgefüllt sind. "]
[null,"Das EWärmeG 2015 gilt für am 1. Januar 2009 bereits errichtete Gebäude, bei denen die Heizanlage ab dem 1. Juli 2015 erneuert wird. "]
[]
[]
[null,null,null,"Allgemeine Angaben zum Eigentümer"]
[]
[null,null,null,"Name ",null,null,null,null,null,"Vorname"]
[null,null,null,{"$f":"IF(c_name=\"\",\"\",c_name)","v":""},null,null,null,null,null,{"$f":"IF(c_vorname=\"\",\"\",c_vorname)","v":""}]
[]
[null,null,null,"Straße und Hausnummer",null,null,null,null,null,null,null,null,null,null,null,"Postleitzahl",null,null,null,"Ort"]
[null,null,null,{"$f":"IF(c_strasse=\"\",\"\",c_strasse)","v":""},null,null,null,null,null,null,null,null,null,null,null,{"$f":"IF(c_plz=\"\",\"\",c_plz)","v":""},null,null,null,{"$f":"IF(c_ort=\"\",\"\",c_ort)","v":""}]
[]
[null,null,null,"Anschrift des Gebäudes (für das der Nachweis geführt wird)"]
[]
[null,null,null,"Straße und Hausnummer",null,null,null,null,null,null,null,null,null,null,null,"Postleitzahl",null,null,null,"Ort"]
[null,null,null,{"$f":"IF(c_strasse_objekt=\"\",\"\",c_strasse_objekt)","v":""},null,null,null,null,null,null,null,null,null,null,null,{"$f":"IF(c_plz_objekt=\"\",\"\",c_plz_objekt)","v":""},null,null,null,{"$f":"IF(c_ort_objekt=\"\",\"\",c_ort_objekt)","v":""}]
[]
[null,null,null,"Datum der Inbetriebnahme der Heizanlage:"]
[null,null,null,{"$f":"IF(DatumEinbauHeizungsanlge=\"\",\"\",DatumEinbauHeizungsanlge)","v":""}]
[]
[null,null,null,"Grunddaten des Gebäudes (für das der Nachweis geführt wird)"]
[]
[null,null,null,"Hinweis: Bitte zutreffende Angaben ankreuzen und entsprechende Werte eintragen. "]
[null,null,null,"Wohngebäude sind Gebäude, die nach ihrer Zweckbestimmung mindestens zur Hälfte dem Wohnen dienen, einschließlich Wohn-, "]
[null,null,null,"Alten- und Pflegeheime sowie ähnliche Einrichtungen, die zum dauerhaften Wohnen bestimmt sind (§ 3 Nr. 6 EWärmeG). "]
[null,null,null,"Nichtwohngebäude sind Gebäude, die nicht unter § 3 Nr. 6 EWärmeG fallen."]
[]
[null,null,null,{"$f":"IF(GebäudeArt=GebäudeArtWohngebäude,\"X\",\"\")","v":""}," Wohngebäude",null,null,null,null,null,"oder",null,null,null,null,{"$f":"IF(GebäudeArt=GebäudeArtNichtwohngebäude,\"X\",\"\")","v":""}," Nichtwohngebäude"]
[]
[null,null,null,{"$f":"IF(D35=\"X\",g_wfl,\"\")","v":""},null,null," m2 Wohnfläche",null,null,null,null,null,null,null,null,{"$f":"IF(P35=\"X\",g_ngf,\"\")","v":""},null,null," m2 Nettogrundfläche"]
[]
[]
[]
[null,null,null,"Gewählte Erfüllungsoptionen und Erfüllungsgrade"]
[]
[null,null,null,"Hinweis: Die Erfüllungsgrade (gerundet auf eine Nachkommastelle) sind aus den Nachweisen der gewählten Erfüllungsoptionen"]
[null,null,null,"zu entnehmen."]
[]
[null,null,"Wohngebäude",null,null,null,null,null,null,null,null,"Erfüllungs-\ngrad (%)",null,null,null,"Nichtwohngebäude",null,null,null,null,null,null,null,null,"Erfüllungs-\ngrad (%)"]
[]
[null,null," Solarthermie (SOL)",null,null,null,null,null,null,null,null,{"$f":"IF(ErfüllungsgradSolarthermie>0,IF(GebäudeArt=GebäudeArtWohngebäude,ErfüllungsgradSolarthermie*100,\"\"),\"\")","v":""},null,null,null," Solarthermie (SOL)",null,null,null,null,null,null,null,null,{"$f":"IF(ErfüllungsgradSolarthermie>0,IF(GebäudeArt=GebäudeArtNichtwohngebäude,ErfüllungsgradSolarthermie*100,\"\"),\"\")","v":""}]
[null,null," Holz-Zentralheizung (HLZ)",null,null,null,null,null,null,null,null,{"$f":"IF(ErfüllungsgradHolzKessel>0,IF(GebäudeArt=GebäudeArtWohngebäude,ErfüllungsgradHolzKessel*100,\"\"),\"\")","v":""},null,null,null," Holz-Zentralheizung (HLZ)",null,null,null,null,null,null,null,null,{"$f":"IF(ErfüllungsgradHolzKessel>0,IF(GebäudeArt=GebäudeArtNichtwohngebäude,ErfüllungsgradHolzKessel*100,\"\"),\"\")","v":""}]
[null,null," Wärmepumpe (WP)",null,null,null,null,null,null,null,null,{"$f":"IF(ErfüllungsgradWärmepumpe>0,IF(GebäudeArt=GebäudeArtWohngebäude,ErfüllungsgradWärmepumpe*100,\"\"),\"\")","v":""},null,null,null," Wärmepumpe (WP)",null,null,null,null,null,null,null,null,{"$f":"IF(ErfüllungsgradWärmepumpe>0,IF(GebäudeArt=GebäudeArtNichtwohngebäude,ErfüllungsgradWärmepumpe*100,\"\"),\"\")","v":""}]
[null,null," Biomethan / Biogas (BGA)",null,null,null,null,null,null,null,null,{"$f":"IF(ErfüllungsgradBioMethan>0,IF(GebäudeArt=GebäudeArtWohngebäude,ErfüllungsgradBioMethan*100,\"\"),\"\")","v":""},null,null,null," Biomethan / Biogas (BGA)",null,null,null,null,null,null,null,null,{"$f":"IF(ErfüllungsgradBioMethan,IF(GebäudeArt=GebäudeArtNichtwohngebäude,ErfüllungsgradBioMethan*100,\"\"),\"\")","v":""}]
[null,null," Biogenes Flüssiggas (BFLGA)",null,null,null,null,null,null,null,null,{"$f":"IF(ErfüllungsgradBiogenesFG,IF(GebäudeArt=GebäudeArtWohngebäude,ErfüllungsgradBiogenesFG*100,\"\"),\"\")","v":""},null,null,null," Biogenes Flüssiggas (BFLGA)",null,null,null,null,null,null,null,null,{"$f":"IF(ErfüllungsgradBiogenesFG,IF(GebäudeArt=GebäudeArtNichtwohngebäude,ErfüllungsgradBiogenesFG*100,\"\"),\"\")","v":""}]
[null,null," Bioöl (BÖL)",null,null,null,null,null,null,null,null,{"$f":"IF(ErfüllungsgradBioöl>0,IF(GebäudeArt=GebäudeArtWohngebäude,ErfüllungsgradBioöl*100,\"\"),\"\")","v":""},null,null,null," Bioöl (BÖL)",null,null,null,null,null,null,null,null,{"$f":"IF(ErfüllungsgradBioöl>0,IF(GebäudeArt=GebäudeArtNichtwohngebäude,ErfüllungsgradBioöl*100,\"\"),\"\")","v":""}]
[null,null," Einzelraumfeuerung (ERF)",null,null,null,null,null,null,null,null,{"$f":"IF(ErfüllungsgradEinzelraumbefeuerung>0,IF(GebäudeArt=GebäudeArtWohngebäude,ErfüllungsgradEinzelraumbefeuerung*100,\"\"),\"\")","v":""},null,null,null," Dachdämmung (DCH)",null,null,null,null,null,null,null,null,{"$f":"IF(ErfüllungsgradDachdämmung>0,IF(GebäudeArt=GebäudeArtNichtwohngebäude,ErfüllungsgradDachdämmung*100,\"\"),\"\")","v":""}]
[null,null," Dachdämmung (DCH)",null,null,null,null,null,null,null,null,{"$f":"IF(ErfüllungsgradDachdämmung>0,IF(GebäudeArt=GebäudeArtWohngebäude,ErfüllungsgradDachdämmung*100,\"\"),\"\")","v":""},null,null,null," Außenwanddämmung (AWD)",null,null,null,null,null,null,null,null,{"$f":"IF(ErfüllungsgradAußenwandDämmung>0,IF(GebäudeArt=GebäudeArtNichtwohngebäude,ErfüllungsgradAußenwandDämmung*100,\"\"),\"\")","v":""}]
[null,null," Außenwanddämmung (AWD)",null,null,null,null,null,null,null,null,{"$f":"IF(ErfüllungsgradAußenwandDämmung>0,IF(GebäudeArt=GebäudeArtWohngebäude,ErfüllungsgradAußenwandDämmung*100,\"\"),\"\")","v":""},null,null,null," Kellerdeckendämmung (KEL)",null,null,null,null,null,null,null,null,{"$f":"IF(ErfüllungsgradKellerdämmung>0,IF(GebäudeArt=GebäudeArtNichtwohngebäude,ErfüllungsgradKellerdämmung*100,\"\"),\"\")","v":""}]
[null,null," Kellerdeckendämmung (KEL)",null,null,null,null,null,null,null,null,{"$f":"IF(ErfüllungsgradKellerdämmung>0,IF(GebäudeArt=GebäudeArtWohngebäude,ErfüllungsgradKellerdämmung*100,\"\"),\"\")","v":""},null,null,null," Senkung des Wärmeenergiebedarfs (SEN)",null,null,null,null,null,null,null,null,{"$f":"IF(ErfüllungsgradSenkungWärmeenergiebedarf>0,IF(GebäudeArt=GebäudeArtNichtwohngebäude,ErfüllungsgradSenkungWärmeenergiebedarf*100,\"\"),\"\")","v":""}]
[null,null," Gesamte Gebäudehülle (HÜL)",null,null,null,null,null,null,null,null,{"$f":"IF(ErfüllungsgradGebäudehülle>0,IF(GebäudeArt=GebäudeArtWohngebäude,ErfüllungsgradGebäudehülle*100,\"\"),\"\")","v":""},null,null,null," Sanierungsfahrplan (SFP)",null,null,null,null,null,null,null,null,{"$f":"IF(ErfüllungsgradSanierungsfahrplan>0,IF(GebäudeArt=GebäudeArtNichtwohngebäude,ErfüllungsgradSanierungsfahrplan*100,\"\"),\"\")","v":""}]
[null,null," Sanierungsfahrplan (SFP)",null,null,null,null,null,null,null,null,{"$f":"IF(ErfüllungsgradSanierungsfahrplan>0,IF(GebäudeArt=GebäudeArtWohngebäude,ErfüllungsgradSanierungsfahrplan*100,\"\"),\"\")","v":""},null,null,null," Kraft-Wärme-Kopplung (BHKW)",null,null,null,null,null,null,null,null,{"$f":"IF(ErfüllungsgradKWK>0,IF(GebäudeArt=GebäudeArtNichtwohngebäude,ErfüllungsgradKWK*100,\"\"),\"\")","v":""}]
[null,null," Kraft-Wärme-Kopplung (BHKW)",null,null,null,null,null,null,null,null,{"$f":"IF(ErfüllungsgradKWK>0,IF(GebäudeArt=GebäudeArtWohngebäude,ErfüllungsgradKWK*100,\"\"),\"\")","v":""},null,null,null," Anschluss an Wärmenetz (NTZ)",null,null,null,null,null,null,null,null,{"$f":"IF(ErfüllungsgradWärmenetz>0,IF(GebäudeArt=GebäudeArtNichtwohngebäude,ErfüllungsgradWärmenetz*100,\"\"),\"\")","v":""}]
[null,null," Anschluss an Wärmenetz (NTZ)",null,null,null,null,null,null,null,null,{"$f":"IF(ErfüllungsgradWärmenetz>0,IF(GebäudeArt=GebäudeArtWohngebäude,ErfüllungsgradWärmenetz*100,\"\"),\"\")","v":""},null,null,null," Photovoltaik (PV)",null,null,null,null,null,null,null,null,{"$f":"IF(ErfüllungsgradPhotovoltaik>0,IF(GebäudeArt=GebäudeArtNichtwohngebäude,ErfüllungsgradPhotovoltaik*100,\"\"),\"\")","v":""}]
[null,null," Photovoltaik (PV)",null,null,null,null,null,null,null,null,{"$f":"IF(ErfüllungsgradPhotovoltaik>0,IF(GebäudeArt=GebäudeArtWohngebäude,ErfüllungsgradPhotovoltaik*100,\"\"),\"\")","v":""},null,null,null," Wärmerückgewinnung aus Abluft (WRG)",null,null,null,null,null,null,null,null,{"$f":"IF(ErfüllungsgradRückgewonneWärmemenge>0,IF(GebäudeArt=GebäudeArtNichtwohngebäude,ErfüllungsgradRückgewonneWärmemenge*100,\"\"),\"\")","v":""}]
[null,null,null,null,null,null,null,null,null,null,null,null,null,null,null," Abwärmenutzung (ABW)",null,null,null,null,null,null,null,null,{"$f":"IF(ErfüllungsgradNutzungAbwärme>0,IF(GebäudeArt=GebäudeArtNichtwohngebäude,ErfüllungsgradNutzungAbwärme*100,\"\"),\"\")","v":""}]
[null,null," Summe",null,null,null,null,null,null,null,null,{"$f":"IF(GesamtErfüllungsgrad>0,IF(GebäudeArt=GebäudeArtWohngebäude,GesamtErfüllungsgrad*100,\"\"),\"\")","v":""},null,null,null," Summe"]
[]
[null,null,null,"Die Anforderungen des EWärmeG sind erfüllt.",null,null,null,null,null,null,null,null,null,null,{"$f":"IF(GesamtErfüllungsgrad*100=100,\"X\",\"\")","v":""}," Hinweis: Falls zutreffend (Summe mindestens 100 %) bitte ankreuzen."]
[]
[]
[null,"Hinweis: Ordnungswidrig handelt, wer in den Nachweisen vorsätzlich oder fahrlässig falsche Angaben macht (§ 23 EWärmeG)."]
[null,"Ort, Datum",null,null,null,null,null,null,null,null,null,null,null,null,null,"Unterschrift des Eigentümers"]

{"sheet":"BGA","index":12,"n_rows":243,"n_cols":30,"rows_kept":243,"cut":false,"hidden":true,"merged":[[129,29,130,29],[130,6,131,14],[130,16,131,23],[136,25,136,28],[158,2,160,9],[158,10,160,14],[158,15,160,28],[129,25,130,28],[243,2,245,15],[243,16,245,29],[163,2,165,14],[163,15,165,28],[191,1,191,30],[192,1,192,30],[201,3,201,15],[201,16,201,18],[201,19,201,28],[209,3,209,12],[219,10,219,11],[238,2,240,10],[238,11,240,15],[238,16,240,29],[126,22,126,24],[128,1,131,4],[128,5,131,5],[128,6,129,14],[128,15,131,15],[128,16,129,23],[128,24,131,24],[107,29,108,29],[108,13,109,23],[115,22,115,24],[120,10,123,13],[120,14,123,14],[120,15,121,23],[120,24,123,24],[121,25,122,28],[121,29,122,29],[122,15,123,23],[106,7,109,11],[106,12,109,12],[106,13,107,23],[106,24,109,24],[107,25,108,28],[71,1,71,30],[80,3,80,15],[80,16,80,18],[80,19,80,28],[104,22,104,24],[70,1,70,30],[1,1,1,30],[2,1,2,30],[14,3,14,15],[14,16,14,18],[14,19,14,28],[34,16,34,17],[46,25,46,28],[49,1,49,15],[49,16,49,30],[50,1,52,15],[50,16,52,30]]}
[]
[null,"Gasförmige Biomasse - Biomethan "]
[null,"Nachweis des Eigentümers nach § 20 EWärmeG"]
[]
[null,"Hinweis: Diese Vorlage dient der Nachweisführung und ist der unteren Baurechtsbehörde spätestens 18 Monate nach Inbetriebnahme der neuen"]
[null,"Heizanlage vorzulegen. Die erste Seite ist vom Eigentümer auszufüllen und zu unterschreiben, die Folgeseiten vom Sachkundigen und Brennstoff-"]
[null,"lieferanten. Der Brennstofflieferant hat die Einhaltung der in § 5 Abs. 3 Satz 2 und 3 EWärmeG genannten Anforderungen zu bestätigen. Die Be-"]
[null,"stätigungen zu den zeitlich nachfolgenden Abrechnungen sind jeweils fünf Jahre aufzubewahren und auf Anforderung der unteren Baurechtsbehörde"]
[null,"vorzulegen."]
[]
[]
[null,null,null,"Anschrift des Gebäudes (für das der Nachweis geführt wird)"]
[]
[null,null,null,"Straße und Hausnummer",null,null,null,null,null,null,null,null,null,null,null,null,"Postleitzahl",null,null,"Ort"]
[null,null,null,{"$f":"c_strasse_objekt","v":0},null,null,null,null,null,null,null,null,null,null,null,null,{"$f":"c_plz_objekt","v":0},null,null,{"$f":"c_ort_objekt","v":0}]
[]
[]
[]
[null,null,"Gasförmige Biomasse"]
[null,null,"Biomethan - Wohngebäude und Nichtwohngebäude"]
[]
[null,null,null,"Hinweis: Bitte zutreffende Angaben ankreuzen und entsprechende Werte eintragen. "]
[]
[null,null,null,"Erfüllungsnachweis nach § 5 Abs. 3 und § 13 Abs. 1 EWärmeG"]
[]
[null,null,null,"Hinweis: Die Nutzung von Biomethan wird nur für Heizanlagen mit einer Leistung von bis zu 50 kW anerkannt."]
[]
[null,null,null,{"$f":"IF(LeistungHeizungsAnlageBioMethan,\"X\",\"\")","v":""}," Die thermische Leistung der gesamten Heizanlage beträgt maximal 50 kW."]
[]
[null,null,null,{"$f":"IF(BiomethanKesselEntsprichtVerfügbarerTechnick=\"Ja\",\"X\",\"\")","v":""}," Der Heizkessel entspricht der besten verfügbaren Technik (Brennwerttechnologie)."]
[]
[null,null,null,null," Ich sichere zu, dass das gelieferte Erdgas Biomethan enthält und ich dies auch künftig auf Anforderung "]
[null,null,null,null," gegenüber der unteren Baurechtsbehörde nachweisen kann."]
[]
[null,null,null,null,"Der Biomethananteil im gelieferten Erdgas beträgt:",null,null,null,null,null,null,null,null,null,null,null,{"$f":"BiomethanAnteilInErdgas*100","v":0},null," %"]
[]
[null,null,null,"1.","Es wird eine Heizanlage mit Erdgas mit Biomethananteil betrieben, mit der die "]
[null,null,null,null,"Anforderungen des EWärmeG zu zwei Dritteln erfüllt werden (Erfüllungsgrad = 66,7 %).",null,null,null,null,null,null,null,null,null,null,null,null,null,null,null,null,null,null,null,null,{"$f":"IF(ErfüllungsgradBioMethan*100=66.66,\"X\",\"\")","v":""}]
[null,null,null,null,"oder"]
[null,null,null,"2.","Es wird eine Heizanlage mit Erdgas mit Biomethananteil betrieben, mit der die"]
[null,null,null,null,"Anforderungen des EWärmeG zu weniger als zwei Dritteln  erfüllt werden (Erfüllungs-"]
[null,null,null,null,"grad weniger als 66,7 %).",null,null,null,null,null,null,null,null,null,null,null,null,null,null,null,null,null,null,null,null,{"$f":"IF(ErfüllungsgradBioMethan*100<66.66,\"X\",\"\")","v":"X"}]
[]
[null,null,"Erfüllungsgrad (bitte immer angeben, muss mit den Angaben des Sachkundigen übereinstimmen)"]
[]
[null,null,"Die installierte und mit Erdgas mit Biomethananteil betriebene Heizanlage erfüllt die Anforderungen"]
[null,null,"des EWärmeG zu:",null,null,null,null,null,null,null,null,null,null,null,null,null,null,null,null,null,null,null,null,null,null,{"$f":"ErfüllungsgradBioMethan*100","v":0},null,null,null," %"]
[]
[]
[null,"Ort, Datum",null,null,null,null,null,null,null,null,null,null,null,null,null,null,"Unterschrift des Eigentümers"]
[]
[]
[]
[]
[]
[]
[]
[]
[]
[]
[]
[]
[]
[]
[]
[]
[]
[]
[]
[]
[null,"Gasförmige Biomasse - Biomethan "]
[null,"Bestätigung des Sachkundigen nach § 20 EWärmeG"]
[]
[null,"Hinweis: Diese Vorlage dient der Nachweisführung und ist vom Eigentümer bei der unteren Baurechtsbehörde spätestens 18 Monate nach "]
[null,"Inbetriebnahme der neuen Heizanlage vorzulegen. "]
[]
[]
[null,null,null,"Anschrift des Gebäudes (für das der Nachweis geführt wird)"]
[]
[null,null,null,"Straße und Hausnummer",null,null,null,null,null,null,null,null,null,null,null,null,"Postleitzahl",null,null,"Ort"]
[null,null,null,{"$f":"c_strasse_objekt","v":0},null,null,null,null,null,null,null,null,null,null,null,null,{"$f":"c_plz_objekt","v":0},null,null,{"$f":"c_ort_objekt","v":0}]
[]
[]
[]
[null,null,"Gasförmige Biomasse"]
[null,null,"Biomethan - Wohngebäude und Nichtwohngebäude"]
[]
[null,null,null,"Hinweis: Bitte zutreffende Angaben ankreuzen und entsprechende Werte eintragen. "]
[]
[null,null,null,"Erfüllungsnachweis nach § 5 Abs. 3 und § 13 Abs. 1 EWärmeG"]
[]
[null,null,null,"Hinweis: Die Nutzung von Biomethan wird nur für Heizanlagen mit einer Leistung von bis zu 50 kW anerkannt."]
[]
[null,null,null,{"$f":"IF(LeistungHeizungsAnlageBioMethan,\"X\",\"\")","v":""}," Die thermische Leistung der gesamten Heizanlage beträgt maximal 50 kW."]
[]
[null,null,null,{"$f":"IF(BiomethanKesselEntsprichtVerfügbarerTechnick=\"Ja\",\"X\",\"\")","v":""}," Der installierte Heizkessel entspricht der besten verfügbaren Technik (Brennwerttechnologie)."]
[]
[null,null,"A.","Biogasanteil im gelieferten Erdgas mindestens 10 %"]
[]
[null,null,null,"1.","Der Heizkessel wird mit mindestens 10 % Biomethananteil im gelieferten Erdgas betrieben "]
[null,null,null,null,"und deckt den gesamten jährlichen Wärmeenergiebedarf des Gebäudes. Damit werden die "]
[null,null,null,null,"Anforderungen des EWärmeG zu zwei Dritteln erfüllt (Erfüllungsgrad = 66,7 %).",null,null,null,null,null,null,null,null,null,null,null,null,null,null,null,null,null,null,null,{"$f":"IF(BiomethanAnteilInErdgas>=10%,IF(ErfüllungsgradBioMethan*100=66.66,\"X\",\"\"),\"\")","v":""}]
[null,null,null,null,"oder"]
[null,null,null,"2.","Der Heizkessel wird mit mindestens 10 % Biomethananteil im gelieferten "]
[null,null,null,null,"Erdgas betrieben und deckt den gesamten jährlichen Wärmeenergiebedarf zu: ",null,null,null,null,null,null,null,null,null,null,null,null,null,null,null,null,null,{"$f":"IF(BiomethanAnteilInErdgas>=10%,IF(ErfüllungsgradBioMethan*100<66.66,DeckungsanteilBiomethan,\"\"),\"\")","v":""},null,null," %"]
[]
[null,null,null,null,null,null,null,"erreichter\nErfüllungsgrad",null,null,null,null,"  = ","Deckungsanteil am Wärmeenergiebedarf (%) x 66,7 %",null,null,null,null,null,null,null,null,null,null,"  = "]
[null,null,null,null,null,null,null,null,null,null,null,null,null,null,null,null,null,null,null,null,null,null,null,null,null,{"$f":"IF(BiomethanAnteilInErdgas>=10%,IF(Y102=\"X\",\"\",ErfüllungsgradBioMethan*100),\"\")","v":""},null,null,null," %"]
[null,null,null,null,null,null,null,null,null,null,null,null,null,"100 %"]
[]
[]
[null,"  ","oder"]
[]
[null,null,"B.","Biogasanteil im gelieferten Erdgas weniger als 10 %*"]
[]
[null,null,null,null,"Der Biomethananteil im gelieferten Erdgas beträgt:",null,null,null,null,null,null,null,null,null,null,null,null,null,null,null,null,null,{"$f":"IF(BiomethanAnteilInErdgas<10%,BiomethanAnteilInErdgas*100,\"\")","v":0},null,null," %"]
[]
[null,null,null,"1.","Der Heizkessel wird mit weniger als 10 % Biomethananteil im gelieferten Erdgas betrieben "]
[null,null,null,null,"und deckt den gesamten Wärmeenergiebedarf des Gebäudes. ",null,null,null,null,null,null,null,null,null,null,null,null,null,null,null,null,null,null,null,{"$f":"IF(BiomethanAnteilInErdgas<10%,IF(DeckungsanteilBiomethan=100,\"X\",\"\"),\"\")","v":""}]
[]
[null,null,null,null,null,null,null,null,null,null,"erreichter \nErfüllungsgrad ",null,null,null,"  = ","Biomethananteil im Erdgas (%) x 66,7 %",null,null,null,null,null,null,null,null,"  = "]
[null,null,null,null,null,null,null,null,null,null,null,null,null,null,null,null,null,null,null,null,null,null,null,null,null,{"$f":"IF(Y119=\"X\",ErfüllungsgradBioMethan*100,\"\")","v":""},null,null,null," %"]
[null,null,null,null,null,null,null,null,null,null,null,null,null,null,null,"10 %"]
[]
[null,null,null,null,"oder"]
[null,null,null,"2.","Der Heizkessel wird mit weniger als 10 % Biomethananteil im gelieferten "]
[null,null,null,null,"Erdgas betrieben und deckt den gesamten jährlichen Wärmeenergiebedarf zu: ",null,null,null,null,null,null,null,null,null,null,null,null,null,null,null,null,null,{"$f":"IF(BiomethanAnteilInErdgas<10%,IF(Y119=\"X\",\"\",DeckungsanteilBiomethan),\"\")","v":0},null,null," %"]
[]
[null,"erreichter\nErfüllungsgrad ",null,null,null,"  = ","Deckungsanteil am Wärmeenergiebedarf (%)   ",null,null,null,null,null,null,null,null,"x","Biomethananteil im Erdgas (%) x 66,7 %",null,null,null,null,null,null,null,"  = "]
[null,null,null,null,null,null,null,null,null,null,null,null,null,null,null,null,null,null,null,null,null,null,null,null,null,{"$f":"IF(BiomethanAnteilInErdgas<10%,IF(Y119=\"X\",\"\",ErfüllungsgradBioMethan*100),\"\")","v":0},null,null,null," %"]
[null,null,null,null,null,null,"100 %",null,null,null,null,null,null,null,null,null,"10 %"]
[]
[]
[null,null,"Erfüllungsgrad (bitte immer angeben)"]
[]
[null,null,"Die installierte und mit Erdgas mit Biomethananteil betriebene Heizanlage erfüllt die "]
[null,null,"Anforderungen des EWärmeG zu:",null,null,null,null,null,null,null,null,null,null,null,null,null,null,null,null,null,null,null,null,null,null,{"$f":"ErfüllungsgradBioMethan*100","v":0},null,null,null," %"]
[]
[null,null,"* Angabe kann bei Plausibilität (nicht eingehender geprüft) vom Eigentümer übernommen werden."]
[]
[]
[]
[]
[null,null,null,"Ich bin Sachkundiger im Sinne des § 3 Nr. 11 EWärmeG als"]
[]
[null,null,null,null,{"$f":"IF(Qualifikation=SachkundigerBundesOderLandesRecht,\"X\",\"\")","v":""}," Berechtigter nach Bundes- oder Landesrecht zur Ausstellung von Energieausweisen,"]
[]
[null,null,null,null,{"$f":"IF(Qualifikation=SachkundigerZulassungspflichtigesGewerbe,\"X\",\"\")","v":""}," Person, die für ein zulassungspflichtiges Bau-, Ausbau- oder anlagentechnisches Gewerbe oder für "]
[null,null,null,null,null," das Schornsteinfegerwesen die Voraussetzungen zur Eintragung in die Handwerksrolle erfüllt,"]
[]
[null,null,null,null,{"$f":"IF(Qualifikation=SachkundigerHandwerksmeister,\"X\",\"\")","v":""}," Handwerksmeister der zulassungsfreien Handwerke dieser Bereiche,"]
[]
[null,null,null,null,{"$f":"IF(Qualifikation=SachkundigerOhneMeistertitel,\"X\",\"\")","v":""}," Person, die aufgrund ihrer Ausbildung oder ihres beruflichen Werdegangs berechtigt ist, ein solches "]
[null,null,null,null,null," Handwerk ohne Meistertitel selbständig auszuüben."]
[]
[null,null,null,"Hinweis: Ordnungswidrig handelt, wer in den Nachweisen vorsätzlich oder fahrlässig falsche Angaben macht (§ 23 EWärmeG)."]
[]
[null,null,"Name",null,null,null,null,null,null,null,null,"Vorname",null,null,null,null,"Firma des Sachkundigen"]
[null,null,{"$f":"c_nachname_sachkundiger","v":0},null,null,null,null,null,null,null,{"$f":"c_vorname_Sachkundiger","v":0},null,null,null,null,{"$f":"c_firmenname_sachkundiger","v":0}]
[]
[]
[]
[null,null,"Ort, Datum",null,null,null,null,null,null,null,null,null,null,null,null,null,"Unterschrift des Sachkundigen"]
[]
[]
[]
[]
[]
[]
[]
[]
[]
[]
[]
[]
[]
[]
[]
[]
[]
[]
[]
[]
[]
[]
[]
[]
[]
[]
[]
[]
[null,"Gasförmige Biomasse - Biomethan"]
[null,"Bestätigung des Brennstofflieferanten nach § 20 EWärmeG "]
[]
[null,"Hinweis: Diese Vorlage dient der Nachweisführung und ist vom Eigentümer bei der unteren Baurechtsbehörde spätestens 18 Monate nach "]
[null,"Inbetriebnahme der neuen Heizanlage vorzulegen. "]
[]
[]
[null,null,null,"Anschrift des Gebäudes (für das der Nachweis geführt wird)"]
[]
[null,null,null,"Straße und Hausnummer",null,null,null,null,null,null,null,null,null,null,null,null,"Postleitzahl",null,null,"Ort"]
[null,null,null,{"$f":"c_strasse_objekt","v":0},null,null,null,null,null,null,null,null,null,null,null,null,{"$f":"c_plz_objekt","v":0},null,null,{"$f":"c_ort_objekt","v":0}]
[]
[]
[]
[null,null,"Nachweis des Brennstofflieferanten"]
[]
[null,null,null,"Hinweis: Bitte zutreffende Angaben ankreuzen und entsprechende Werte eintragen. "]
[]
[null,null,null,null,null,null,null,null,null,null,null,null,null," Abrechnungszeitraum"]
[]
[null,null,null,null," Die im Abrechnungszeitraum insgesamt gelieferte Gasmenge enthält mindestens 10 % Biomethan im "]
[null,null,null,null," Sinne des EWärmeG."]
[]
[null,null,null,null," oder"]
[]
[null,null,null,null," Die im Abrechnungszeitraum insgesamt gelieferte Gasmenge enthält weniger als 10 % Biomethan im "]
[null,null,null,null," Sinne des EWärmeG, sondern"]
[]
[null,null,null,null,null,null,null,null,null,null,null,null," %"]
[]
[null,null,null,null," und"]
[]
[null,null,null,null," Die Menge des entnommenen Biomethans entspricht im Wärmeaquivalent der Menge von Gas aus Biomasse über "]
[null,null,null,null," einen Bilanzzeitraum von einem Jahr, das an anderer Stelle in das Gasnetz eingespeist worden ist und für dessen "]
[null,null,null,null," gesamten Transport und Vertrieb von seiner Herstellung, seiner Einspeisung in das Erdgasnetz und seinem "]
[null,null,null,null," Transport im Erdgasnetz bis zu seiner Entnahme aus dem Erdgasnetz Massenbilanzsysteme verwendet "]
[null,null,null,null," worden sind (§ 5 Abs. 3 Satz 2 EWärmeG)."]
[]
[null,null,null,null," und"]
[]
[null,null,null,null," Bei der Aufbereitung und Einspeisung des Biomethans werden die Voraussetzungen nach Nummer 1 Buchstabe "]
[null,null,null,null," a bis c der Anlage 1 zum Erneuerbare-Energien-Gesetz vom 25. Oktober 2008 (BGBl. I S. 2074)  in der am "]
[null,null,null,null," 31. Juli 2014 geltenden Fassung eingehalten (§ 5 Abs. 3 Satz 3 EWärmeG)."]
[]
[null,null,null,"Hinweis: Ordnungswidrig handelt, wer auf den Nachweisen vorsätzlich oder fahrlässig falsche Angaben macht (§ 23 EWärmeG)."]
[]
[null,null,"Name",null,null,null,null,null,null,null,null,"Vorname",null,null,null,null,"Firma des Brennstofflieferanten"]
[]
[]
[]
[]
[null,null,"Ort, Datum",null,null,null,null,null,null,null,null,null,null,null,null,null,"Unterschrift des Brennstofflieferanten"]

{"sheet":"BÖL","index":13,"n_rows":251,"n_cols":29,"rows_kept":251,"cut":false,"hidden":true,"merged":[[251,2,253,14],[251,15,253,28],[165,2,167,14],[165,15,167,28],[205,1,205,29],[206,1,206,29],[215,3,215,14],[215,15,215,17],[215,18,215,27],[223,3,223,12],[235,10,235,11],[246,2,248,9],[246,10,248,14],[246,15,248,28],[132,24,133,27],[132,28,133,28],[138,24,138,27],[160,2,162,9],[160,10,162,14],[160,15,162,28],[128,21,128,23],[130,1,133,4],[130,5,133,5],[130,6,131,13],[130,14,133,14],[130,15,131,22],[131,23,133,23],[132,6,133,13],[132,15,133,22],[109,28,110,28],[109,29,110,29],[110,12,111,22],[117,21,117,23],[122,9,125,12],[122,13,125,13],[122,14,123,22],[122,23,125,23],[123,24,124,27],[123,28,124,28],[109,24,110,27],[123,29,124,29],[124,14,125,22],[106,21,106,23],[108,7,111,10],[108,11,111,11],[108,12,109,22],[108,23,111,23],[94,3,94,5],[34,17,34,18],[45,24,45,27],[48,1,48,14],[48,15,48,29],[49,1,51,14],[49,15,51,29],[71,1,71,29],[72,1,72,29],[81,3,81,14],[81,15,81,17],[81,18,81,27],[27,3,27,5],[1,1,1,29],[2,1,2,29],[14,3,14,14],[14,15,14,17],[14,18,14,27]]}
[]
[null,"Flüssige Biomasse - Bioöl "]
[null,"Nachweis des Eigentümers nach § 20 EWärmeG"]
[]
[null,"Hinweis: Diese Vorlage dient der Nachweisführung und ist der unteren Baurechtsbehörde spätestens 18 Monate nach Inbetriebnahme der neuen"]
[null,"Heizanlage vorzulegen. Die erste Seite ist vom Eigentümer auszufüllen und zu unterschreiben, die Folgeseiten vom Sachkundigen und Brennstoff-"]
[null,"lieferanten. Der Brennstofflieferant hat die Einhaltung der in § 5 Abs. 4 Satz 3 EWärmeG genannten Anforderungen zu bestätigen. Die Be-"]
[null,"stätigungen zu den zeitlich nachfolgenden Abrechnungen sind jeweils fünf Jahre aufzubewahren und auf Anforderung der unteren Baurechtsbehörde"]
[null,"vorzulegen."]
[]
[]
[null,null,null,"Anschrift des Gebäudes (für das der Nachweis geführt wird)"]
[]
[null,null,null,"Straße und Hausnummer",null,null,null,null,null,null,null,null,null,null,null,null,"Postleitzahl",null,null,"Ort"]
[null,null,null,{"$f":"c_strasse_objekt","v":0},null,null,null,null,null,null,null,null,null,null,null,{"$f":"c_plz_objekt","v":0},null,null,{"$f":"c_ort_objekt","v":0}]
[]
[]
[]
[null,null,"Bioöl - Wohngebäude und Nichtwohngebäude"]
[]
[null,null,null,"Hinweis: Bitte zutreffende Angaben ankreuzen und entsprechende Werte eintragen. "]
[]
[null,null,null,"Erfüllungsnachweis nach § 5 Abs. 4 EWärmeG und § 13 Abs. 1 EWärmeG"]
[]
[null,null,null,"Hinweis: Die Nutzung flüssiger Biomasse wird in Nichtwohngebäuden nur für Heizanlagen"]
[null,null,null,"mit einer Leistung von bis zu 50 kW anerkannt."]
[]
[null,null,null,{"$f":"IF(LeistungHeizungsAnlageBioÖl,LeistungHeizungsAnlageBioÖl,\"\")","v":""},null,null," kW thermische Leistung der gesamten Heizanlage"]
[]
[null,null,null,{"$f":"IF(BioölKesselEntsprichtVerfügbarerTechnick=\"Ja\",\"X\",\"\")","v":""}," Der Heizkessel entspricht der besten verfügbaren Technik (Brennwerttechnologie)."]
[]
[null,null,null,null," Ich sichere zu, dass das gelieferte Heizöl Bioöl enthält und ich dies auch künftig auf Anforderung gegenüber "]
[null,null,null,null," der unteren Baurechtsbehörde nachweisen kann."]
[]
[null,null,null,null,"Der Bioölanteil im gelieferten Heizöl beträgt im Durchschnitt:",null,null,null,null,null,null,null,null,null,null,null,null,{"$f":"BioölAnteilInHeizöl*100","v":0},null," %"]
[]
[null,null,null,"1.","Es wird ein Heizkessel mit Heizöl mit Bioölanteil betrieben, mit dem die Anforderungen des"]
[null,null,null,null,"EWärmeG zu zwei Dritteln erfüllt werden (Erfüllungsgrad = 66,7 %).",null,null,null,null,null,null,null,null,null,null,null,null,null,null,null,null,null,null,null,{"$f":"IF(ErfüllungsgradBioöl*100=66.66,\"X\",\"\")","v":""}]
[null,null,null,null,"oder"]
[null,null,null,"2.","Es wird ein Heizkessel mit Heizöl mit Bioölanteil betrieben, mit dem die Anforderungen des"]
[null,null,null,null,"EWärmeG zu weniger als zwei Dritteln erfüllt werden (Erfüllungsgrad weniger als  66,7 %).",null,null,null,null,null,null,null,null,null,null,null,null,null,null,null,null,null,null,null,{"$f":"IF(ErfüllungsgradBioöl*100<66.66,\"X\",\"\")","v":"X"}]
[]
[null,null,"Erfüllungsgrad (bitte immer angeben, muss mit den Angaben des Sachkundigen übereinstimmen)"]
[]
[null,null,"Die installierte und mit Heizöl mit Bioölanteil betriebene Heizanlage erfüllt die Anforderungen"]
[null,null,"des EWärmeG zu:",null,null,null,null,null,null,null,null,null,null,null,null,null,null,null,null,null,null,null,null,null,{"$f":"ErfüllungsgradBioöl*100","v":0},null,null,null," %"]
[]
[]
[null,"Ort, Datum",null,null,null,null,null,null,null,null,null,null,null,null,null,"Unterschrift des Eigentümers"]
[]
[]
[]
[]
[]
[]
[]
[]
[]
[]
[]
[]
[]
[]
[]
[]
[]
[]
[]
[]
[]
[]
[null,"Flüssige Biomasse - Bioöl "]
[null,"Bestätigung des Sachkundigen nach § 20 EWärmeG"]
[]
[null,"Hinweis: Diese Vorlage dient der Nachweisführung und ist vom Eigentümer bei der unteren Baurechtsbehörde spätestens 18 Monate nach "]
[null,"Inbetriebnahme der neuen Heizanlage vorzulegen. "]
[]
[]
[null,null,null,"Anschrift des Gebäudes (für das der Nachweis geführt wird)"]
[]
[null,null,null,"Straße und Hausnummer",null,null,null,null,null,null,null,null,null,null,null,"Postleitzahl",null,null,"Ort"]
[null,null,null,{"$f":"c_strasse_objekt","v":0},null,null,null,null,null,null,null,null,null,null,null,{"$f":"c_plz_objekt","v":0},null,null,{"$f":"c_ort_objekt","v":0}]
[]
[]
[]
[null,null,"Bioöl  - Wohngebäude und Nichtwohngebäude"]
[]
[null,null,null,"Hinweis: Bitte zutreffende Angaben ankreuzen und entsprechende Werte eintragen. "]
[]
[null,null,null,"Erfüllungsnachweis nach § 5 Abs. 4 EWärmeG und § 13 Abs. 1 EWärmeG"]
[]
[null,null,null,"Hinweis: Die Nutzung flüssiger Biomasse wird in Nichtwohngebäuden nur für Heizanlagen mit einer Leistung von bis zu 50 kW "]
[null,null,null,"anerkannt."]
[]
[null,null,null,{"$f":"LeistungHeizungsAnlageBioÖl","v":0},null,null," kW thermische Leistung der gesamten Heizanlage"]
[]
[null,null,null,{"$f":"IF(BioölKesselEntsprichtVerfügbarerTechnick=\"Ja\",\"X\",\"\")","v":""}," Der Heizkessel entspricht der besten verfügbaren Technik (Brennwerttechnologie)."]
[]
[]
[null,null,"A.","Bioölanteil im gelieferten Heizöl mindestens 10 %*"]
[]
[null,null,null,"1.","Der Heizkessel wird mit mindestens 10 % Bioölanteil im gelieferten Heizöl betrieben "]
[null,null,null,null,"und deckt den gesamten jährlichen Wärmeenergiebedarf des Gebäudes. Damit werden "]
[null,null,null,null,"die Anforderungen des EWärmeG zu zwei Dritteln erfüllt (Erfüllungsgrad = 66,7 %).",null,null,null,null,null,null,null,null,null,null,null,null,null,null,null,null,null,null,{"$f":"IF(BioölAnteilInHeizöl>=10%,IF(ErfüllungsgradBioöl*100=66.66,\"X\",\"\"),\"\")","v":""}]
[null,null,null,null,"oder"]
[null,null,null,"2.","Der Heizkessel wird mit mindestens 10 % Bioölanteil im gelieferten Heizöl"]
[null,null,null,null,"betrieben und deckt den gesamten jährlichen Wärmeenergiebedarf zu: ",null,null,null,null,null,null,null,null,null,null,null,null,null,null,null,null,{"$f":"IF(BioölAnteilInHeizöl>=10%,IF(ErfüllungsgradBioöl*100<66.66,DeckungsanteilBioöl,\"\"),\"\")","v":""},null,null," %"]
[]
[null,null,null,null,null,null,null,"erreichter \nErfüllungsgrad",null,null,null,"  = ","Deckungsanteil am Wärmeenergiebedarf (%) x 66,7 %",null,null,null,null,null,null,null,null,null,null,"  = "]
[null,null,null,null,null,null,null,null,null,null,null,null,null,null,null,null,null,null,null,null,null,null,null,null,{"$f":"IF(BioölAnteilInHeizöl>=10%,IF(X104=\"X\",\"\",ErfüllungsgradBioöl*100),\"\")","v":""},null,null,null," % "]
[null,null,null,null,null,null,null,null,null,null,null,null,"100 %"]
[]
[]
[null,null,"oder"]
[]
[null,null,"B.","Bioölanteil im gelieferten Heizöl durchschnittlich weniger als 10 %*"]
[]
[null,null,null,null,"Der Bioölanteil im gelieferten Heizöl beträgt im Durchschnitt:",null,null,null,null,null,null,null,null,null,null,null,null,null,null,null,null,{"$f":"IF(BioölAnteilInHeizöl<10%,BioölAnteilInHeizöl*100,\"\")","v":0},null,null," %"]
[]
[null,null,null,"1.","Der Heizkessel wird mit weniger als 10 % Bioölanteil im gelieferten Heizöl "]
[null,null,null,null,"betrieben und deckt den gesamten Wärmeenergiebedarf des Gebäudes. ",null,null,null,null,null,null,null,null,null,null,null,null,null,null,null,null,null,null,{"$f":"IF(BioölAnteilInHeizöl<10%,IF(DeckungsanteilBioöl=100,\"X\",\"\"),\"\")","v":""}]
[]
[null,null,null,null,null,null,null,null,null,"erreichter \nErfüllungsgrad ",null,null,null,"  = ","Bioölanteil im Heizöl (%) x 66,7 %",null,null,null,null,null,null,null,null,"  = "]
[null,null,null,null,null,null,null,null,null,null,null,null,null,null,null,null,null,null,null,null,null,null,null,null,{"$f":"IF(X121=\"X\",ErfüllungsgradBioöl*100,\"\")","v":""},null,null,null," % "]
[null,null,null,null,null,null,null,null,null,null,null,null,null,null,"10 %"]
[]
[null,null,null,null,"oder"]
[null,null,null,"2.","Der Heizkessel wird mit weniger als 10 % Bioölanteil im gelieferten Heizöl "]
[null,null,null,null,"betrieben und deckt den gesamten jährlichen Wärmeenergiebedarf zu: ",null,null,null,null,null,null,null,null,null,null,null,null,null,null,null,null,{"$f":"IF(BioölAnteilInHeizöl<10%,IF(X121=\"X\",\"\",DeckungsanteilBioöl),\"\")","v":0},null,null," %"]
[]
[null,"erreichter\nErfüllungsgrad ",null,null,null,"  = ","Deckungsanteil am Wärmeenergiebedarf (%)   ",null,null,null,null,null,null,null,"x","Bioölanteil im Heizöl (%) x 66,7 %"]
[null,null,null,null,null,null,null,null,null,null,null,null,null,null,null,null,null,null,null,null,null,null,null,"  = "]
[null,null,null,null,null,null,"100 %",null,null,null,null,null,null,null,null,"10 %",null,null,null,null,null,null,null,null,{"$f":"IF(BioölAnteilInHeizöl<10%,IF(X121=\"X\",\"\",ErfüllungsgradBioöl*100),\"\")","v":0},null,null,null," %"]
[]
[]
[null,null,"Erfüllungsgrad (bitte immer angeben)"]
[]
[null,null,"Die installierte und mit Heizöl mit Bioölanteil betriebene Heizanlage erfüllt die Anforderungen"]
[null,null,"des EWärmeG zu:",null,null,null,null,null,null,null,null,null,null,null,null,null,null,null,null,null,null,null,null,null,{"$f":"ErfüllungsgradBioöl*100","v":0},null,null,null," %"]
[]
[null,null,"* Angabe kann bei Plausibilität (nicht eingehender geprüft) vom Eigentümer übernommen werden."]
[]
[]
[]
[]
[null,null,null,"Ich bin Sachkundiger im Sinne von § 3 Nr. 11 EWärmeG als"]
[]
[null,null,null,null,{"$f":"IF(Qualifikation=SachkundigerBundesOderLandesRecht,\"X\",\"\")","v":""}," Berechtigter nach Bundes- oder Landesrecht zur Ausstellung von Energieausweisen,"]
[]
[null,null,null,null,{"$f":"IF(Qualifikation=SachkundigerZulassungspflichtigesGewerbe,\"X\",\"\")","v":""}," Person, die für ein zulassungspflichtiges Bau-, Ausbau- oder anlagentechnisches Gewerbe oder für "]
[null,null,null,null,null," das Schornsteinfegerwesen die Voraussetzungen zur Eintragung in die Handwerksrolle erfüllt,"]
[]
[null,null,null,null,{"$f":"IF(Qualifikation=SachkundigerHandwerksmeister,\"X\",\"\")","v":""}," Handwerksmeister der zulassungsfreien Handwerke dieser Bereiche,"]
[]
[null,null,null,null,{"$f":"IF(Qualifikation=SachkundigerOhneMeistertitel,\"X\",\"\")","v":""}," Person, die aufgrund ihrer Ausbildung oder ihres beruflichen Werdegangs berechtigt ist, ein solches "]
[null,null,null,null,null," Handwerk ohne Meistertitel selbständig auszuüben."]
[]
[null,null,null,"Hinweis: Ordnungswidrig handelt, wer in den Nachweisen vorsätzlich oder fahrlässig falsche Angaben macht (§ 23 EWärmeG)."]
[]
[null,null,"Name",null,null,null,null,null,null,null,"Vorname",null,null,null,null,"Firma des Sachkundigen"]
[null,null,{"$f":"c_nachname_sachkundiger","v":0},null,null,null,null,null,null,null,{"$f":"c_vorname_Sachkundiger","v":0},null,null,null,null,{"$f":"c_firmenname_sachkundiger","v":0}]
[]
[]
[]
[null,null,"Ort, Datum",null,null,null,null,null,null,null,null,null,null,null,null,"Unterschrift des Sachkundigen"]
[]
[]
[]
[]
[]
[]
[]
[]
[]
[]
[]
[]
[]
[]
[]
[]
[]
[]
[]
[]
[]
[]
[]
[]
[]
[]
[]
[]
[]
[]
[]
[]
[]
[]
[]
[]
[]
[]
[]
[]
[null,"Flüssige Biomasse - Bioöl"]
[null,"Bestätigung des Brennstofflieferanten nach § 20 EWärmeG "]
[]
[null,"Hinweis: Diese Vorlage dient der Nachweisführung und ist vom Eigentümer bei der unteren Baurechtsbehörde spätestens 18 Monate nach "]
[null,"Inbetriebnahme der neuen Heizanlage vorzulegen. "]
[]
[]
[null,null,null,"Anschrift des Gebäudes (für das der Nachweis geführt wird)"]
[]
[null,null,null,"Straße und Hausnummer",null,null,null,null,null,null,null,null,null,null,null,"Postleitzahl",null,null,"Ort"]
[null,null,null,{"$f":"c_strasse_objekt","v":0},null,null,null,null,null,null,null,null,null,null,null,{"$f":"c_plz_objekt","v":0},null,null,{"$f":"c_ort_objekt","v":0}]
[]
[]
[]
[null,null,"Nachweis des Brennstofflieferanten"]
[]
[null,null,null,"Hinweis: Bitte zutreffende Angaben ankreuzen und entsprechende Werte eintragen. "]
[]
[null,null,null,null,null,null,null,null,null,null,null,null,null," Liefertermin"]
[]
[null,null,null,null,null,null,null,null," gelieferte Heizölmenge in Liter"]
[]
[null,null,null,null," Die gelieferte Heizölmenge enthält mindestens 10 % Bioöl im "]
[null,null,null,null," Sinne des EWärmeG."]
[]
[null,null,null,null," oder"]
[]
[null,null,null,null," Die gelieferte Heizölmenge enthält weniger als 10 % Bioöl im "]
[null,null,null,null," Sinne des EWärmeG, sondern"]
[]
[null,null,null,null,null,null,null,null,null,null,null,null," %."]
[null,null,null,null," und",null,null,null,null,null,null," "]
[]
[null,null,null,null," Das gelieferte Bioöl entspricht den Anforderungen an einen nachhaltigen Anbau und eine nachhaltige Herstellung "]
[null,null,null,null," gemäß Biomassestrom-Nachhaltigkeitsverordnung vom 23.7.2009 (BGBL. I S. 2174), zuletzt geändert durch"]
[null,null,null,null," Artikel 3 des Gesetzes vom 20. November 2014 (BGBL. I S. 1740), in der jeweils gültigen Fassung."]
[null,null,null,null,"(§ 5 Abs. 4 Satz 3 EWärmeG)."]
[]
[null,null,null,"Hinweis: Ordnungswidrig handelt, wer auf den Nachweisen vorsätzlich oder fahrlässig falsche Angaben macht (§ 23 EWärmeG)."]
[]
[null,null,"Name",null,null,null,null,null,null,null,"Vorname",null,null,null,null,"Firma des Brennstofflieferanten"]
[]
[]
[]
[]
[null,null,"Ort, Datum",null,null,null,null,null,null,null,null,null,null,null,null,"Unterschrift des Brennstofflieferanten"]

{"sheet":"ERF","index":14,"n_rows":143,"n_cols":28,"rows_kept":143,"cut":false,"hidden":true,"merged":[[68,1,68,28],[1,1,1,28],[2,1,2,28],[11,3,11,13],[11,14,11,18],[11,19,11,26],[45,23,45,26],[48,1,48,13],[48,14,48,28],[49,1,51,13],[49,14,51,28],[67,1,67,28],[143,2,145,13],[143,14,145,27],[77,3,77,13],[77,14,77,18],[77,19,77,26],[113,23,113,26],[138,2,140,8],[138,9,140,13],[138,14,140,27]]}
[]
[null,"Einzelraumfeuerung"]
[null,"Nachweis des Eigentümers nach § 20 EWärmeG"]
[]
[null,"Hinweis: Diese Vorlage dient der Nachweisführung und ist der unteren Baurechtsbehörde spätestens 18 Monate nach Inbetriebnahme der neuen"]
[null,"Heizanlage vorzulegen. Die erste Seite ist vom Eigentümer auszufüllen und zu unterschreiben, die Folgeseiten vom Sachkundigen."]
[]
[]
[null,null,null,"Anschrift des Gebäudes (für das der Nachweis geführt wird)"]
[]
[null,null,null,"Straße und Hausnummer",null,null,null,null,null,null,null,null,null,null,"Postleitzahl",null,null,null,null,"Ort"]
[null,null,null,{"$f":"c_strasse_objekt","v":0},null,null,null,null,null,null,null,null,null,null,{"$f":"c_plz_objekt","v":0},null,null,null,null,{"$f":"c_ort_objekt","v":0}]
[]
[]
[]
[null,null,"Einzelraumfeuerung - Wohngebäude"]
[]
[null,null,null,"Hinweis: Bitte zutreffende Angaben ankreuzen und entsprechende Werte eintragen. "]
[]
[null,null,null,"Erfüllungsnachweis nach § 5 Abs. 5 EWärmeG"]
[]
[null,null,null,{"$f":"IF(WirdEinzelraumfeuerungVerwendet=EinzelraumfeuerungTypeKamin,\"X\",\"\")","v":""}," Es kommt ein Kamineinsatz oder ein Heizeinsatz für Kachel- oder Putzöfen zum Einsatz, in dem  "]
[null,null,null,null," ausschließlich naturbelassenes stückiges Holz eingesetzt wird."]
[null,null,null,null," oder"]
[null,null,null,{"$f":"IF(WirdEinzelraumfeuerungVerwendet=EinzelraumfeuerungTypeGrundofen,\"X\",\"\")","v":""}," Es kommt ein Grundofen zum Einsatz, in dem ausschließlich naturbelassenes stückiges Holz "]
[null,null,null,null," eingesetzt wird."]
[null,null,null,null," oder"]
[null,null,null,{"$f":"IF(WirdEinzelraumfeuerungVerwendet=EinzelraumfeuerungTypePellet,\"X\",\"\")","v":""}," Es kommt ein Ofen entsprechend DIN EN 14785: 2006-09, einschließlich Berichtigung 1: 2007-10"]
[null,null,null,null," zum Einsatz, in dem Holzpellets verfeuert werden."]
[]
[null,null,null,"und"]
[]
[null,null,null,null,"Die Einzelraumfeuerungsanlage ist mit einem Wasserwärmeübertrager ausgestattet und "]
[null,null,null,null,"erfüllt damit die Anforderungen des EWärmeG vollständig (Erfüllungsgrad = 100 %).",null,null,null,null,null,null,null,null,null,null,null,null,null,null,null,null,null,null,{"$f":"IF(EinzelraumfeuerungWärmenutzung=EinzelraumfeuerrungWärmenutzungWarmwasserübertrager,\"X\",\"\")","v":""}]
[null,null,null,null,"oder"]
[null,null,null,null,"Die Einzelraumfeuerungsanlage beheizt mindestens 30 Prozent der Wohnfläche überwiegend "]
[null,null,null,null,"und erfüllt damit die Anforderungen des EWärmeG vollständig (Erfüllungsgrad = 100 %).",null,null,null,null,null,null,null,null,null,null,null,null,null,null,null,null,null,null,{"$f":"IF(EinzelraumfeuerungWärmenutzung=EinzelraumfeuerrungWärmenutzung30,\"X\",\"\")","v":""}]
[null,null,null,null,"oder"]
[null,null,null,null,"Es wird eine oben genannte Einzelraumfeuerungsanlage betrieben, die bis zum 30. Juni 2015 "]
[null,null,null,null,"in Betrieb genommen wurde und die mindestens 25 Prozent der Wohnfläche "]
[null,null,null,null,"(aber weniger als 30 %) überwiegend beheizt und die damit die Anforderungen "]
[null,null,null,null,"des EWärmeG zu zwei Dritteln erfüllt (Erfüllungsgrad = 66,7 %).",null,null,null,null,null,null,null,null,null,null,null,null,null,null,null,null,null,null,{"$f":"IF(EinzelraumfeuerungWärmenutzung=EinzelraumfeuerrungWärmenutzung20,\"X\",\"\")","v":""}]
[]
[null,null,"Erfüllungsgrad (bitte immer angeben, muss mit den Angaben des Sachkundigen übereinstimmen)"]
[]
[null,null,"Die betriebene Einzelraumfeuerungsanlage erfüllt die Anforderungen des EWärmeG zu:",null,null,null,null,null,null,null,null,null,null,null,null,null,null,null,null,null,null,null,null,{"$f":"ErfüllungsgradEinzelraumbefeuerung*100","v":0},null,null,null," %"]
[]
[]
[null,"Ort, Datum",null,null,null,null,null,null,null,null,null,null,null,null,"Unterschrift des Eigentümers"]
[]
[]
[]
[]
[]
[]
[]
[]
[]
[]
[]
[]
[]
[]
[]
[]
[]
[]
[null,"Einzelraumfeuerung"]
[null,"Bestätigung des Sachkundigen nach § 20 EWärmeG"]
[]
[null,"Hinweis: Diese Vorlage dient der Nachweisführung und ist vom Eigentümer bei der unteren Baurechtsbehörde spätestens 18 Monate nach "]
[null,"Inbetriebnahme der neuen Heizanlage vorzulegen. "]
[]
[]
[null,null,null,"Anschrift des Gebäudes (für das der Nachweis geführt wird)"]
[]
[null,null,null,"Straße und Hausnummer",null,null,null,null,null,null,null,null,null,null,"Postleitzahl",null,null,null,null,"Ort"]
[null,null,null,{"$f":"c_strasse_objekt","v":0},null,null,null,null,null,null,null,null,null,null,{"$f":"c_plz_objekt","v":0},null,null,null,null,{"$f":"c_ort_objekt","v":0}]
[]
[]
[]
[null,null,"Einzelraumfeuerung - Wohngebäude"]
[]
[null,null,null,"Hinweis: Bitte zutreffende Angaben ankreuzen und entsprechende Werte eintragen. "]
[]
[null,null,null,"Erfüllungsnachweis nach § 5 Abs. 5 EWärmeG"]
[]
[null,null,null,{"$f":"IF(WirdEinzelraumfeuerungVerwendet=EinzelraumfeuerungTypeKamin,\"X\",\"\")","v":""}," Es kommt ein Kamineinsatz oder ein Heizeinsatz für Kachel-",null,null,null,null,null,null,null,null,null,null,null,null,null,{"$f":"IF(D88=\"X\",IF(EinzelraumFeuerungWirkungsgrad>=80%,\"X\",\"\"),\"\")","v":""}," Ein Mindestwirkungsgrad von 80 %"]
[null,null,null,null," oder Putzöfen zum Einsatz, in dem ausschließlich natur-",null,null,null,null,null,null,null,null,null,null,null,null,null,null," wird erreicht."]
[null,null,null,null," belassenes stückiges Holz eingesetzt wird."]
[null,null,null,null," oder"]
[null,null,null,{"$f":"IF(WirdEinzelraumfeuerungVerwendet=EinzelraumfeuerungTypeGrundofen,\"X\",\"\")","v":""}," Es kommt ein Grundofen zum Einsatz, in dem ausschließlich "]
[null,null,null,null," naturbelassenes stückiges eingesetzt wird."]
[null,null,null,null," oder"]
[null,null,null,{"$f":"IF(WirdEinzelraumfeuerungVerwendet=EinzelraumfeuerungTypePellet,\"X\",\"\")","v":""}," Es kommt ein Ofen entsprechend DIN EN 14785: 2006-09 ",null,null,null,null,null,null,null,null,null,null,null,null,null,{"$f":"IF(D95=\"X\",IF(EinzelraumFeuerungWirkungsgrad>=90%,\"X\",\"\"),\"\")","v":""}," Ein Mindestwirkungsgrad von 90 %"]
[null,null,null,null," einschließlich Berichtigung 1: 2007-10  zum Einsatz, in dem ",null,null,null,null,null,null,null,null,null,null,null,null,null,null," wird erreicht."]
[null,null,null,null," Holzpellets verfeuert werden."]
[]
[null,null,null,"und"]
[]
[null,null,null,null,"Die Einzelraumfeuerungsanlage ist mit einem Wasserwärmeübertrager ausgestattet und "]
[null,null,null,null,"erfüllt damit die Anforderungen des EWärmeG vollständig (Erfüllungsgrad = 100 %).",null,null,null,null,null,null,null,null,null,null,null,null,null,null,null,null,null,null,{"$f":"IF(EinzelraumfeuerungWärmenutzung=EinzelraumfeuerrungWärmenutzungWarmwasserübertrager,\"X\",\"\")","v":""}]
[null,null,null,null,"oder"]
[null,null,null,null,"Die Einzelraumfeuerungsanlage beheizt mindestens 30 Prozent der Wohnfläche überwiegend "]
[null,null,null,null,"und erfüllt damit die Anforderungen des EWärmeG vollständig (Erfüllungsgrad = 100 %).",null,null,null,null,null,null,null,null,null,null,null,null,null,null,null,null,null,null,{"$f":"IF(EinzelraumfeuerungWärmenutzung=EinzelraumfeuerrungWärmenutzung30,\"X\",\"\")","v":""}]
[null,null,null,null,"oder"]
[null,null,null,null,"Es wird eine oben genannte Einzelraumfeuerungsanlage betrieben, die bis zum 30. Juni 2015 "]
[null,null,null,null,"in Betrieb genommen wurde und die mindestens 25 Prozent der Wohnfläche "]
[null,null,null,null,"(aber weniger als 30 %) überwiegend beheizt und die damit die Anforderungen "]
[null,null,null,null,"des EWärmeG zu zwei Dritteln erfüllt (Erfüllungsgrad = 66,7 %).",null,null,null,null,null,null,null,null,null,null,null,null,null,null,null,null,null,null,{"$f":"IF(EinzelraumfeuerungWärmenutzung=EinzelraumfeuerrungWärmenutzung20,\"X\",\"\")","v":""}]
[]
[null,null,"Erfüllungsgrad (bitte immer angeben)"]
[]
[null,null,"Die betriebene Einzelraumfeuerungsanlage erfüllt die Anforderungen des EWärmeG zu:",null,null,null,null,null,null,null,null,null,null,null,null,null,null,null,null,null,null,null,null,{"$f":"ErfüllungsgradEinzelraumbefeuerung*100","v":0},null,null,null," %"]
[]
[]
[]
[]
[]
[]
[]
[]
[]
[null,null,null,"Ich bin Sachkundiger im Sinne von § 3 Nr. 11 EWärmeG als"]
[]
[null,null,null,null,{"$f":"IF(Qualifikation=SachkundigerBundesOderLandesRecht,\"X\",\"\")","v":""}," Berechtigter nach Bundes- oder Landesrecht zur Ausstellung von Energieausweisen,"]
[]
[null,null,null,null,{"$f":"IF(Qualifikation=SachkundigerZulassungspflichtigesGewerbe,\"X\",\"\")","v":""}," Person, die für ein zulassungspflichtiges Bau-, Ausbau- oder anlagentechnisches Gewerbe oder für "]
[null,null,null,null,null," das Schornsteinfegerwesen die Voraussetzungen zur Eintragung in die Handwerksrolle erfüllt,"]
[]
[null,null,null,null,{"$f":"IF(Qualifikation=SachkundigerHandwerksmeister,\"X\",\"\")","v":""}," Handwerksmeister der zulassungsfreien Handwerke dieser Bereiche,"]
[]
[null,null,null,null,{"$f":"IF(Qualifikation=SachkundigerOhneMeistertitel,\"X\",\"\")","v":""}," Person, die aufgrund ihrer Ausbildung oder ihres beruflichen Werdegangs berechtigt ist, ein solches "]
[null,null,null,null,null," Handwerk ohne Meistertitel selbständig auszuüben."]
[]
[null,null,null,"Hinweis: Ordnungswidrig handelt, wer in den Nachweisen vorsätzlich oder fahrlässig falsche Angaben macht (§ 23 EWärmeG)."]
[]
[null,null,"Name",null,null,null,null,null,null,"Vorname",null,null,null,null,"Firma des Sachkundigen"]
[null,null,{"$f":"c_nachname_sachkundiger","v":0},null,null,null,null,null,null,{"$f":"c_vorname_Sachkundiger","v":0},null,null,null,null,{"$f":"c_firmenname_sachkundiger","v":0}]
[]
[]
[]
[null,null,"Ort, Datum",null,null,null,null,null,null,null,null,null,null,null,"Unterschrift des Sachkundigen"]

{"sheet":"DCH","index":15,"n_rows":175,"n_cols":30,"rows_kept":175,"cut":false,"hidden":true,"merged":[[150,25,150,28],[170,2,172,9],[170,10,172,15],[170,16,172,29],[175,2,177,15],[175,16,177,29],[144,29,145,29],[145,12,146,21],[134,29,135,29],[135,12,136,21],[138,3,141,10],[138,11,141,11],[138,12,139,21],[138,22,141,24],[139,25,140,28],[139,29,140,29],[140,12,141,21],[143,3,146,10],[143,11,146,11],[143,12,144,21],[143,22,146,24],[144,25,145,28],[129,25,130,25],[130,14,131,19],[133,3,136,10],[133,11,136,11],[133,12,134,21],[133,22,136,24],[134,25,135,28],[126,9,126,12],[126,13,126,15],[126,17,126,21],[126,22,126,24],[128,3,131,12],[128,13,131,13],[128,14,129,19],[128,20,131,21],[129,22,130,24],[123,9,123,12],[123,13,123,15],[123,17,123,21],[123,22,123,24],[73,1,73,30],[82,3,82,15],[82,16,82,18],[82,19,82,28],[92,3,92,5],[102,16,102,17],[104,16,104,17],[121,9,121,12],[121,13,121,15],[121,17,121,21],[121,22,121,24],[72,1,72,30],[1,1,1,30],[2,1,2,30],[11,3,11,15],[11,16,11,18],[11,19,11,28],[34,3,34,5],[46,25,46,28],[49,1,49,15],[49,16,49,30],[50,1,52,15],[50,16,52,30]]}
[]
[null,"Dachdämmung"]
[null,"Nachweis des Eigentümers nach § 20 EWärmeG"]
[]
[null,"Hinweis: Diese Vorlage dient der Nachweisführung und ist der unteren Baurechtsbehörde spätestens 18 Monate nach Inbetriebnahme der neuen"]
[null,"Heizanlage vorzulegen. Die erste Seite ist vom Eigentümer auszufüllen und zu unterschreiben, die Folgeseiten vom Sachkundigen."]
[]
[]
[null,null,null,"Anschrift des Gebäudes (für das der Nachweis geführt wird)"]
[]
[null,null,null,"Straße und Hausnummer",null,null,null,null,null,null,null,null,null,null,null,null,"Postleitzahl",null,null,"Ort"]
[null,null,null,{"$f":"c_strasse_objekt","v":0},null,null,null,null,null,null,null,null,null,null,null,null,{"$f":"c_plz_objekt","v":0},null,null,{"$f":"c_ort_objekt","v":0}]
[]
[]
[]
[null,null,"Dachdämmung - Wohngebäude und Nichtwohngebäude"]
[]
[null,null,null,"Hinweis: Bitte zutreffende Angaben ankreuzen und entsprechende Werte eintragen. "]
[]
[null,null,null,"Erfüllungsnachweis nach § 8 Abs. 1 Nr. 1 und § 15 Abs. 1 EWärmeG"]
[]
[null,null,null,"Hinweis: Dachflächen, Decken und Wände gegen unbeheizte Dachräume werden nachfolgend Dachflächen genannt."]
[]
[null,null,null,"Bis zu vier Vollgeschosse: Sind alle Dachflächen anforderungsgemäß gedämmt (anforderungsgemäß gedämmte Dachfläche = "]
[null,null,null,"gesamte Dachfläche), sind die Anforderungen des EWärmeG vollständig erfüllt (Erfüllungsgrad = 100 %)."]
[]
[null,null,null,"Bei fünf bis acht Vollgeschossen: Sind alle Dachflächen anforderungsgemäß gedämmt (anforderungsgemäß gedämmte Dachfläche ="]
[null,null,null,"gesamte Dachfläche), sind die  Anforderungen des EWärmeG zu zwei Dritteln erfüllt (Erfüllungsgrad = 66,7 %)."]
[]
[null,null,null,"Bei mehr als acht Vollgeschossen: Sind alle Dachflächen anforderungsgemäß gedämmt (anforderungsgemäß gedämmte Dachfläche ="]
[null,null,null,"gesamte Dachfläche), sind die Anforderungen des EWärmeG zu einem Drittel erfüllt (Erfüllungsgrad = 33,3 %). "]
[]
[null,null,null,"Anforderungsgemäß gedämmte Teilflächen können anteilig angerechnet werden (§ 11 und § 18 EWärmeG)."]
[]
[null,null,null,{"$f":"g_geschosse","v":0},null,null," Anzahl Vollgeschosse (nach Landesbauordnung)"]
[null,null,null,null,null,null,null,null,null,null,null,null,null,null,null,null,null,null,null,null,null,null,null,null," "]
[null,null,null,"1.","Es sind alle Dachflächen so gedämmt, dass die Anforderungen an den in Anlage 3"]
[null,null,null,null,"Tabelle 1 der EnEV in der am 1. Mai 2014 geltenden Fassung festgelegten Wärme-"]
[null,null,null,null,"durchgangskoeffizienten um mindestens 20 % unterschritten werden.",null,null,null,null,null,null,null,null,null,null,null,null,null,null,null,null,null,null,null,null,{"$f":"IF(SummeGedämmteFlächen=SummeDachflächen,\"X\",\"\")","v":"X"}]
[null,null,null,null,"oder"]
[null,null,null,"2.","Es sind Teile der Dachflächen so gedämmt, dass die Anforderungen an den in Anlage 3 "]
[null,null,null,null,"Tabelle 1 der EnEV in der am 1. Mai 2014 geltenden Fassung festgelegten Wärme-"]
[null,null,null,null,"durchgangskoeffizienten um mindestens 20 % unterschritten werden.",null,null,null,null,null,null,null,null,null,null,null,null,null,null,null,null,null,null,null,null,{"$f":"IF(SummeGedämmteFlächen<SummeDachflächen,\"X\",\"\")","v":""}]
[]
[null,null,"Erfüllungsgrad (bitte immer angeben, muss mit den Angaben des Sachkundigen übereinstimmen)"]
[]
[null,null,"Die Dachdämmung erfüllt die Anforderungen des EWärmeG zu:",null,null,null,null,null,null,null,null,null,null,null,null,null,null,null,null,null,null,null,null,null,null,{"$f":"ErfüllungsgradDachdämmung*100","v":0},null,null,null," %"]
[]
[]
[null,"Ort, Datum",null,null,null,null,null,null,null,null,null,null,null,null,null,null,"Unterschrift des Eigentümers"]
[]
[]
[]
[]
[]
[]
[]
[]
[]
[]
[]
[]
[]
[]
[]
[]
[]
[]
[]
[]
[]
[]
[null,"Dachdämmung"]
[null,"Bestätigung des Sachkundigen nach § 20 EWärmeG"]
[]
[null,"Hinweis: Diese Vorlage dient der Nachweisführung und ist vom Eigentümer bei der unteren Baurechtsbehörde spätestens 18 Monate nach "]
[null,"Inbetriebnahme der neuen Heizanlage vorzulegen. "]
[]
[]
[null,null,null,"Anschrift des Gebäudes (für das der Nachweis geführt wird)"]
[]
[null,null,null,"Straße und Hausnummer",null,null,null,null,null,null,null,null,null,null,null,null,"Postleitzahl",null,null,"Ort"]
[null,null,null,{"$f":"c_strasse_objekt","v":0},null,null,null,null,null,null,null,null,null,null,null,null,{"$f":"c_plz_objekt","v":0},null,null,{"$f":"c_ort_objekt","v":0}]
[]
[]
[]
[null,null,"Dachdämmung - Wohngebäude und Nichtwohngebäude"]
[]
[null,null,null,"Hinweis: Bitte zutreffende Angaben ankreuzen und entsprechende Werte eintragen. "]
[]
[null,null,null,"Erfüllungsnachweis nach § 8 Abs. 1 Nr. 1 und § 15 Abs. 1 EWärmeG"]
[]
[null,null,null,{"$f":"g_geschosse","v":0},null,null," Anzahl Vollgeschosse (nach Landesbauordnung)"]
[]
[null,null,null,"Hinweis: Die Anforderungswerte des EWärmeG sind die Anforderungswerte an den Wärmedurchgangskoeffizienten (U-Wert) in"]
[null,null,null,"Anlage 3 Tabelle 1 der EnEV 2013 minus 20 %."]
[null,null,null,"a. ","Dachflächen, Dachgauben, Wände gegen unbeheizte Räume und oberste Geschossdecken:",null,null,null,null,null,null,null,null,null,null,null,null,null,null,null,null,null,"0,192 W/m2K"]
[null,null,null,"b.","Dachflächen mit Abdichtung (z. B. Flachdächer):",null,null,null,null,null,null,null,null,null,null,null,null,null,null,null,null,null,"0,160 W/m2K"]
[]
[null,null,null,"U-Wert der Dachflächen des Gebäudes, die anforderungsgemäß gedämmt sind:"]
[]
[null,null,null,"a.","Dachflächen, Dachgauben, Wände gegen unbe-"]
[null,null,null,null,"heizte Räume und oberste Geschossdecken:",null,null,null,null,null,null,null,null,null,null,null,{"$f":"IF(UWertDachdämmung>0,UWertDachdämmung,\"\")","v":""},null," W/m2K"]
[]
[null,null,null,"b.","Dachflächen mit Abdichtung (z. B. Flachdächer):",null,null,null,null,null,null,null,null,null,null,null,{"$f":"IF(UWertFlachdachdämmung>0,UWertFlachdachdämmung,\"\")","v":""},null," W/m2K"]
[]
[null,null,"A.","Gesamte Dachfläche ist anforderungsgemäß gedämmt"]
[]
[null,null,null,"Das Gebäude hat ein bis vier Vollgeschosse. Damit werden die Anforderungen des EWärmeG"]
[null,null,null,"vollständig erfüllt (Erfüllungsgrad = 100 %).",null,null,null,null,null,null,null,null,null,null,null,null,null,null,null,null,null,null,null,null,null,{"$f":"IF(SummeGedämmteFlächen=SummeDachflächen,IF(g_geschosse<=4,\"X\",\"\"),\"\")","v":"X"}]
[null,null,null,"oder"]
[null,null,null,"Das Gebäude hat fünf bis acht Vollgeschosse. Damit werden die Anforderungen des EWärmeG"]
[null,null,null,"zu zwei Dritteln erfüllt (Erfüllungsgrad = 66,7 %).",null,null,null,null,null,null,null,null,null,null,null,null,null,null,null,null,null,null,null,null,null,{"$f":"IF(SummeGedämmteFlächen=SummeDachflächen,IF(OR(g_geschosse=5,g_geschosse=6,g_geschosse=7,g_geschosse=8),\"X\",\"\"),\"\")","v":""}]
[null,null,null,"oder"]
[null,null,null,"Das Gebäude hat mehr als acht Vollgeschosse. Damit werden die Anforderungen des EWärmeG"]
[null,null,null,"zu einem Drittel erfüllt (Erfüllungsgrad = 33,3 %).",null,null,null,null,null,null,null,null,null,null,null,null,null,null,null,null,null,null,null,null,null,{"$f":"IF(SummeGedämmteFlächen=SummeDachflächen,IF(g_geschosse>8,\"X\",\"\"),\"\")","v":""}]
[]
[null,null,"oder"]
[null,null," "]
[null,null,"B.","Dachflächen sind teilweise anforderungsgemäß gedämmt"]
[]
[null,null,null,"Dachflächen nach a.:",null,null,null,null,null,"gesamte Fläche:",null,null,null,{"$f":"IF(SummeGedämmteFlächen<SummeDachflächen,Dachfläche,\"\")","v":""},null,null," m2","gedämmte Teilfläche:",null,null,null,null,{"$f":"IF(SummeGedämmteFlächen<SummeDachflächen,GedämteDachfläche,\"\")","v":""},null,null," m2"]
[]
[null,null,null,"Dachfläche nach b.:",null,null,null,null,null,"gesamte Fläche:",null,null,null,{"$f":"IF(SummeGedämmteFlächen<SummeDachflächen,FlachdachFläche,\"\")","v":""},null,null," m2","gedämmte Teilfläche:",null,null,null,null,{"$f":"IF(SummeGedämmteFlächen<SummeDachflächen,GedämmtesFlachdach,\"\")","v":""},null,null," m2"]
[]
[]
[null,null,null,"Summe a. + b.",null,null,null,null,null,"gesamte Fläche:",null,null,null,{"$f":"IF(SummeGedämmteFlächen<SummeDachflächen,SummeDachflächen,\"\")","v":""},null,null," m2","gedämmte Teilfläche:",null,null,null,null,{"$f":"IF(SummeGedämmteFlächen<SummeDachflächen,SummeGedämmteFlächen,\"\")","v":""},null,null," m2"]
[]
[null,null,null,"anforderungsgemäß gedämmter Flächenanteil ",null,null,null,null,null,null,null,null,null,"=","gedämmte Teilfläche (m2)",null,null,null,null,null,"x  100 % ="]
[null,null,null,null,null,null,null,null,null,null,null,null,null,null,null,null,null,null,null,null,null,null,{"$f":"IF(SummeGedämmteFlächen<SummeDachflächen,SummeGedämmteFlächen/SummeDachflächen*100,\"\")","v":""},null,null," % "]
[null,null,null,null,null,null,null,null,null,null,null,null,null,null,"gesamte Fläche (m2)"]
[]
[]
[null,null,null,"erreichter Erfüllungsgrad\n(bei 1 bis 4 Vollgeschossen)",null,null,null,null,null,null,null,"=","anforderungsgemäß gedämmter Flächenanteil (%)",null,null,null,null,null,null,null,null,null,"x 100 % ="]
[null,null,null,null,null,null,null,null,null,null,null,null,null,null,null,null,null,null,null,null,null,null,null,null,null,{"$f":"IF(SummeGedämmteFlächen<SummeDachflächen,IF(g_geschosse<=4,ErfüllungsgradDachdämmung*100,\"\"),\"\")","v":""},null,null,null," %"]
[null,null,null,null,null,null,null,null,null,null,null,null,"100 %"]
[]
[]
[null,null,null,"erreichter Erfüllungsgrad\n(bei 5 bis 8 Vollgeschossen)",null,null,null,null,null,null,null,"=","anforderungsgemäß gedämmter Flächenanteil (%)",null,null,null,null,null,null,null,null,null,"x 66,7 % ="]
[null,null,null,null,null,null,null,null,null,null,null,null,null,null,null,null,null,null,null,null,null,null,null,null,null,{"$f":"IF(SummeGedämmteFlächen<SummeDachflächen,IF(OR(g_geschosse=5,g_geschosse=6,g_geschosse=7,g_geschosse=8),ErfüllungsgradDachdämmung*100,\"\"),\"\")","v":""},null,null,null," %"]
[null,null,null,null,null,null,null,null,null,null,null,null,"100 %"]
[]
[]
[null,null,null,"erreichter Erfüllungsgrad\n(bei mehr als 8 Vollgeschossen)",null,null,null,null,null,null,null,"=","anforderungsgemäß gedämmter Flächenanteil (%)",null,null,null,null,null,null,null,null,null,"x 33,3 % ="]
[null,null,null,null,null,null,null,null,null,null,null,null,null,null,null,null,null,null,null,null,null,null,null,null,null,{"$f":"IF(SummeGedämmteFlächen<SummeDachflächen,IF(g_geschosse>8,ErfüllungsgradDachdämmung*100,\"\"),\"\")","v":""},null,null,null," %"]
[null,null,null,null,null,null,null,null,null,null,null,null,"100 %"]
[]
[]
[null,null,"Erfüllungsgrad (bitte immer angeben)"]
[]
[null,null,"Die Dachdämmung erfüllt die Anforderungen des EWärmeG zu:",null,null,null,null,null,null,null,null,null,null,null,null,null,null,null,null,null,null,null,null,null,null,{"$f":"ErfüllungsgradDachdämmung*100","v":0},null,null,null," %"]
[]
[]
[]
[]
[null,null,null,"Ich bin Sachkundiger im Sinne von § 3 Nr. 11 EWärmeG als"]
[]
[null,null,null,null,{"$f":"IF(Qualifikation=SachkundigerBundesOderLandesRecht,\"X\",\"\")","v":""}," Berechtigter nach Bundes- oder Landesrecht zur Ausstellung von Energieausweisen,"]
[]
[null,null,null,null,{"$f":"IF(Qualifikation=SachkundigerZulassungspflichtigesGewerbe,\"X\",\"\")","v":""}," Person, die für ein zulassungspflichtiges Bau-, Ausbau- oder anlagentechnisches Gewerbe oder für "]
[null,null,null,null,null," das Schornsteinfegerwesen die Voraussetzungen zur Eintragung in die Handwerksrolle erfüllt,"]
[]
[null,null,null,null,{"$f":"IF(Qualifikation=SachkundigerHandwerksmeister,\"X\",\"\")","v":""}," Handwerksmeister der zulassungsfreien Handwerke dieser Bereiche,"]
[]
[null,null,null,null,{"$f":"IF(Qualifikation=SachkundigerOhneMeistertitel,\"X\",\"\")","v":""}," Person, die aufgrund ihrer Ausbildung oder ihres beruflichen Werdegangs berechtigt ist, ein solches "]
[null,null,null,null,null," Handwerk ohne Meistertitel selbständig auszuüben."]
[]
[null,null,null,"Hinweis: Ordnungswidrig handelt, wer in den Nachweisen vorsätzlich oder fahrlässig falsche Angaben macht (§ 23 EWärmeG)."]
[]
[null,null,"Name",null,null,null,null,null,null,null,"Vorname",null,null,null,null,null,"Firma des Sachkundigen"]
[null,null,{"$f":"c_nachname_sachkundiger","v":0},null,null,null,null,null,null,null,{"$f":"c_vorname_Sachkundiger","v":0},null,null,null,null,null,{"$f":"c_firmenname_sachkundiger","v":0}]
[]
[]
[]
[null,null,"Ort, Datum",null,null,null,null,null,null,null,null,null,null,null,null,null,"Unterschrift des Sachkundigen"]

{"sheet":"AWD","index":16,"n_rows":137,"n_cols":27,"rows_kept":137,"cut":false,"hidden":true,"merged":[[113,22,113,25],[132,2,134,8],[132,9,134,13],[132,14,134,26],[137,2,139,13],[137,14,139,26],[107,26,108,26],[108,10,109,18],[101,4,104,8],[101,9,104,9],[101,10,102,14],[101,15,104,16],[102,17,103,18],[102,19,103,19],[103,10,104,14],[106,6,109,8],[106,9,109,9],[106,10,107,18],[106,19,109,21],[107,22,108,25],[74,3,74,13],[74,14,74,16],[74,17,74,25],[89,17,89,18],[99,8,99,9],[99,17,99,18],[65,1,65,28],[1,1,1,27],[2,1,2,27],[11,3,11,13],[11,14,11,16],[11,17,11,25],[37,22,37,25],[40,1,40,13],[40,14,40,27],[41,1,43,13],[41,14,43,27],[64,1,64,28]]}
[]
[null,"Außenwanddämmung"]
[null,"Nachweis des Eigentümers nach § 20 EWärmeG"]
[]
[null,"Hinweis: Diese Vorlage dient der Nachweisführung und ist der unteren Baurechtsbehörde spätestens 18 Monate nach Inbetriebnahme der neuen"]
[null,"Heizanlage vorzulegen. Die erste Seite ist vom Eigentümer auszufüllen und zu unterschreiben, die Folgeseite vom Sachkundigen."]
[]
[]
[null,null,null,"Anschrift des Gebäudes (für das der Nachweis geführt wird)"]
[]
[null,null,null,"Straße und Hausnummer",null,null,null,null,null,null,null,null,null,null,"Postleitzahl",null,null,"Ort"]
[null,null,null,{"$f":"c_strasse_objekt","v":0},null,null,null,null,null,null,null,null,null,null,{"$f":"c_plz_objekt","v":0},null,null,{"$f":"c_ort_objekt","v":0}]
[]
[]
[]
[null,null,"Außenwanddämmung - Wohngebäude und Nichtwohngebäude"]
[]
[null,null,null,"Hinweis: Bitte zutreffende Angaben ankreuzen und entsprechende Werte eintragen."]
[]
[null,null,null,"Erfüllungsnachweis nach § 8 Abs. 1 Nr. 2 und § 15 Abs. 1 EWärmeG"]
[]
[null,null,null,"Hinweis: Sind alle Außenwandflächen anforderungsgemäß gedämmt (anforderungsgemäß gedämmte Außenwandfläche = gesamte "]
[null,null,null,"Außenwandfläche), sind die Anforderungen des EWärmeG vollständig (Erfüllungsgrad = 100 %) erfüllt. Anforderungsgemäß"]
[null,null,null,"gedämmte Teilflächen können anteilig angerechnet werden (§ 11 Abs. 5 und § 18 EWärmeG)."]
[null,null,null,null,null,null,null,null,null,null,null,null,null,null,null,null,null,null,null,null,null," "]
[null,null,null,"1.","Es sind alle Außenwandflächen so gedämmt, dass die Anforderungen an den in Anlage 3 "]
[null,null,null,null,"Tabelle 1 der EnEV in der am 1. Mai 2014 geltenden Fassung festgelegten Wärme-"]
[null,null,null,null,"durchgangskoeffizienten um mindestens 20 Prozent unterschritten werden. "]
[null,null,null,null,"Die Anforderungen des EWärmeG sind vollständig erfüllt (Erfüllungsgrad = 100 %).",null,null,null,null,null,null,null,null,null,null,null,null,null,null,null,null,null,{"$f":"IF(ErfüllungsgradAußenwandDämmung*100=100,\"X\",\"\")","v":""}]
[null,null,null,null,"oder"]
[null,null,null,"2.","Es sind Teile der Außenwandflächen so gedämmt, dass die Anforderungen an den in "]
[null,null,null,null,"Anlage 3 Tabelle 1 der EnEV in der am 1. Mai 2014 geltenden Fassung festgelegten "]
[null,null,null,null,"Wärmedurchgangkoeffizienten um mindestens 20 Prozent unterschritten werden. Die  "]
[null,null,null,null,"Anforderungen des EWärmeG sind anteilig erfüllt (Erfüllungsgrad weniger als 100 %).",null,null,null,null,null,null,null,null,null,null,null,null,null,null,null,null,null,{"$f":"IF(ErfüllungsgradAußenwandDämmung*100<100,\"X\",\"\")","v":"X"}]
[]
[null,null,"Erfüllungsgrad (bitte immer angeben, muss mit den Angaben des Sachkundigen übereinstimmen)"]
[]
[null,null,"Die Außenwanddämmung erfüllt die Anforderungen des EWärmeG zu:",null,null,null,null,null,null,null,null,null,null,null,null,null,null,null,null,null,null,null,{"$f":"ErfüllungsgradAußenwandDämmung*100","v":0},null,null,null," %"]
[]
[]
[null,"Ort, Datum",null,null,null,null,null,null,null,null,null,null,null,null,"Unterschrift des Eigentümers"]
[]
[]
[]
[]
[]
[]
[]
[]
[]
[]
[]
[]
[]
[]
[]
[]
[]
[]
[]
[]
[]
[]
[]
[null,"Außenwanddämmung"]
[null,"Bestätigung des Sachkundigen nach § 20 EWärmeG"]
[]
[null,"Hinweis: Diese Vorlage dient der Nachweisführung und ist vom Eigentümer bei der unteren Baurechtsbehörde spätestens 18 Monate nach "]
[null,"Inbetriebnahme der neuen Heizanlage vorzulegen. "]
[]
[]
[null,null,null,"Anschrift des Gebäudes (für das der Nachweis geführt wird)"]
[]
[null,null,null,"Straße und Hausnummer",null,null,null,null,null,null,null,null,null,null,"Postleitzahl",null,null,"Ort"]
[null,null,null,{"$f":"c_strasse_objekt","v":0},null,null,null,null,null,null,null,null,null,null,{"$f":"c_plz_objekt","v":0},null,null,{"$f":"c_ort_objekt","v":0}]
[]
[]
[]
[null,null,"Außenwanddämmung (AWD) - Wohngebäude und Nichtwohngebäude"]
[]
[null,null,null,"Hinweis: Bitte zutreffende Angaben ankreuzen und entsprechende Werte eintragen. "]
[]
[null,null,null,"Erfüllungsnachweis nach § 8 Abs. 1 Nr. 2 und § 15 Abs. 1 EWärmeG"]
[]
[null,null,null,"Hinweis: Der Anforderungswert im EWärmeG ist der Anforderungswert an den Wärmedurchgangskoeffizienten (U-Wert) in"]
[null,null,null,"Anlage 3 Tabelle 1 der EnEV 2013 minus 20 %."]
[null,null,null,"Außenwandflächen: 0,192 W/m2K"]
[]
[null,null,null,"U-Wert der Außenwandflächen des Gebäudes, "]
[null,null,null,"die anforderungsgemäß gedämmt sind:",null,null,null,null,null,null,null,null,null,null,null,null,null,{"$f":"UWertAussenwandDämmung","v":0},null," W/m2K"]
[]
[null,null,"A.","Gesamte Außenwandfläche ist anforderungsgemäß gedämmt"]
[]
[null,null,null,"Damit werden die Anforderungen des EWärmeG vollständig erfüllt (Erfüllungsgrad = 100 %).",null,null,null,null,null,null,null,null,null,null,null,null,null,null,null,null,null,null,{"$f":"IF(GedämmteAußenwandFläche=AußenwandFläche,\"X\",\"\")","v":"X"}]
[]
[null,"  ","oder"]
[]
[null,null,"B.","Außenwandflächen sind teilweise anforderungsgemäß gedämmt"]
[]
[null,null,null,"gesamte Fläche:",null,null,null,null,{"$f":"IF(GedämmteAußenwandFläche<AußenwandFläche,AußenwandFläche,\"\")","v":""},null," m2",null,"gedämmte Teilfläche:",null,null,null,null,{"$f":"IF(GedämmteAußenwandFläche<AußenwandFläche,GedämmteAußenwandFläche,\"\")","v":""},null," m2"]
[]
[null,null,null,null,"anforderungsgemäß\ngedämmter Flächenanteil",null,null,null,null,"=","gedämmte Teilfläche (m2)",null,null,null,null,"x 100 % ="]
[null,null,null,null,null,null,null,null,null,null,null,null,null,null,null,null,null,{"$f":"IF(GedämmteAußenwandFläche<AußenwandFläche,GedämmteAußenwandFläche/AußenwandFläche*100,\"\")","v":""},null," %"]
[null,null,null,null,null,null,null,null,null,null,"gesamte Fläche (m2)"]
[]
[]
[null,null,null,null,null,null,"erreichter\nErfüllungsgrad",null,null,"=","anforderungsgemäß gedämmter Flächenanteil (%)",null,null,null,null,null,null,null,null,"x 100 % ="]
[null,null,null,null,null,null,null,null,null,null,null,null,null,null,null,null,null,null,null,null,null,null,{"$f":"IF(GedämmteAußenwandFläche<AußenwandFläche,ErfüllungsgradAußenwandDämmung*100,\"\")","v":""},null,null,null," %"]
[null,null,null,null,null,null,null,null,null,null,"100 %"]
[]
[]
[null,null,"Erfüllungsgrad (bitte immer angeben)"]
[]
[null,null,"Die Außenwanddämmung erfüllt die Anforderungen des EWärmeG zu:",null,null,null,null,null,null,null,null,null,null,null,null,null,null,null,null,null,null,null,{"$f":"ErfüllungsgradAußenwandDämmung*100","v":0},null,null,null," %"]
[]
[]
[]
[null,null,null,"Ich bin Sachkundiger im Sinne von § 3 Nr. 11 EWärmeG als"]
[]
[null,null,null,null,{"$f":"IF(Qualifikation=SachkundigerBundesOderLandesRecht,\"X\",\"\")","v":""}," Berechtigter nach Bundes- oder Landesrecht zur Ausstellung von Energieausweisen,"]
[]
[null,null,null,null,{"$f":"IF(Qualifikation=SachkundigerZulassungspflichtigesGewerbe,\"X\",\"\")","v":""}," Person, die für ein zulassungspflichtiges Bau-, Ausbau- oder anlagentechnisches Gewerbe oder für "]
[null,null,null,null,null," das Schornsteinfegerwesen die Voraussetzungen zur Eintragung in die Handwerksrolle erfüllt,"]
[]
[null,null,null,null,{"$f":"IF(Qualifikation=SachkundigerHandwerksmeister,\"X\",\"\")","v":""}," Handwerksmeister der zulassungsfreien Handwerke dieser Bereiche,"]
[]
[null,null,null,null,{"$f":"IF(Qualifikation=SachkundigerOhneMeistertitel,\"X\",\"\")","v":""}," Person, die aufgrund ihrer Ausbildung oder ihres beruflichen Werdegangs berechtigt ist, ein solches "]
[null,null,null,null,null," Handwerk ohne Meistertitel selbständig auszuüben."]
[]
[null,null,null,"Hinweis: Ordnungswidrig handelt, wer in den Nachweisen vorsätzlich oder fahrlässig falsche Angaben macht (§ 23 EWärmeG)."]
[]
[null,null,"Name",null,null,null,null,null,null,"Vorname",null,null,null,null,"Firma des Sachkundigen"]
[null,null,{"$f":"c_nachname_sachkundiger","v":0},null,null,null,null,null,null,{"$f":"c_vorname_Sachkundiger","v":0},null,null,null,null,{"$f":"c_firmenname_sachkundiger","v":0}]
[]
[]
[]
[null,null,"Ort, Datum",null,null,null,null,null,null,null,null,null,null,null,"Unterschrift des Sachkundigen"]

{"sheet":"KEL","index":17,"n_rows":143,"n_cols":27,"rows_kept":143,"cut":false,"hidden":true,"merged":[[139,2,141,13],[139,14,141,26],[98,16,98,17],[100,16,100,17],[115,22,115,25],[134,2,136,8],[134,9,136,13],[134,14,136,26],[96,16,96,17],[36,22,36,25],[39,1,39,13],[39,14,39,27],[40,1,42,13],[40,14,42,27],[67,1,67,27],[68,1,68,27],[77,3,77,13],[77,14,77,16],[77,17,77,25],[86,3,86,5],[21,3,21,5],[1,1,1,27],[2,1,2,27],[11,3,11,13],[11,14,11,16],[11,17,11,25]]}
[]
[null,"Kellerdeckendämmung"]
[null,"Nachweis des Eigentümers nach § 20 EWärmeG"]
[]
[null,"Hinweis: Diese Vorlage dient der Nachweisführung und ist der unteren Baurechtsbehörde spätestens 18 Monate nach Inbetriebnahme der neuen"]
[null,"Heizanlage vorzulegen. Die erste Seite ist vom Eigentümer auszufüllen und zu unterschreiben, die Folgeseite vom Sachkundigen."]
[]
[]
[null,null,null,"Anschrift des Gebäudes (für das der Nachweis geführt wird)"]
[]
[null,null,null,"Straße und Hausnummer",null,null,null,null,null,null,null,null,null,null,"Postleitzahl",null,null,"Ort"]
[null,null,null,{"$f":"c_strasse_objekt","v":0},null,null,null,null,null,null,null,null,null,null,{"$f":"c_plz_objekt","v":0},null,null,{"$f":"c_ort_objekt","v":0}]
[]
[]
[]
[null,null,"Kellerdeckendämmung  - Wohngebäude und Nichtwohngebäude"]
[]
[null,null,null,"Hinweis: Bitte zutreffende Angaben ankreuzen und entsprechende Werte eintragen."]
[]
[null,null,null,"Erfüllungsnachweis nach § 8 Abs. 2 und § 15 Abs. 1 EWärmeG"]
[]
[null,null,null,{"$f":"g_geschosse","v":0},null,null," Anzahl Vollgeschosse (nach Landesbauordnung)"]
[]
[null,null,null,"Hinweis: Bei Gebäuden mit maximal zwei Vollgeschossen werden die Anforderungen des EWärmeG zu zwei Dritteln erfüllt"]
[null,null,null,"(Erfüllungsgrad = 66,7 %)."]
[null,null,null,"Bei Gebäuden mit drei oder vier Vollgeschossen werden die Anforderungen des EWärmeG zu einem Drittel erfüllt"]
[null,null,null,"(Erfüllungsgrad = 33,3 %)."]
[null,null,null,"Anforderungsgemäß gedämmte Teilflächen können nicht anteilig angerechnet werden."]
[]
[null,null,null,"Es sind alle Bauteile, die beheizte Räume nach unten gegen unbeheizte Räume, Außenluft"]
[null,null,null,"oder Erdreich begrenzen, so gedämmt, dass die Anforderungen an den in Anlage 3 "]
[null,null,null,"Tabelle 1 festgehaltenen Wärmedurchgangskoeffizienten der EnEV in der am 1. Mai 2014 "]
[null,null,null,"geltenden Fassung um mindestens 20 Prozent unterschritten werden.",null,null,null,null,null,null,null,null,null,null,null,null,null,null,null,null,null,null,{"$f":"IF(KellerdeckenDämmungEntsprichtAnforderung=\"Ja\",\"X\",\"\")","v":""}]
[]
[null,null,"Erfüllungsgrad (bitte immer angeben, muss mit den Angaben des Sachkundigen übereinstimmen)"]
[]
[null,null,"Die Dämmung der Bauteile nach unten erfüllt die Anforderungen des EWärmeG zu:",null,null,null,null,null,null,null,null,null,null,null,null,null,null,null,null,null,null,null,{"$f":"ErfüllungsgradKellerdämmung*100","v":0},null,null,null," %"]
[]
[]
[null,"Ort, Datum",null,null,null,null,null,null,null,null,null,null,null,null,"Unterschrift des Eigentümers"]
[]
[]
[]
[]
[]
[]
[]
[]
[]
[]
[]
[]
[]
[]
[]
[]
[]
[]
[]
[]
[]
[]
[]
[]
[]
[]
[]
[null,"Kellerdeckendämmung"]
[null,"Bestätigung des Sachkundigen nach § 20 EWärmeG"]
[]
[null,"Hinweis: Diese Vorlage dient der Nachweisführung und ist vom Eigentümer bei der unteren Baurechtsbehörde spätestens 18 Monate nach "]
[null,"Inbetriebnahme der neuen Heizanlage vorzulegen. "]
[]
[]
[null,null,null,"Anschrift des Gebäudes (für das der Nachweis geführt wird)"]
[]
[null,null,null,"Straße und Hausnummer",null,null,null,null,null,null,null,null,null,null,"Postleitzahl",null,null,"Ort"]
[null,null,null,{"$f":"c_strasse_objekt","v":0},null,null,null,null,null,null,null,null,null,null,{"$f":"c_plz_objekt","v":0},null,null,{"$f":"c_ort_objekt","v":0}]
[]
[]
[]
[null,null,"Kellerdeckendämmung - Wohngebäude und Nichtwohngebäude"]
[]
[null,null,null,"Hinweis: Bitte zutreffende Angaben ankreuzen und entsprechende Werte eintragen."]
[null,null,null,"Erfüllungsnachweis nach § 8 Abs. 2 und § 15 Abs. 1 EWärmeG"]
[]
[null,null,null,{"$f":"g_geschosse","v":0},null,null," Anzahl Vollgeschosse (nach Landesbauordnung)*"]
[]
[null,null,null,"Hinweis: Die Anforderungswerte im EWärmeG sind die Anforderungswerte an den Wärmedurchgangskoeffizienten (U-Wert) in"]
[null,null,null,"Anlage 3 Tabelle 1 der EnEV 2013 minus 20 %."]
[null,null,null,"Decken und Wände gegen unbeheizte Räume oder Erdreich:",null,null,null,null,null,null,null,null,null,null,null,"0,240 W/m2K"]
[null,null,null,"Fußbodenaufbauten:",null,null,null,null,null,null,null,null,null,null,null,"0,400 W/m2K"]
[null,null,null,"Decken nach unten an Außenluft:",null,null,null,null,null,null,null,null,null,null,null,"0,192 W/m2K"]
[]
[null,null,null,"U-Wert der Flächen des Gebäudes, die anforderungsgemäß gedämmt sind:"]
[]
[null,null,null,"Decken und Wände gegen unbeheizte Räume oder Erdreich:",null,null,null,null,null,null,null,null,null,null,null,null,{"$f":"IF(UWertKellerdeckenDämmungNachUnten>0,UWertKellerdeckenDämmungNachUnten,\"\")","v":""},null," W/m2K"]
[]
[null,null,null,"Fußbodenaufbauten:",null,null,null,null,null,null,null,null,null,null,null,null,{"$f":"IF(UWertFußbodenaufbauten>0,UWertFußbodenaufbauten,\"\")","v":""},null," W/m2K"]
[]
[null,null,null,"Decken nach unten an Außenluft:",null,null,null,null,null,null,null,null,null,null,null,null,{"$f":"IF(UWertKellerdeckenDämmungNachUntenAnAussenluft>0,UWertKellerdeckenDämmungNachUntenAnAussenluft,\"\")","v":""},null," W/m2K"]
[]
[null,null,null,"Die gesamten Bauteile nach unten sind anforderungsgemäß gedämmt"]
[]
[null,null,null,"Hinweis: Die Grundfläche des Trepppenhauses darf außer Betracht bleiben. Anforderungsgemäß gedämmte Teilflächen "]
[null,null,null,"können nicht anteilig angerechnet werden."]
[]
[null,null,null,"1.","Das Gebäude hat maximal zwei Vollgeschosse. Damit werden die Anforderungen des "]
[null,null,null,null,"EWärmeG zu zwei Dritteln erfüllt (Erfüllungsgrad = 66,7 %).",null,null,null,null,null,null,null,null,null,null,null,null,null,null,null,null,null,{"$f":"IF(g_geschosse<=2,\"X\",\"\")","v":"X"}]
[null,null,null,null,"oder"]
[null,null,null,"2.","Das Gebäude hat drei oder vier Vollgeschosse. Damit werden die Anforderungen des "]
[null,null,null,null,"EWärmeG zu einem Drittel erfüllt (Erfüllungsgrad = 33,3 %).",null,null,null,null,null,null,null,null,null,null,null,null,null,null,null,null,null,{"$f":"IF(g_geschosse>2,\"X\",\"\")","v":""}]
[]
[null,null,"Erfüllungsgrad (bitte immer angeben)"]
[]
[null,null,"Die Dämmung der Bauteile nach unten erfüllt die Anforderungen des EWärmeG zu:",null,null,null,null,null,null,null,null,null,null,null,null,null,null,null,null,null,null,null,{"$f":"ErfüllungsgradKellerdämmung*100","v":0},null,null,null," %"]
[]
[]
[]
[null,null,null,"Ich bin Sachkundiger im Sinne von § 3 Nr. 11 EWärmeG als"]
[]
[null,null,null,null,{"$f":"IF(Qualifikation=SachkundigerBundesOderLandesRecht,\"X\",\"\")","v":""}," Berechtigter nach Bundes- oder Landesrecht zur Ausstellung von Energieausweisen,"]
[]
[null,null,null,null,{"$f":"IF(Qualifikation=SachkundigerZulassungspflichtigesGewerbe,\"X\",\"\")","v":""}," Person, die für ein zulassungspflichtiges Bau-, Ausbau- oder anlagentechnisches Gewerbe oder für "]
[null,null,null,null,null," das Schornsteinfegerwesen die Voraussetzungen zur Eintragung in die Handwerksrolle erfüllt,"]
[]
[null,null,null,null,{"$f":"IF(Qualifikation=SachkundigerHandwerksmeister,\"X\",\"\")","v":""}," Handwerksmeister der zulassungsfreien Handwerke dieser Bereiche,"]
[]
[null,null,null,null,{"$f":"IF(Qualifikation=SachkundigerOhneMeistertitel,\"X\",\"\")","v":""}," Person, die aufgrund ihrer Ausbildung oder ihres beruflichen Werdegangs berechtigt ist, ein solches "]
[null,null,null,null,null," Handwerk ohne Meistertitel selbständig auszuüben."]
[]
[null,null,null,"Hinweis: Ordnungswidrig handelt, wer in den Nachweisen vorsätzlich oder fahrlässig falsche Angaben macht (§ 23 EWärmeG)."]
[]
[null,null,"Name",null,null,null,null,null,null,"Vorname",null,null,null,null,"Firma des Sachkundigen"]
[null,null,{"$f":"c_nachname_sachkundiger","v":0},null,null,null,null,null,null,{"$f":"c_vorname_Sachkundiger","v":0},null,null,null,null,{"$f":"c_firmenname_sachkundiger","v":0}]
[]
[]
[]
[null,null,"Ort, Datum",null,null,null,null,null,null,null,null,null,null,null,"Unterschrift des Sachkundigen"]
[]
[]
[]
[null,"* Angabe kann bei Plausibilität (nicht eingehender geprüft) vom Eigentümer übernommen werden."]

{"sheet":"HÜL","index":18,"n_rows":165,"n_cols":28,"rows_kept":165,"cut":false,"hidden":true,"merged":[[30,23,30,26],[1,1,1,28],[2,1,2,28],[11,3,11,14],[11,15,11,17],[11,18,11,26],[86,3,86,6],[33,1,33,14],[33,15,33,28],[34,1,36,14],[34,15,36,28],[52,1,52,28],[53,1,53,28],[62,3,62,14],[62,15,62,17],[62,18,62,26],[72,3,72,8],[84,3,84,6],[99,3,99,6],[103,8,106,10],[103,11,106,11],[103,12,106,13],[103,14,106,14],[104,27,105,27],[105,15,106,19],[123,2,127,4],[123,5,127,12],[123,13,127,14],[123,15,127,16],[123,17,127,26],[111,23,111,26],[103,15,104,19],[103,20,106,21],[103,22,106,22],[104,23,105,26],[128,21,131,22],[128,23,131,26],[132,2,135,4],[132,5,135,9],[132,10,133,12],[132,13,133,14],[132,15,133,16],[132,17,133,18],[132,19,133,20],[132,21,133,22],[128,2,131,12],[128,13,131,14],[128,15,131,16],[128,17,131,18],[128,19,131,20],[132,23,133,26],[134,10,135,12],[134,13,135,14],[134,15,135,16],[134,17,135,18],[134,19,135,20],[134,21,135,22],[134,23,135,26],[136,21,138,22],[136,23,138,26],[139,2,141,4],[139,5,141,12],[139,13,141,14],[139,15,141,16],[139,17,141,18],[139,19,141,20],[139,21,141,22],[139,23,141,26],[136,2,138,4],[136,5,138,12],[136,13,138,14],[136,15,138,16],[165,2,167,14],[165,15,167,27],[136,17,138,18],[136,19,138,20],[160,2,162,9],[160,10,162,14],[160,15,162,27]]}
[]
[null,"Gesamtnachweis Gebäudehülle"]
[null,"Nachweis des Eigentümers nach § 20 EWärmeG"]
[]
[null,"Hinweis: Diese Vorlage dient der Nachweisführung und ist der unteren Baurechtsbehörde spätestens 18 Monate nach Inbetriebnahme der neuen"]
[null,"Heizanlage vorzulegen. Die erste Seite ist vom Eigentümer auszufüllen und zu unterschreiben, die Folgeseiten vom Sachkundigen."]
[]
[]
[null,null,null,"Anschrift des Gebäudes"]
[]
[null,null,null,"Straße und Hausnummer",null,null,null,null,null,null,null,null,null,null,null,"Postleitzahl",null,null,"Ort"]
[null,null,null,{"$f":"c_strasse_objekt","v":0},null,null,null,null,null,null,null,null,null,null,null,{"$f":"c_plz_objekt","v":0},null,null,{"$f":"c_ort_objekt","v":0}]
[]
[]
[]
[null,null,"Gesamtnachweis Gebäudehülle - Wohngebäude"]
[]
[null,null,null,"Hinweis: Bitte zutreffende Angaben ankreuzen und entsprechende Werte eintragen. "]
[]
[null,null,null,"Erfüllungsnachweis nach § 8 Abs. 1 Nr. 3 EWärmeG"]
[]
[null,null,null,"1.","Das Wohngebäude weist einen Transmissionswärmeverlust (H'T) auf, mit dem die "]
[null,null,null,null,"Anforderungen des EWärmeG vollständig erfüllt werden  (Erfüllungsgrad = 100 %).",null,null,null,null,null,null,null,null,null,null,null,null,null,null,null,null,null,null,{"$f":"IF(ErfüllungsgradGebäudehülle*100=100,\"X\",\"\")","v":""}]
[null,null,null,null,"oder"]
[null,null,null,"2.","Das Wohngebäude weist einen Transmissionswärmeverlust (H'T) auf, mit dem die "]
[null,null,null,null,"Anforderungen des EWärmeG anteilig erfüllt werden (Erfüllungsgrad weniger als 100 %).",null,null,null,null,null,null,null,null,null,null,null,null,null,null,null,null,null,null,{"$f":"IF(ErfüllungsgradGebäudehülle*100<100,\"X\",\"\")","v":"X"}]
[]
[null,null,"Erfüllungsgrad (bitte immer angeben, muss mit den Angaben des Sachkundigen übereinstimmen)"]
[]
[null,null,"Mit dem Transmissionswärmeverlust (H'T) des Wohngebäudes sind die Anforderungen "]
[null,null,"des EWärmeG erfüllt zu:",null,null,null,null,null,null,null,null,null,null,null,null,null,null,null,null,null,null,null,null,{"$f":"ErfüllungsgradGebäudehülle*100","v":0},null,null,null," %"]
[]
[]
[null,"Ort, Datum",null,null,null,null,null,null,null,null,null,null,null,null,null,"Unterschrift des Eigentümers"]
[]
[]
[]
[]
[]
[]
[]
[]
[]
[]
[]
[]
[]
[]
[]
[]
[]
[]
[null,"Gesamtnachweis Gebäudehülle"]
[null,"Bestätigung des Sachkundigen nach § 20 EWärmeG"]
[]
[null,"Hinweis: Diese Vorlage dient der Nachweisführung und ist vom Eigentümer bei der unteren Baurechtsbehörde spätestens 18 Monate nach "]
[null,"Inbetriebnahme der neuen Heizanlage vorzulegen. "]
[]
[]
[null,null,null,"Anschrift des Gebäudes"]
[]
[null,null,null,"Straße und Hausnummer",null,null,null,null,null,null,null,null,null,null,null,"Postleitzahl",null,null,"Ort"]
[null,null,null,{"$f":"c_strasse_objekt","v":0},null,null,null,null,null,null,null,null,null,null,null,{"$f":"c_plz_objekt","v":0},null,null,{"$f":"c_ort_objekt","v":0}]
[]
[]
[]
[null,null,"Gesamtnachweis Gebäudehülle - Wohngebäude"]
[]
[null,null,null,"Hinweis: Bitte zutreffende Angaben ankreuzen und entsprechende Werte und Angaben eintragen. "]
[]
[null,null,null,"Erfüllungsnachweis nach § 8 Abs. 1 Nr. 3 EWärmeG"]
[]
[null,null,null,{"$f":"g_bauantrag","v":"00:00:00"},null,null,null,null,null," Datum der Bauantragstellung*"]
[]
[null,null,null,{"$f":"IF(WohngebäudeArt=WohngebäudeArtFreistehend,IF(g_an<=350,\"X\",\"\"),\"\")","v":""}," Freistehendes Wohngebäude mit einer Energiebezugsfläche (AN) bis zu 350 m2"]
[null,null,null,null," oder"]
[null,null,null,{"$f":"IF(WohngebäudeArt=WohngebäudeArtFreistehend,IF(g_an>350,\"X\",\"\"),\"\")","v":""}," Freistehendes Wohngebäude mit einer Energiebezugsfläche (AN) größer als 350 m2"]
[null,null,null,null," oder"]
[null,null,null,{"$f":"IF(WohngebäudeArt=WohngebäudeArtEinseitigAngebaut,\"X\",\"\")","v":""}," Einseitig angebautes Wohngebäude",null,null,null,null,null,null,null,null,null,"oder",null,{"$f":"IF(WohngebäudeArt=WohngebäudeArtSonstige,\"X\",\"\")","v":""}," anderes Wohngebäude"]
[]
[null,null,null,"Hinweis: Ist der Transmissionswärmeverlust des Wohngebäudes nicht größer als der Höchstwert der jeweiligen Altersklasse, sind"]
[null,null,null,"die Anforderungen des EWärmeG vollständig erfüllt (Erfüllungsgrad = 100 %). Eine anteilige Erfüllung kann angerechnet werden"]
[null,null,null,"(§ 11 Abs. 5 Satz 2 bis 4 EWärmeG)."]
[]
[null,null,null,{"$f":"HTStrich","v":0},null,null,null," W/m2K     ",null,"  Transmissionswärmeverlust (H'T) des Wohngebäudes (Ist-Wert)"]
[]
[null,null,null,{"$f":"IF(Kalkulation!C219>0,HTStrichVorgabe*1.4,IF(Kalkulation!C221>0,HTStrichVorgabe*1.1,IF(Kalkulation!C223>0,HTStrichVorgabe*0.8,IF(Kalkulation!C225>0,HTStrichVorgabe*0.7,\"\"))))","v":""},null,null,null," W/m2K    ",null,"  Höchstwert des Transmissionswärmeverlusts (H'T) der Altersklasse des "]
[null,null,null,null,null,null,null,null,null,"  Wohngebäudes zur vollständigen Erfüllung (Höchstwert) "]
[null,null,null,null,null,null,null,null,null,"  (siehe Tabelle auf Seite 3)"]
[]
[null,null,null,"1.","Der Transmissionswärmeverlust des Wohngebäudes ist nicht größer als der Höchstwert "]
[null,null,null,null,"der Altersklasse. Damit sind die Anforderungen des EWärmeG vollständig erfüllt"]
[null,null,null,null,"(Erfüllungsgrad = 100 %).",null,null,null,null,null,null,null,null,null,null,null,null,null,null,null,null,null,null,{"$f":"IF(ErfüllungsgradGebäudehülle*100=100,\"X\",\"\")","v":""}]
[null,null,null,null,"oder"]
[null,null,null,"2.","Der Transmissionswärmeverlust des Wohngebäudes ist größer als der Höchstwert der "]
[null,null,null,null,"Altersklasse und nicht größer als der maximale Zielwert der vorhergehenden Altersklasse "]
[null,null,null,null,"(Ausgangswert). Damit sind die Anforderungen des EWärmeG anteilig erfüllt "]
[null,null,null,null,"(Erfüllungsgrad weniger als 100 %).",null,null,null,null,null,null,null,null,null,null,null,null,null,null,null,null,null,null,{"$f":"IF(ErfüllungsgradGebäudehülle*100<100,\"X\",\"\")","v":"X"}]
[]
[null,null,null,{"$f":"IF(X112=100,\"\",IF(Kalkulation!C219>0,HTStrichVorgabe*1.7,IF(Kalkulation!C221>0,HTStrichVorgabe*1.4,IF(Kalkulation!C223>0,HTStrichVorgabe*1.1,IF(Kalkulation!C225>0,HTStrichVorgabe*0.8,\"\")))))","v":""},null,null,null," W/m2K    Ausgangswert  =",null,null,null,null,null,"maximaler Zielwert der vorhergehenden Altersklasse"]
[null,null,null,null,null,null,null,null,null,null,null,null,null,"oder EnEV-Anforderungswert + 70 % (Maximalwert)"]
[null,null,null,null,null,null,null,null,null,null,null,null,null,"(siehe Tabelle auf Seite 3)"]
[]
[null,null,null,null,null,null,null,null,"erreichter\nErfüllungsgrad",null,null,"=","100 %",null,"-","Ist-Wert  -  Höchstwert",null,null,null,null,"x 100 % ",null,"="]
[null,null,null,null,null,null,null,null,null,null,null,null,null,null,null,null,null,null,null,null,null,null,null,{"$f":"IF(ErfüllungsgradGebäudehülle*100<100,ErfüllungsgradGebäudehülle*100,\"\")","v":0},null,null,null," %"]
[null,null,null,null,null,null,null,null,null,null,null,null,null,null,null,"Ausgangswert  -  Höchstwert"]
[]
[]
[null,null,"Erfüllungsgrad (bitte immer angeben)"]
[]
[null,null,"Mit dem Transmissionswärmeverlust (H'T) des Wohngebäudes sind die Anforderungen "]
[null,null,"des EWärmeG erfüllt zu:",null,null,null,null,null,null,null,null,null,null,null,null,null,null,null,null,null,null,null,null,{"$f":"ErfüllungsgradGebäudehülle*100","v":0},null,null,null," %"]
[]
[]
[null,null,null,"* Angabe kann bei Plausibilität (nicht eingehender geprüft) vom Eigentümer übernommen werden."]
[]
[]
[]
[]
[null,null,"Tabelle  - ",null,null,"Höchstwert des Transmissionswärmeverlusts (H'T) nach Gebäudealtersklassen"]
[]
[null,null,null,null,null,"gemäß § 8 Abs. 1 Nr. 3 EWärmeG (und Maximalwert nach § 11 Abs. 5 Satz 4 EWärmeG)"]
[]
[null,null,"Zeile",null,null,"Gebäudetyp",null,null,null,null,null,null,null,"Höchstwert\n(nach EnEV \nAnlage 1\nTabelle 2)",null,"Maximal-\nwert\n(EnEV +\n70 %)",null,"Höchstwert (H'T) nach EWärmeG \n§ 8 Abs. 1 Nr. 3\n- in Abhängigkeit vom Datum\nder Bauantragstellung -"]
[]
[]
[]
[]
[null,null,null,null,null,null,null,null,null,null,null,null,null,null,null,null,null,"Vor \n\n01.11.1977",null,"\n01.11.1977\n-\n31.12.1994\n",null,"\n01.01.1995\n-\n31.01.2002\n",null,"\n01.02.2002\n-\n31.12.2008\n"]
[]
[]
[]
[null,null,1,null,null,"Freistehendes\nWohngebäude",null,null,null,null,"AN < 350 m2",null,null,0.4,null,0.68,null,0.56000000000000005,null,0.44,null,0.32,null,0.28000000000000003]
[]
[null,null,null,null,null,null,null,null,null,null,"AN > 350 m2",null,null,0.5,null,0.85,null,0.7,null,0.55000000000000004,null,0.4,null,0.35]
[]
[null,null,2,null,null,"Einseitig angebautes\nWohngebäude",null,null,null,null,null,null,null,0.45,null,0.76500000000000001,null,"0.63",null,0.495,null,0.36,null,0.315]
[]
[]
[null,null,3,null,null,"Alle anderen Wohngebäude",null,null,null,null,null,null,null,0.65,null,1.105,null,0.91,null,0.71499999999999997,null,0.52,null,0.45500000000000002]
[]
[]
[]
[]
[]
[null,null,null,"Ich bin Sachkundiger im Sinne von § 3 Nr. 11 EWärmeG als"]
[]
[null,null,null,null,{"$f":"IF(Qualifikation=SachkundigerBundesOderLandesRecht,\"X\",\"\")","v":""}," Berechtigter nach Bundes- oder Landesrecht zur Ausstellung von Energieausweisen,"]
[]
[null,null,null,null,{"$f":"IF(Qualifikation=SachkundigerZulassungspflichtigesGewerbe,\"X\",\"\")","v":""}," Person, die für ein zulassungspflichtiges Bau-, Ausbau- oder anlagentechnisches Gewerbe oder für "]
[null,null,null,null,null," das Schornsteinfegerwesen die Voraussetzungen zur Eintragung in die Handwerksrolle erfüllt,"]
[]
[null,null,null,null,{"$f":"IF(Qualifikation=SachkundigerHandwerksmeister,\"X\",\"\")","v":""}," Handwerksmeister der zulassungsfreien Handwerke dieser Bereiche,"]
[]
[null,null,null,null,{"$f":"IF(Qualifikation=SachkundigerOhneMeistertitel,\"X\",\"\")","v":""}," Person, die aufgrund ihrer Ausbildung oder ihres beruflichen Werdegangs berechtigt ist, ein solches "]
[null,null,null,null,null," Handwerk ohne Meistertitel selbständig auszuüben."]
[]
[null,null,null,"Hinweis: Ordnungswidrig handelt, wer in den Nachweisen vorsätzlich oder fahrlässig falsche Angaben macht (§ 23 EWärmeG)."]
[]
[null,null,"Name",null,null,null,null,null,null,null,"Vorname",null,null,null,null,"Firma des Sachkundigen"]
[null,null,{"$f":"c_nachname_sachkundiger","v":0},null,null,null,null,null,null,null,{"$f":"c_vorname_Sachkundiger","v":0},null,null,null,null,{"$f":"c_firmenname_sachkundiger","v":0}]
[]
[]
[]
[null,null,"Ort, Datum",null,null,null,null,null,null,null,null,null,null,null,null,"Unterschrift des Sachkundigen"]

{"sheet":"SFP","index":19,"n_rows":67,"n_cols":29,"rows_kept":67,"cut":false,"hidden":true,"merged":[[23,5,23,9],[62,24,62,27],[66,1,66,15],[66,16,66,30],[67,1,69,15],[67,16,69,30],[21,5,21,9],[1,1,1,30],[2,1,2,30],[11,5,11,15],[11,16,11,18],[11,19,11,27]]}
[]
[null,"Sanierungsfahrplan"]
[null,"Nachweis des Eigentümers nach § 20 EWärmeG"]
[]
[null,"Hinweis: Diese Vorlage dient der Nachweisführung und ist der unteren Baurechtsbehörde spätestens 18 Monate nach Inbetriebnahme der neuen"]
[null,"Heizanlage vorzulegen. Sie ist vom Eigentümer auszufüllen und zu unterschreiben."]
[]
[]
[null,null,null,null,null,"Anschrift des Gebäudes (für das der Nachweis geführt wird)"]
[]
[null,null,null,null,null,"Straße und Hausnummer",null,null,null,null,null,null,null,null,null,null,"Postleitzahl",null,null,"Ort"]
[null,null,null,null,null,{"$f":"c_strasse_objekt","v":0},null,null,null,null,null,null,null,null,null,null,{"$f":"c_plz_objekt","v":0},null,null,{"$f":"c_ort_objekt","v":0}]
[]
[]
[]
[null,null,null,"Sanierungsfahrplan - Wohngebäude und Nichtwohngebäude"]
[]
[null,null,null,null,null,"Hinweis: Bitte zutreffende Angaben ankreuzen und entsprechende Werte eintragen."]
[]
[null,null,null,null,null,"Erfüllungsnachweis nach § 9 und 16 EWärmeG in Verbindung mit Verordnung zum Sanierungsfahrplan"]
[]
[null,null,null,null,null,{"$f":"DatumSanierungsfahrplan","v":"00:00:00"},null,null,null,null," Erstellungsdatum des Sanierungsfahrplans bzw. des BAFA-Vor-Ort-Beratungsberichts"]
[]
[null,null,null,null,null,{"$f":"DatumEinbauHeizungsanlge","v":"00:00:00"},null,null,null,null," Datum des Austauschs der Heizanlage"]
[]
[null,null,null,null,null,"Hinweis: Wird ein Sanierungsfahrplan bzw. ein BAFA-Vor-Ort-Beratungsbericht vor dem Austausch der Heizanlage erstellt,"]
[null,null,null,null,null,"dürfen zwischen dem Erstellungsdatum und dem Austausch der Heizanlage maximal 5 Jahre liegen."]
[]
[null,null,null,"A.",null,"Wohngebäude"]
[]
[null,null,null,null,null,"1.","Es wurde für das oben genannte Gebäude ein Sanierungsfahrplan erstellt, der der Sanierungs-"]
[null,null,null,null,null,null,"fahrplan-Verordnung entspricht und die geforderte Eigenerklärung des Energieberaters enthält. "]
[null,null,null,null,null,null,"Damit sind die Anforderungen des EWärmeG zu einem Drittel erfüllt (Erfüllungsgrad = 33,3 %).",null,null,null,null,null,null,null,null,null,null,null,null,null,null,null,null,null,null,null,null,{"$f":"IF(GebäudeArt=GebäudeArtWohngebäude,IF(WelcherSanierungsfahrplanWirdVerwendet=SanierungsfahrplanSanierungsfahrplan,\"X\",\"\"),\"\")","v":""}]
[]
[null,null,null,null,null,null,"Dieser Sanierungsfahrplan ist als Anlage beigefügt (Kopie genügt)."]
[null,null,null,null,null,null,"oder"]
[null,null,null,null,null,"2.","Es wurde für das oben genannte Gebäude ein Beratungsbericht zu einer Vor-Ort-Beratung "]
[null,null,null,null,null,null,"gemäß der Richtlinie über die Förderung der Energieberatung vor Ort (BAFA) erstellt. Damit sind"]
[null,null,null,null,null,null,"die Anforderungen des EWärmeG zu einem Drittel erfüllt (Erfüllungsgrad = 33,3 %).",null,null,null,null,null,null,null,null,null,null,null,null,null,null,null,null,null,null,null,null,{"$f":"IF(GebäudeArt=GebäudeArtWohngebäude,IF(WelcherSanierungsfahrplanWirdVerwendet=SanierungsfahrplanVorOrtBeratungsBericht,\"X\",\"\"),\"\")","v":""}]
[]
[null,null,null,null,null,null,"Deckblatt, Inhaltsverzeichnis und Unterschriftsseite des Beratungsberichts sind als Anlage "]
[null,null,null,null,null,null,"beigefügt (Kopie genügt)."]
[null,null,null,null,null,null,"oder"]
[null,null,null,null,null,"3.","Das oben genannte Gebäude wurde einem Typgebäude zugeordnet, das Bestandteil eines "]
[null,null,null,null,null,null,"Portfolio-Sanierungsfahrplans nach § 5 der Sanierungsfahrplan-Verordnung ist. Damit sind",null,null,null,null,null,null,null,null,null,null,null,null,null,null,null,null,null,null,null,null,{"$f":"IF(GebäudeArt=GebäudeArtWohngebäude,IF(WelcherSanierungsfahrplanWirdVerwendet=SanierungsfahrplanPortfolioSanierungsfahrplan,\"X\",\"\"),\"\")","v":""}]
[null,null,null,null,null,null,"die Anforderungen des EWärmeG zu einem Drittel erfüllt (Erfüllungsgrad = 33,3 %)."]
[]
[null,null,null,null,null,null,"Dieser Portfolio-Sanierungsfahrplan ist als Anlage beigefügt (Kopie genügt)."]
[]
[null,null,null,"oder"]
[]
[null,null,null,"B.",null,"Nichtwohngebäude "]
[]
[null,null,null,null,null,"Es wurde für das oben genannte Gebäude ein Sanierungsfahrplan erstellt, der der Sanierungsfahrplan-"]
[null,null,null,null,null,"Verordnung entspricht und die geforderte Eigenerklärung des Energieberaters enthält. Damit sind die "]
[null,null,null,null,null,"Anforderungen des EWärmeG vollständig erfüllt (Erfüllungsgrad = 100 %).",null,null,null,null,null,null,null,null,null,null,null,null,null,null,null,null,null,null,null,null,null,{"$f":"IF(GebäudeArt=GebäudeArtNichtwohngebäude,IF(WelcherSanierungsfahrplanWirdVerwendet=SanierungsfahrplanSanierungsfahrplan,\"X\",\"\"),\"\")","v":""}]
[]
[null,null,null,null,null,"Dieser Sanierungsfahrplan ist als Anlage beigefügt (Kopie genügt)."]
[]
[null,null,null,"Erfüllungsgrad (bitte immer angeben)"]
[]
[null,null,null,"Der beiliegende gebäudeindividuelle Sanierungsfahrplan bzw. der BAFA-Vor-Ort-Beratungsbericht"]
[null,null,null,"erfüllt die Anforderungen des EWärmeG zu: ",null,null,null,null,null,null,null,null,null,null,null,null,null,null,null,null,null,null,null,null,{"$f":"ErfüllungsgradSanierungsfahrplan*100","v":0},null,null,null," %"]
[]
[]
[]
[null,"Ort, Datum",null,null,null,null,null,null,null,null,null,null,null,null,null,null,"Unterschrift des Eigentümers"]

{"sheet":"BFLGA","index":20,"n_rows":217,"n_cols":30,"rows_kept":217,"cut":false,"hidden":true,"merged":[[64,1,64,29],[1,1,1,29],[2,1,2,29],[14,3,14,15],[14,16,14,18],[14,19,14,28],[34,16,34,17],[46,25,46,28],[49,1,49,15],[49,16,49,29],[50,1,52,15],[50,16,52,29],[65,1,65,29],[74,3,74,15],[74,16,74,18],[74,19,74,28],[98,22,98,24],[101,29,102,29],[102,13,103,23],[109,22,109,24],[114,10,117,13],[114,14,117,14],[114,15,115,23],[114,24,117,24],[115,25,116,28],[115,29,116,29],[116,15,117,23],[100,7,103,11],[100,12,103,12],[100,13,101,23],[100,24,103,24],[101,25,102,28],[120,22,120,24],[122,1,125,4],[122,5,125,5],[122,6,123,14],[122,15,125,15],[122,16,123,23],[122,24,125,24],[217,2,219,15],[217,16,219,29],[155,2,157,14],[155,15,157,28],[172,1,172,29],[173,1,173,29],[182,3,182,15],[182,16,182,18],[182,19,182,28],[190,3,190,12],[200,10,200,11],[212,2,214,10],[212,11,214,15],[212,16,214,29],[123,29,124,29],[124,6,125,14],[124,16,125,23],[130,25,130,28],[150,2,152,9],[150,10,152,14],[150,15,152,28],[123,25,124,28]]}
[]
[null,"Gasförmige Biomasse - Biogenes Flüssiggas "]
[null,"Nachweis des Eigentümers nach § 20 EWärmeG"]
[]
[null,"Hinweis: Diese Vorlage dient der Nachweisführung und ist der unteren Baurechtsbehörde spätestens 18 Monate nach Inbetriebnahme der neuen"]
[null,"Heizanlage vorzulegen. Die erste Seite ist vom Eigentümer auszufüllen und zu unterschreiben, die Folgeseiten vom Sachkundigen und Brennstoff-"]
[null,"lieferanten. Der Brennstofflieferant hat die Einhaltung der in § 5 Abs. 3 Satz 2 und 3 EWärmeG genannten Anforderungen zu bestätigen. Die Be-"]
[null,"stätigungen zu den zeitlich nachfolgenden Abrechnungen sind jeweils fünf Jahre aufzubewahren und auf Anforderung der unteren Baurechtsbehörde"]
[null,"vorzulegen."]
[]
[]
[null,null,null,"Anschrift des Gebäudes (für das der Nachweis geführt wird)"]
[]
[null,null,null,"Straße und Hausnummer",null,null,null,null,null,null,null,null,null,null,null,null,"Postleitzahl",null,null,"Ort"]
[null,null,null,{"$f":"c_strasse_objekt","v":0},null,null,null,null,null,null,null,null,null,null,null,null,{"$f":"c_plz_objekt","v":0},null,null,{"$f":"c_ort_objekt","v":0}]
[]
[]
[]
[null,null,"Gasförmige Biomasse"]
[null,null,"Biogenes Flüssiggas  - Wohngebäude und Nichtwohngebäude"]
[]
[null,null,null,"Hinweis: Bitte zutreffende Angaben ankreuzen und entsprechende Werte eintragen. "]
[]
[null,null,null,"Erfüllungsnachweis nach § 5 Abs. 3 und § 13 Abs. 1 EWärmeG"]
[]
[null,null,null,"Hinweis: Die Nutzung von Biomethan wird nur für Heizanlagen mit einer Leistung von bis zu 50 kW anerkannt."]
[]
[null,null,null,{"$f":"IF(LeistungHeizungsAnlageBiogenesFG,\"X\",\"\")","v":""}," Die thermische Leistung der gesamten Heizanlage beträgt maximal 50 kW."]
[]
[null,null,null,{"$f":"IF(BiogenesFGKesselEntsprichtVerfügbarerTechnick=\"Ja\",\"X\",\"\")","v":""}," Der Heizkessel entspricht der besten verfügbaren Technik (Brennwerttechnologie)."]
[]
[null,null,null,null," Ich sichere zu, dass das gelieferte Biogenes Flüssiggas  enthält und ich dies auch künftig auf Anforderung "]
[null,null,null,null," gegenüber der unteren Baurechtsbehörde nachweisen kann."]
[]
[null,null,null,null,"Der Bio-Anteil im gelieferten Flüssiggas beträgt:",null,null,null,null,null,null,null,null,null,null,null,{"$f":"BiogenesFGAnteilinProzent*100","v":0},null," %"]
[]
[null,null,null,"1.","Es wird eine Heizanlage mit Bioflüssiggasanteil betrieben, mit der die "]
[null,null,null,null,"Anforderungen des EWärmeG zu zwei Dritteln erfüllt werden (Erfüllungsgrad = 66,7 %).",null,null,null,null,null,null,null,null,null,null,null,null,null,null,null,null,null,null,null,null,{"$f":"IF(ErfüllungsgradBiogenesFG*100=66.66,\"X\",\"\")","v":""}]
[null,null,null,null,"oder"]
[null,null,null,"2.","Es wird eine Heizanlage mit Bioflüssiggasanteil betrieben, mit der die"]
[null,null,null,null,"Anforderungen des EWärmeG zu weniger als zwei Dritteln  erfüllt werden (Erfüllungs-"]
[null,null,null,null,"grad weniger als 66,7 %).",null,null,null,null,null,null,null,null,null,null,null,null,null,null,null,null,null,null,null,null,{"$f":"IF(ErfüllungsgradBiogenesFG*100<66.66,\"X\",\"\")","v":"X"}]
[]
[null,null,"Erfüllungsgrad (bitte immer angeben, muss mit den Angaben des Sachkundigen übereinstimmen)"]
[]
[null,null,"Die installierte und mit Biogenem Flüssiggasanteil betriebene Heizanlage erfüllt die Anforderungen"]
[null,null,"des EWärmeG zu:",null,null,null,null,null,null,null,null,null,null,null,null,null,null,null,null,null,null,null,null,null,null,{"$f":"ErfüllungsgradBiogenesFG*100","v":0},null,null,null," %"]
[]
[]
[null,"Ort, Datum",null,null,null,null,null,null,null,null,null,null,null,null,null,null,"Unterschrift des Eigentümers"]
[]
[]
[]
[]
[]
[]
[]
[]
[]
[]
[]
[]
[]
[]
[null,"Gasförmige Biomasse - Biogenes Flüssiggas "]
[null,"Bestätigung des Sachkundigen nach § 20 EWärmeG"]
[]
[null,"Hinweis: Diese Vorlage dient der Nachweisführung und ist vom Eigentümer bei der unteren Baurechtsbehörde spätestens 18 Monate nach "]
[null,"Inbetriebnahme der neuen Heizanlage vorzulegen. "]
[]
[]
[null,null,null,"Anschrift des Gebäudes (für das der Nachweis geführt wird)"]
[]
[null,null,null,"Straße und Hausnummer",null,null,null,null,null,null,null,null,null,null,null,null,"Postleitzahl",null,null,"Ort"]
[null,null,null,{"$f":"c_strasse_objekt","v":0},null,null,null,null,null,null,null,null,null,null,null,null,{"$f":"c_plz_objekt","v":0},null,null,{"$f":"c_ort_objekt","v":0}]
[]
[]
[]
[null,null,"Gasförmige Biomasse"]
[null,null,"Biogenes Flüssiggas  - Wohngebäude und Nichtwohngebäude"]
[]
[null,null,null,"Hinweis: Bitte zutreffende Angaben ankreuzen und entsprechende Werte eintragen. "]
[]
[null,null,null,"Erfüllungsnachweis nach § 5 Abs. 3 und § 13 Abs. 1 EWärmeG"]
[]
[null,null,null,"Hinweis: Die Nutzung von biogenem Flüssiggas wird nur für Heizanlagen mit einer Leistung von bis zu 50 kW anerkannt."]
[]
[null,null,null,{"$f":"IF(LeistungHeizungsAnlageBiogenesFG,\"X\",\"\")","v":""}," Die thermische Leistung der gesamten Heizanlage beträgt maximal 50 kW."]
[]
[null,null,null,{"$f":"IF(BioölKesselEntsprichtVerfügbarerTechnick=\"Ja\",\"X\",\"\")","v":""}," Der installierte Heizkessel entspricht der besten verfügbaren Technik (Brennwerttechnologie)."]
[]
[null,null,"A.","Bioflüssiggasanteil im gelieferten Flüssiggas mindestens 10 % *"]
[]
[null,null,null,"1.","Der Heizkessel wird mit mindestens 10 % Biogenem Flüssiggasanteil im gelieferten Flüssiggas betrieben "]
[null,null,null,null,"und deckt den gesamten jährlichen Wärmeenergiebedarf des Gebäudes. Damit werden die "]
[null,null,null,null,"Anforderungen des EWärmeG zu zwei Dritteln erfüllt (Erfüllungsgrad = 66,7 %).",null,null,null,null,null,null,null,null,null,null,null,null,null,null,null,null,null,null,null,{"$f":"IF(BiogenerAnteilinFG>=10%,IF(ErfüllungsgradBiogenesFG*100=66.66,\"X\",\"\"),\"\")","v":""}]
[null,null,null,null,"oder"]
[null,null,null,"2.","Der Heizkessel wird mit mindestens 10 % Bioflüssiggasanteil im gelieferten "]
[null,null,null,null,"Flüssiggas betrieben und deckt den gesamten jährlichen Wärmeenergiebedarf zu: ",null,null,null,null,null,null,null,null,null,null,null,null,null,null,null,null,null,{"$f":"IF(BiogenerAnteilinFG>=10%,IF(ErfüllungsgradBiogenesFG*100<66.66,DeckungsanteilBiogenesFG,\"\"),\"\")","v":""},null,null," %"]
[]
[null,null,null,null,null,null,null,"erreichter\nErfüllungsgrad",null,null,null,null,"  = ","Deckungsanteil am Wärmeenergiebedarf (%) x 66,7 %",null,null,null,null,null,null,null,null,null,null,"  = "]
[null,null,null,null,null,null,null,null,null,null,null,null,null,null,null,null,null,null,null,null,null,null,null,null,null,{"$f":"IF(BiogenerAnteilinFG>=10%,IF(Y96=\"X\",\"\",ErfüllungsgradBiogenesFG*100),\"\")","v":""},null,null,null," %"]
[null,null,null,null,null,null,null,null,null,null,null,null,null,"100 %"]
[]
[]
[null,"  ","oder"]
[]
[null,null,"B.","Bioflüssiggasanteil im gelieferten Flüssiggas weniger als 10 % *"]
[]
[null,null,null,null,"Der Bioflüssiggasanteil im gelieferten Flüssiggas beträgt:",null,null,null,null,null,null,null,null,null,null,null,null,null,null,null,null,null,{"$f":"IF(BiogenerAnteilinFG<10%,BiogenerAnteilinFG*100,\"\")","v":0},null,null," %"]
[]
[null,null,null,"1.","Der Heizkessel wird mit weniger als 10 % Bioflüssiggasanteil im gelieferten Flüssiggas betrieben "]
[null,null,null,null,"und deckt den gesamten Wärmeenergiebedarf des Gebäudes. ",null,null,null,null,null,null,null,null,null,null,null,null,null,null,null,null,null,null,null,{"$f":"IF(BiogenerAnteilinFG<10%,IF(DeckungsanteilBiogenesFG=100,\"X\",\"\"),\"\")","v":""}]
[]
[null,null,null,null,null,null,null,null,null,null,"erreichter \nErfüllungsgrad ",null,null,null,"  = ","Bioflüssiggasanteil im Erdgas (%) x 66,7 %",null,null,null,null,null,null,null,null,"  = "]
[null,null,null,null,null,null,null,null,null,null,null,null,null,null,null,null,null,null,null,null,null,null,null,null,null,{"$f":"IF(Y113=\"X\",ErfüllungsgradBiogenesFG*100,\"\")","v":""},null,null,null," %"]
[null,null,null,null,null,null,null,null,null,null,null,null,null,null,null,"10 %"]
[]
[null,null,null,null,"oder"]
[null,null,null,"2.","Der Heizkessel wird mit weniger als 10 % Bioflüssiggasanteil im gelieferten "]
[null,null,null,null,"Flüssiggas betrieben und deckt den gesamten jährlichen Wärmeenergiebedarf zu: ",null,null,null,null,null,null,null,null,null,null,null,null,null,null,null,null,null,{"$f":"IF(BiogenerAnteilinFG<10%,IF(Y113=\"X\",\"\",DeckungsanteilBiogenesFG),\"\")","v":0},null,null," %"]
[]
[null,"erreichter\nErfüllungsgrad ",null,null,null,"  = ","Deckungsanteil am Wärmeenergiebedarf (%)   ",null,null,null,null,null,null,null,null,"x","Bioflüssiggasanteil im Flüssiggas (%) x 66,7 %",null,null,null,null,null,null,null,"  = "]
[null,null,null,null,null,null,null,null,null,null,null,null,null,null,null,null,null,null,null,null,null,null,null,null,null,{"$f":"IF(BiogenerAnteilinFG<10%,IF(Y113=\"X\",\"\",ErfüllungsgradBiogenesFG*100),\"\")","v":0},null,null,null," %"]
[null,null,null,null,null,null,"100 %",null,null,null,null,null,null,null,null,null,"10 %"]
[]
[]
[null,null,"Erfüllungsgrad (bitte immer angeben)"]
[]
[null,null,"Die installierte und mit Flüssiggas mit Bioflüssiggasanteil betriebene Heizanlage erfüllt die "]
[null,null,"Anforderungen des EWärmeG zu:",null,null,null,null,null,null,null,null,null,null,null,null,null,null,null,null,null,null,null,null,null,null,{"$f":"ErfüllungsgradBiogenesFG*100","v":0},null,null,null," %"]
[]
[null,null,"* Angabe kann bei Plausibilität (nicht eingehender geprüft) vom Eigentümer übernommen werden."]
[]
[]
[null,null,null,"Ich bin Sachkundiger im Sinne des § 3 Nr. 11 EWärmeG als"]
[]
[null,null,null,null,{"$f":"IF(Qualifikation=SachkundigerBundesOderLandesRecht,\"X\",\"\")","v":""}," Berechtigter nach Bundes- oder Landesrecht zur Ausstellung von Energieausweisen,"]
[]
[null,null,null,null,{"$f":"IF(Qualifikation=SachkundigerZulassungspflichtigesGewerbe,\"X\",\"\")","v":""}," Person, die für ein zulassungspflichtiges Bau-, Ausbau- oder anlagentechnisches Gewerbe oder für "]
[null,null,null,null,null," das Schornsteinfegerwesen die Voraussetzungen zur Eintragung in die Handwerksrolle erfüllt,"]
[]
[null,null,null,null,{"$f":"IF(Qualifikation=SachkundigerHandwerksmeister,\"X\",\"\")","v":""}," Handwerksmeister der zulassungsfreien Handwerke dieser Bereiche,"]
[]
[null,null,null,null,{"$f":"IF(Qualifikation=SachkundigerOhneMeistertitel,\"X\",\"\")","v":""}," Person, die aufgrund ihrer Ausbildung oder ihres beruflichen Werdegangs berechtigt ist, ein solches "]
[null,null,null,null,null," Handwerk ohne Meistertitel selbständig auszuüben."]
[]
[null,null,null,"Hinweis: Ordnungswidrig handelt, wer in den Nachweisen vorsätzlich oder fahrlässig falsche Angaben macht (§ 23 EWärmeG)."]
[]
[null,null,"Name",null,null,null,null,null,null,null,null,"Vorname",null,null,null,null,"Firma des Sachkundigen"]
[null,null,{"$f":"c_nachname_sachkundiger","v":0},null,null,null,null,null,null,null,{"$f":"c_vorname_Sachkundiger","v":0},null,null,null,null,{"$f":"c_firmenname_sachkundiger","v":0}]
[]
[]
[]
[null,null,"Ort, Datum",null,null,null,null,null,null,null,null,null,null,null,null,null,"Unterschrift des Sachkundigen"]
[]
[]
[]
[]
[]
[]
[]
[]
[]
[]
[]
[]
[]
[]
[]
[]
[]
[null,"Gasförmige Biomasse - Biogenes Flüssiggas "]
[null,"Bestätigung des Brennstofflieferanten nach § 20 EWärmeG "]
[]
[null,"Hinweis: Diese Vorlage dient der Nachweisführung und ist vom Eigentümer bei der unteren Baurechtsbehörde spätestens 18 Monate nach "]
[null,"Inbetriebnahme der neuen Heizanlage vorzulegen. "]
[]
[]
[null,null,null,"Anschrift des Gebäudes (für das der Nachweis geführt wird)"]
[]
[null,null,null,"Straße und Hausnummer",null,null,null,null,null,null,null,null,null,null,null,null,"Postleitzahl",null,null,"Ort"]
[null,null,null,{"$f":"c_strasse_objekt","v":0},null,null,null,null,null,null,null,null,null,null,null,null,{"$f":"c_plz_objekt","v":0},null,null,{"$f":"c_ort_objekt","v":0}]
[]
[]
[]
[null,null,"Nachweis des Brennstofflieferanten"]
[]
[null,null,null,"Hinweis: Bitte zutreffende Angaben ankreuzen und entsprechende Werte eintragen. "]
[]
[null,null,null,null,null,null,null,null,null,null,null,null,null," Abrechnungszeitraum"]
[]
[null,null,null,null," Die im Abrechnungszeitraum insgesamt gelieferte Flüssiggasmenge enthält mindestens 10 % Bioflüssiggas im "]
[null,null,null,null," Sinne des EWärmeG."]
[]
[null,null,null,null," oder"]
[]
[null,null,null,null," Die im Abrechnungszeitraum insgesamt gelieferte Flüssiggasmenge enthält weniger als 10 % BioFlüssiggas im "]
[null,null,null,null," Sinne des EWärmeG, sondern"]
[]
[null,null,null,null,null,null,null,null,null,null,null,null," %"]
[]
[null,null,null,null," und"]
[]
[null,null,null,null,"Das gelieferte Biogene Flüssiggas  entspricht den Anforderungen des § 40 Absatz 4 des Gebäudeenergiegesetzes  "]
[null,null,null,null,"vom 8. August 2020 (BGBl. I S. 1728), das durch Artikel 18a des Gesetzes vom 20. Juli 2022 (BGBl. I S. 1237, 1321) "]
[null,null,null,null,"geändert worden ist, in der jeweils geltenden Fassung."]
[]
[]
[null,null,null,"Hinweis: Ordnungswidrig handelt, wer auf den Nachweisen vorsätzlich oder fahrlässig falsche Angaben macht (§ 23 EWärmeG)."]
[]
[null,null,"Name",null,null,null,null,null,null,null,null,"Vorname",null,null,null,null,"Firma des Brennstofflieferanten"]
[]
[]
[]
[]
[null,null,"Ort, Datum",null,null,null,null,null,null,null,null,null,null,null,null,null,"Unterschrift des Brennstofflieferanten"]

{"sheet":"NTZ","index":21,"n_rows":94,"n_cols":27,"rows_kept":94,"cut":false,"hidden":true,"merged":[[1,1,1,27],[2,1,2,27],[52,22,52,25],[55,1,55,13],[55,14,55,27],[11,3,11,13],[11,14,11,16],[44,26,45,26],[43,10,46,10],[44,22,45,25],[43,20,46,21],[43,11,44,19],[45,11,46,19],[43,6,46,9],[11,17,11,25],[27,12,27,13],[69,3,69,13],[69,14,69,16],[69,17,69,25],[29,3,29,5],[59,1,59,27],[60,1,60,27],[56,1,58,13],[56,14,58,27],[89,2,91,9],[89,10,91,13],[89,14,91,26],[94,2,96,13],[94,14,96,26]]}
[]
[null,"Anschluss an ein Wärmenetz"]
[null,"Nachweis des Eigentümers nach § 20 EWärmeG"]
[]
[null,"Hinweis: Diese Vorlage dient der Nachweisführung und ist der unteren Baurechtsbehörde spätestens 18 Monate nach Inbetriebnahme der neuen"]
[null,"Heizanlage vorzulegen. Die erste Seite ist vom Eigentümer auszufüllen und zu unterschreiben, die Folgeseite vom Wärmenetzbetreiber."]
[]
[]
[null,null,null,"Anschrift des Gebäudes (für das der Nachweis geführt wird)"]
[]
[null,null,null,"Straße und Hausnummer",null,null,null,null,null,null,null,null,null,null,"Postleitzahl",null,null,"Ort"]
[null,null,null,{"$f":"c_strasse_objekt","v":0},null,null,null,null,null,null,null,null,null,null,{"$f":"c_plz_objekt","v":0},null,null,{"$f":"c_ort_objekt","v":0}]
[]
[]
[]
[null,null,"Anschluss an ein Wärmenetz  - Wohngebäude und Nichtwohngebäude"]
[]
[null,null,null,"Hinweis: Bitte zutreffende Angaben ankreuzen und entsprechende Werte eintragen. "]
[]
[null,null,null,"Erfüllungsnachweis nach § 10 Abs. 2 und § 17 Abs. 1 EWärmeG"]
[]
[null,null,null,"Hinweis: Ist das Gebäude an ein Wärmenetz angeschlossen, sind die Anforderungen des EWärmeG "]
[null,null,null,"vollständig erfüllt (Erfüllungsgrad = 100 %). "]
[null,null,null,"Seit der Gesetzesnovelle von Februar 2023 werden keine weiteren Anforderungen an das Wärmenetz gestellt."]
[]
[]
[null,null,null,{"$f":"IF(AnteilWärmeenergiebedarfAusWärmenetz>0,\"X\",\"\")","v":""}," Das Gebäude ist an eine Wärmenetz angeschlossen und deckt daraus "]
[null,null,null,null," den jährlichen Wärmeenergiebedarf zu: ",null,null,null,null,null,null,null,{"$f":"AnteilWärmeenergiebedarfAusWärmenetz","v":0},null," %"]
[]
[null,null,null,{"$f":"Wärmeenergiebedarf","v":0},null,null," kWh jährlicher Wärmeenergiebedarf des Gebäudes (§ 3 Nr. 4 EWärmeG)"]
[]
[null,null,null,"Die vom Wärmenetz verteilte Wärme entspricht den Anforderungen des EWärmeG vollständig"]
[]
[null,null,null,"1.","Das Gebäude ist an ein Wärmenetz angeschlossen, dessen verteilte Wärme die An-"]
[null,null,null,null,"forderungen des EWärmeG vollständig erfüllt und damit der gesamte jährliche Wärme-"]
[null,null,null,null,"energiebedarf des Gebäudes gedeckt wird. Die Anforderungen des EWärmeG sind "]
[null,null,null,null,"damit vollständig erfüllt (Erfüllungsgrad = 100 %).",null,null,null,null,null,null,null,null,null,null,null,null,null,null,null,null,null,{"$f":"IF(AnteilWärmeenergiebedarfAusWärmenetz=100,\"X\",\"\")","v":""}]
[null,null,null,null,"oder"]
[null,null,null,"2.","Das Gebäude ist an ein Wärmenetz angeschlossen, dessen verteilte Wärme die An-"]
[null,null,null,null,"forderungen des EWärmeG vollständig erfüllt und damit einen Anteil des jährlichen Wärme-"]
[null,null,null,null,"energiebedarfs des Gebäudes gedeckt wird. Die Anforderungen des EWärmeG sind "]
[null,null,null,null,"damit anteilig erfüllt (Erfüllungsgrad weniger als 100 %)."]
[]
[null,null,null,null,null,null,"erreichter \nErfüllungsgrad   ",null,null,null,"  = ","vom Wärmenetz bezogene Wärmemenge (kWh)",null,null,null,null,null,null,null,null,"x 100 % ="]
[null,null,null,null,null,null,null,null,null,null,null,null,null,null,null,null,null,null,null,null,null,null,{"$f":"IF(AnteilWärmeenergiebedarfAusWärmenetz<100,ErfüllungsgradWärmenetz*100,\"\")","v":0},null,null,null," %"]
[null,null,null,null,null,null,null,null,null,null,null,"jährlicher Wärmeenergiebedarf (kWh) "]
[]
[]
[]
[]
[null,null,"Erfüllungsgrad (bitte immer angeben)"]
[]
[null,null,"Der Anschluss an das Wärmenetz erfüllt die Anforderungen des EWärmeG zu:",null,null,null,null,null,null,null,null,null,null,null,null,null,null,null,null,null,null,null,{"$f":"IF(AnteilWärmeenergiebedarfAusWärmenetz>0,100,ErfüllungsgradWärmenetz*100)","v":0},null,null,null," %"]
[]
[]
[null,"Ort, Datum",null,null,null,null,null,null,null,null,null,null,null,null,"Unterschrift des Eigentümers"]
[]
[]
[]
[null,"Anschluss an ein Wärmenetz"]
[null,"Bestätigung des Wärmenetzbetreibers nach § 20 EWärmeG "]
[]
[null,"Hinweis: Diese Vorlage dient der Nachweisführung und ist vom Eigentümer bei der unteren Baurechtsbehörde spätestens 18 Monate nach "]
[null,"Inbetriebnahme der neuen Heizanlage vorzulegen. "]
[]
[]
[null,null,null,"Anschrift des Gebäudes"]
[]
[null,null,null,"Straße und Hausnummer",null,null,null,null,null,null,null,null,null,null,"Postleitzahl",null,null,"Ort"]
[null,null,null,{"$f":"c_strasse_objekt","v":0},null,null,null,null,null,null,null,null,null,null,{"$f":"c_plz_objekt","v":0},null,null,{"$f":"c_ort_objekt","v":0}]
[]
[]
[]
[null,null,"Anschluss an ein Wärmenetz - Wohngebäude und Nichtwohngebäude"]
[]
[null,null,null,"Hinweis: Bitte zutreffende Angaben ankreuzen und entsprechende Werte eintragen. "]
[]
[null,null,null,null,{"$f":"IF(AnteilWärmeenergiebedarfAusWärmenetz>0,\"X\",\"\")","v":""}," Das Gebäude ist an unser Wärmenetz angeschlossen und bezieht daraus Wärme."]
[]
[]
[null,null,null,"Erfüllungsgrad der vom Wärmenetz verteilten Wärme"]
[]
[null,null,null,null,{"$f":"IF(AnteilWärmeenergiebedarfAusWärmenetz>0,\"X\",\"\")","v":""}," Damit sind die Anforderungen des EWärmeG an die vom Wärmenetz verteilte Wärme vollständig erfüllt"]
[null,null,null,null,null," (Erfüllungsgrad = 100 %)."]
[]
[]
[null,null,null,"Hinweis: Ordnungswidrig handelt, wer in den Nachweisen vorsätzlich oder fahrlässig falsche Angaben macht (§ 23 EWärmeG)."]
[]
[null,null,"Name",null,null,null,null,null,null,"Vorname",null,null,null,null,"Firma des Wärmenetzbetreibers"]
[null,null,{"$f":"c_nachname_sachkundiger","v":0},null,null,null,null,null,null,null,{"$f":"c_vorname_Sachkundiger","v":0},null,null,null,{"$f":"c_firmenname_sachkundiger","v":0}]
[]
[]
[]
[null,null,"Ort, Datum",null,null,null,null,null,null,null,null,null,null,null,"Unterschrift des Wärmenetzbetreibers"]

{"sheet":"BHKW","index":22,"n_rows":172,"n_cols":29,"rows_kept":172,"cut":false,"hidden":true,"merged":[[20,3,20,5],[1,1,1,29],[2,1,2,29],[11,3,11,15],[11,16,11,18],[11,19,11,27],[30,3,30,5],[46,3,46,5],[46,17,46,18],[57,24,57,27],[60,1,60,15],[60,16,60,29],[105,3,105,5],[61,1,63,15],[61,16,63,29],[69,1,69,29],[70,1,70,29],[79,3,79,15],[79,16,79,18],[79,19,79,27],[88,3,88,5],[90,3,90,5],[103,3,103,5],[103,14,103,16],[103,17,103,18],[107,3,107,5],[109,2,112,5],[109,6,112,6],[109,7,110,20],[109,21,112,21],[110,24,111,27],[111,7,112,20],[120,5,123,9],[120,10,123,10],[120,11,121,20],[120,21,123,23],[121,24,122,27],[110,22,111,23],[121,28,122,28],[122,11,123,20],[125,16,125,17],[132,3,132,5],[132,17,132,18],[172,2,174,15],[172,16,174,28],[142,28,143,28],[143,11,144,20],[148,24,148,27],[167,2,169,10],[167,11,169,15],[167,16,169,28],[141,4,144,8],[141,9,144,10],[141,11,142,20],[141,21,144,23],[142,24,143,27]]}
[]
[null,"Kraft-Wärme-Kopplung"]
[null,"Nachweis des Eigentümers nach § 20 EWärmeG"]
[]
[null,"Hinweis: Diese Vorlage dient der Nachweisführung und ist der unteren Baurechtsbehörde spätestens 18 Monate nach Inbetriebnahme der neuen"]
[null,"Heizanlage vorzulegen. Die erste Seite ist vom Eigentümer auszufüllen und zu unterschreiben, die Folgeseiten vom Sachkundigen."]
[]
[]
[null,null,null,"Anschrift des Gebäudes (für das der Nachweis geführt wird)"]
[]
[null,null,null,"Straße und Hausnummer",null,null,null,null,null,null,null,null,null,null,null,"Postleitzahl",null,null,"Ort"]
[null,null,null,{"$f":"c_strasse_objekt","v":0},null,null,null,null,null,null,null,null,null,null,null,null,{"$f":"c_plz_objekt","v":0},null,null,{"$f":"c_ort_objekt","v":0}]
[]
[]
[]
[null,null,"Kraft-Wärme-Kopplung - Wohngebäude und Nichtwohngebäude"]
[]
[null,null,null,"Hinweis: Bitte zutreffende Angaben ankreuzen und entsprechende Werte eintragen. "]
[null,null,null,"Der Begriff \"BHKW\" wird für das im EWärmeG bezeichnete \"KWK-Gerät\" verwendet."]
[]
[null,null,null,{"$f":"ElektrischeLeistungKWKAnlage","v":0},null,null," kW elektrische Leistung des BHKW"]
[]
[null,null,null,"Erfüllungsnachweis nach § 10 Abs. 1 Nr. 1 und 2 und § 17 Abs. 1 EWärmeG"]
[]
[null,null,"A.","Elektrische Leistung des BHKW bis 20 kW"]
[]
[null,null,null,"Hinweis: Erzeugt das installierte BHKW mindestens 15 kWh elektrische Arbeit pro m2 Wohnfläche bzw. Nettogrundfläche"]
[null,null,null,"und Jahr, sind die Anforderungen des EWärmeG vollständig erfüllt (Erfüllungsgrad = 100 %). Eine anteilige Erfüllung kann "]
[null,null,null,"entsprechend der tatsächlich erzeugten elektrischen Arbeit angerechnet werden (§ 11 und § 18 EWärmeG)."]
[]
[null,null,null,{"$f":"IF(ElektrischeLeistungKWKAnlage<20,LeistungKWKAnlage/Wohnfläche,\"\")","v":{"$error":"#DIV/0!"}},null,null," kWh erzeugte elektrische Arbeit pro m2 Wohnfläche bzw. Nettogrundfläche und Jahr"]
[]
[null,null,null,"1.","Es wird ein BHKW betrieben, mit dem die Anforderungen des EWärmeG vollständig"]
[null,null,null,null,"erfüllt werden (Erfüllungsgrad = 100 %).",null,null,null,null,null,null,null,null,null,null,null,null,null,null,null,null,null,null,null,{"$f":"IF(ElektrischeLeistungKWKAnlage<20,IF(ErfüllungsgradKWK*100=100,\"X\",\"\"),\"\")","v":""}]
[null,null,null,null,"oder "]
[null,null,null,"2.","Es wird ein BHKW betrieben, mit dem die Anforderungen des EWärmeG anteilig"]
[null,null,null,null,"erfüllt werden (Erfüllungsgrad weniger als 100 %).",null,null,null,null,null,null,null,null,null,null,null,null,null,null,null,null,null,null,null,{"$f":"IF(ElektrischeLeistungKWKAnlage<20,IF(ErfüllungsgradKWK*100<100,\"X\",\"\"),\"\")","v":"X"}]
[]
[null,null,"oder"]
[]
[null,null,"B.","Elektrische Leistung des BHKW über 20 kW"]
[]
[null,null,null,"Hinweis: Erzeugt das installierte BHKW mindestens 50 % des jährlichen Wärmeenergiebedarfs, sind die Anforderung des"]
[null,null,null,"EWärmeG vollständig erfüllt (Erfüllungsgrad = 100 %). Eine anteilige Erfüllung kann entsprechend der tatsächlichen Deckung "]
[null,null,null,"des jährlichen Wärmeenergiebedarfs angerechnet werden (§ 11 und § 18 EWärmeG)."]
[]
[null,null,null,{"$f":"IF(ElektrischeLeistungKWKAnlage>20,Wärmeenergiebedarf,\"\")","v":""},null,null," kWh jährlicher Wärmeenergiebedarf",null,null,null,null,null,null,null,null,null,null,{"$f":"IF(ElektrischeLeistungKWKAnlage>20,LeistungKWKAnlage,\"\")","v":""},null," kWh Wärmeerzeugung des BHKW"]
[null,null,null,null,null,null," Gebäudes (§ 3 Nr. 4 EWärmeG)"]
[]
[null,null,null,"1.","Es wird ein BHKW betrieben, mit dem die Anforderungen des EWärmeG vollständig"]
[null,null,null,null,"erfüllt werden (Erfüllungsgrad = 100 %).",null,null,null,null,null,null,null,null,null,null,null,null,null,null,null,null,null,null,null,{"$f":"IF(ElektrischeLeistungKWKAnlage>20,IF(ErfüllungsgradKWK*100=100,\"X\",\"\"),\"\")","v":""}]
[null,null,null,null,"oder "]
[null,null,null,"2.","Es wird ein BHKW betrieben, mit dem die Anforderungen des EWärmeG anteilig"]
[null,null,null,null,"erfüllt werden (Erfüllungsgrad weniger als 100 %).",null,null,null,null,null,null,null,null,null,null,null,null,null,null,null,null,null,null,null,{"$f":"IF(ElektrischeLeistungKWKAnlage>20,IF(ErfüllungsgradKWK*100<100,\"X\",\"\"),\"\")","v":""}]
[]
[null,null,"Erfüllungsgrad (bitte immer angeben, muss mit den Angaben des Sachkundigen übereinstimmen)"]
[]
[null,null,"Das installierte und betriebene BHKW erfüllt die Anforderungen des EWärmeG zu:",null,null,null,null,null,null,null,null,null,null,null,null,null,null,null,null,null,null,null,null,null,{"$f":"ErfüllungsgradKWK*100","v":0},null,null,null," %"]
[]
[]
[null,"Ort, Datum",null,null,null,null,null,null,null,null,null,null,null,null,null,null,"Unterschrift des Eigentümers"]
[]
[]
[]
[]
[]
[]
[]
[]
[null,"Kraft-Wärme-Kopplung"]
[null,"Bestätigung des Sachkundigen nach § 20 EWärmeG"]
[]
[null,"Hinweis: Diese Vorlage dient der Nachweisführung und ist vom Eigentümer bei der unteren Baurechtsbehörde spätestens 18 Monate nach "]
[null,"Inbetriebnahme der neuen Heizanlage vorzulegen. "]
[]
[]
[null,null,null,"Anschrift des Gebäudes (für das der Nachweis geführt wird)"]
[]
[null,null,null,"Straße und Hausnummer",null,null,null,null,null,null,null,null,null,null,null,null,"Postleitzahl",null,null,"Ort"]
[null,null,null,{"$f":"c_strasse_objekt","v":0},null,null,null,null,null,null,null,null,null,null,null,null,{"$f":"c_plz_objekt","v":0},null,null,{"$f":"c_ort_objekt","v":0}]
[]
[]
[]
[null,null,"Kraft-Wärme-Kopplung - Wohngebäude und Nichtwohngebäude"]
[]
[null,null,null,"Hinweis: Bitte zutreffende Angaben ankreuzen und entsprechende Werte eintragen. "]
[null,null,null,"Der Begriff \"BHKW\" wird für das im EWärmeG bezeichnete \"KWK-Gerät\" verwendet."]
[]
[null,null,null,{"$f":"ElektrischeLeistungKWKAnlage","v":0},null,null," kW elektrische Leistung des BHKW"]
[]
[null,null,null,{"$f":"ThermischeLeistungKWKAnlage","v":0},null,null," kW thermische Leistung des BHKW"]
[]
[null,null,null,{"$f":"IF(KWKGerärIstHochEffizient=\"JA\",\"X\",\"\")","v":""}," Das BHKW weist einen Gesamtwirkungsgrad von mindestens 80 % auf und ist hocheffizient im Sinne der "]
[null,null,null,null," Richtlinie 2012/27/EU."]
[]
[null,null,null,"Erfüllungsnachweis nach § 10 Abs. 1 Nr. 1 und 2 und § 17 Abs. 1 EWärmeG"]
[]
[null,null,"A.","Elektrische Leistung des BHKW bis 20 kW"]
[]
[null,null,null,"Hinweis: Erzeugt das installierte BHKW pro Jahr mindestens 15 kWh elektrische Arbeit pro m2 Wohnfläche bzw. Nettogrundfläche,"]
[null,null,null,"sind die Anforderungen des EWärmeG vollständig erfüllt (Erfüllungsgrad = 100 %). Eine anteilige Erfüllung kann  angerechnet "]
[null,null,null,"werden (§ 11 und § 18 EWärmeG). "]
[]
[null,null,null,{"$f":"IF(ElektrischeLeistungKWKAnlage<20,IF(GebäudeArt=GebäudeArtWohngebäude,g_wfl,\"\"),\"\")","v":""},null,null," m2 Wohnfläche des Gebäudes",null,null,null,null,null,null,null,"oder",null,null,{"$f":"IF(ElektrischeLeistungKWKAnlage<20,IF(GebäudeArt=GebäudeArtNichtwohngebäude,g_ngf,\"\"),\"\")","v":""},null," m2 Nettogrundfläche des Gebäudes*"]
[]
[null,null,null,{"$f":"IF(ElektrischeLeistungKWKAnlage<20,LeistungKWKAnlage/ElektrischeLeistungKWKAnlage,\"\")","v":{"$error":"#DIV/0!"}},null,null," prognostizierte jährliche Betriebsstunden (Volllastbetriebsstunden)"]
[]
[null,null,null,{"$f":"IF(ElektrischeLeistungKWKAnlage<20,LeistungKWKAnlage,\"\")","v":0},null,null," kWh erzeugte elektrische Arbeit pro Jahr"]
[]
[null,null,"erzeugte \nelektrische Arbeit \npro m2 und Jahr",null,null,null,"  = ","elektrische Leistung des BHKW (kW) x prognostizierte jährliche Betriebsstunden (h/a)",null,null,null,null,null,null,null,null,null,null,null,null,null,"  = "]
[null,null,null,null,null,null,null,null,null,null,null,null,null,null,null,null,null,null,null,null,null,null,{"$f":"IF(ElektrischeLeistungKWKAnlage<20,LeistungKWKAnlage/Wohnfläche,\"\")","v":{"$error":"#DIV/0!"}},null," kWh/(m2 a)"]
[null,null,null,null,null,null,null,"Wohn- bzw. Nettogrundfläche (m2)"]
[]
[]
[null,null,null,"1.","Das installierte BHKW erzeugt mindestens 15 kWh elektrische Arbeit pro m2 und Jahr."]
[null,null,null,null,"Damit sind die Anforderungen des EWärmeG vollständig erfüllt (Erfüllungsgrad = 100 %).",null,null,null,null,null,null,null,null,null,null,null,null,null,null,null,null,null,null,null,{"$f":"IF(ElektrischeLeistungKWKAnlage<20,IF(ErfüllungsgradKWK*100=100,\"X\",\"\"),\"\")","v":""}]
[null,null,null,null,"oder "]
[null,null,null,"2.","Das installierte BHKW erzeugt weniger als 15 kWh elektrische Arbeit pro m2 und Jahr."]
[null,null,null,null,"Damit sind die Anforderungen des EWärmeG anteilig erfüllt (Erfüllungsgrad weniger als 100 %)."]
[]
[null,null,null,null,null,"erreichter\nErfüllungsgrad",null,null,null,null,"  = "," erzeugte elektrische Arbeit pro m² und Jahr (kWh/(m² a))",null,null,null,null,null,null,null,null,null,"x 100 % ="]
[null,null,null,null,null,null,null,null,null,null,null,null,null,null,null,null,null,null,null,null,null,null,null,null,{"$f":"IF(ElektrischeLeistungKWKAnlage<20,IF(ErfüllungsgradKWK*100<100,ErfüllungsgradKWK*100,\"\"),\"\")","v":0},null,null,null," %"]
[null,null,null,null,null,null,null,null,null,null,null," 15 kWh/(m2 a)"]
[]
[]
[null,null,"oder"]
[]
[null,null,"B.","Elektrische Leistung des BHKW über 20 kW"]
[]
[null,null,null,"Hinweis: Deckt das installierte BHKW mindestens 50 % des jährlichen Wärmeenergiebedarfs, sind die Anforderung des"]
[null,null,null,"EWärmeG vollständig erfüllt (Erfüllungsgrad = 100 %). Eine anteilige Erfüllung kann angerechnet werden (§ 11 und § 18 EWärmeG)."]
[]
[null,null,null,{"$f":"IF(ElektrischeLeistungKWKAnlage>20,Wärmeenergiebedarf,\"\")","v":""},null,null," kWh jährlicher Wärmeenergiebedarf",null,null,null,null,null,null,null,null,null,null,{"$f":"IF(ElektrischeLeistungKWKAnlage>20,LeistungKWKAnlage,\"\")","v":""},null," kWh jährliche Wärmeerzeugung des BHKW"]
[null,null,null,null,null,null," des Gebäudes (§ 3 Nr. 4 EWärmeG)"]
[]
[null,null,null,"1.","Das installierte BHKW deckt mindestens 50 % des jährlichen Wärmeenergiebedarfs. "]
[null,null,null,null,"Damit sind die Anforderungen des EWärmeG vollständig erfüllt (Erfüllungsgrad = 100 %).",null,null,null,null,null,null,null,null,null,null,null,null,null,null,null,null,null,null,null,{"$f":"IF(ElektrischeLeistungKWKAnlage>20,IF(ErfüllungsgradKWK*100=100,\"X\",\"\"),\"\")","v":""}]
[null,null,null,null,"oder "]
[null,null,null,"2.","Das installierte BHKW deckt weniger als 50 % des jährlichen Wärmeenergiebedarfs. "]
[null,null,null,null,"Damit sind die Anforderungen des EWärmeG anteilig erfüllt (Erfüllungsgrad weniger als 100 %)."]
[]
[null,null,null,null,"erreichter\nErfüllungsgrad",null,null,null,null,"  = ",null,"jährliche Wärmeerzeugung des BHKW (kWh)",null,null,null,null,null,null,null,null,null,"x 100 % ="]
[null,null,null,null,null,null,null,null,null,null,null,null,null,null,null,null,null,null,null,null,null,null,null,null,{"$f":"IF(ElektrischeLeistungKWKAnlage>20,IF(ErfüllungsgradKWK*100<100,ErfüllungsgradKWK*100,\"\"),\"\")","v":""},null,null,null," %"]
[null,null,null,null,null,null,null,null,null,null,null,"jährlicher Wärmeenergiebedarf des Gebäudes (kWh) x 0,5"]
[]
[]
[null,null,"Erfüllungsgrad (bitte immer angeben)"]
[]
[null,null,"Das installierte und betriebene BHKW erfüllt die Anforderungen des EWärmeG zu:",null,null,null,null,null,null,null,null,null,null,null,null,null,null,null,null,null,null,null,null,null,{"$f":"ErfüllungsgradKWK*100","v":0},null,null,null," %"]
[null,null,"* Angabe kann bei Plausibilität (nicht eingehender geprüft) vom Eigentümer übernommen werden."]
[]
[]
[null,null,null,"Ich bin Sachkundiger im Sinne von § 3 Nr. 11 EWärmeG als"]
[]
[null,null,null,null,{"$f":"IF(Qualifikation=SachkundigerBundesOderLandesRecht,\"X\",\"\")","v":""}," Berechtigter nach Bundes- oder Landesrecht zur Ausstellung von Energieausweisen,"]
[]
[null,null,null,null,{"$f":"IF(Qualifikation=SachkundigerZulassungspflichtigesGewerbe,\"X\",\"\")","v":""}," Person, die für ein zulassungspflichtiges Bau-, Ausbau- oder anlagentechnisches Gewerbe oder für "]
[null,null,null,null,null," das Schornsteinfegerwesen die Voraussetzungen zur Eintragung in die Handwerksrolle erfüllt,"]
[]
[null,null,null,null,{"$f":"IF(Qualifikation=SachkundigerHandwerksmeister,\"X\",\"\")","v":""}," Handwerksmeister der zulassungsfreien Handwerke dieser Bereiche,"]
[]
[null,null,null,null,{"$f":"IF(Qualifikation=SachkundigerOhneMeistertitel,\"X\",\"\")","v":""}," Person, die aufgrund ihrer Ausbildung oder ihres beruflichen Werdegangs berechtigt ist, ein solches "]
[null,null,null,null,null," Handwerk ohne Meistertitel selbständig auszuüben."]
[]
[null,null,null,"Hinweis: Ordnungswidrig handelt, wer in den Nachweisen vorsätzlich oder fahrlässig falsche Angaben macht (§ 23 EWärmeG)."]
[]
[null,null,"Name",null,null,null,null,null,null,null,null,"Vorname",null,null,null,null,"Firma des Sachkundigen"]
[null,null,{"$f":"c_nachname_sachkundiger","v":0},null,null,null,null,null,null,null,null,{"$f":"c_vorname_Sachkundiger","v":0},null,null,null,null,{"$f":"c_firmenname_sachkundiger","v":0}]
[]
[]
[]
[null,null,"Ort, Datum",null,null,null,null,null,null,null,null,null,null,null,null,null,"Unterschrift des Sachkundigen"]

{"sheet":"PV","index":23,"n_rows":140,"n_cols":27,"rows_kept":140,"cut":false,"hidden":true,"merged":[[25,3,25,5],[25,10,25,13],[25,14,25,15],[111,22,111,25],[1,1,1,27],[2,1,2,27],[11,3,11,13],[11,14,11,16],[11,17,11,25],[38,22,38,25],[41,1,41,13],[41,14,41,27],[42,1,44,13],[42,14,44,27],[93,3,93,5],[93,10,93,13],[93,14,93,15],[27,3,27,5],[27,14,27,15],[69,1,69,27],[70,1,70,27],[79,3,79,13],[79,14,79,16],[79,17,79,25],[95,3,95,5],[95,14,95,15],[104,9,107,11],[104,12,107,12],[104,13,105,18],[135,2,137,15],[135,16,137,26],[105,22,106,25],[105,26,106,26],[106,13,107,18],[130,2,132,10],[130,11,132,15],[130,16,132,26],[104,19,107,21]]}
[]
[null,"Photovoltaik"]
[null,"Nachweis des Eigentümers nach § 20 EWärmeG"]
[]
[null,"Hinweis: Diese Vorlage dient der Nachweisführung und ist der unteren Baurechtsbehörde spätestens 18 Monate nach Inbetriebnahme der neuen"]
[null,"Heizanlage vorzulegen. Die erste Seite ist vom Eigentümer auszufüllen und zu unterschreiben, die Folgeseite vom Sachkundigen."]
[]
[]
[null,null,null,"Anschrift des Gebäudes (für das der Nachweis geführt wird)"]
[]
[null,null,null,"Straße und Hausnummer",null,null,null,null,null,null,null,null,null,null,"Postleitzahl",null,null,"Ort"]
[null,null,null,{"$f":"c_strasse_objekt","v":0},null,null,null,null,null,null,null,null,null,null,{"$f":"c_plz_objekt","v":0},null,null,{"$f":"c_ort_objekt","v":0}]
[]
[]
[]
[null,null,"Photovoltaik - Wohngebäude und Nichtwohngebäude"]
[]
[null,null,null,"Hinweis: Bitte zutreffende Angaben ankreuzen und entsprechende Werte eintragen. "]
[]
[null,null,null,"Erfüllungsnachweis nach § 10 Abs. 3 und § 17 Abs. 1 EWärmeG"]
[]
[null,null,null,"Hinweis: Die zur vollständigen Erfüllung (Erfüllungsgrad = 100 %) des EWärmeG erforderliche Nennleistung errechnet sich durch "]
[null,null,null,"Multiplikation der Wohnfläche bzw. der Nettogrundfläche mit dem Faktor 0,02 kWp pro m2. Eine anteilige Erfüllung kann ange-"]
[null,null,null,"rechnet werden (§ 11 oder § 18 EWärmeG)."]
[]
[null,null,null,{"$f":"IF(GebäudeArt=GebäudeArtWohngebäude,g_wfl,\"\")","v":""},null,null," m2 Wohnfläche",null,null,null,"        oder",null,null,null,{"$f":"IF(GebäudeArt=GebäudeArtNichtwohngebäude,g_ngf,\"\")","v":""},null," m2 Nettogrundfläche"]
[]
[null,null,null,{"$f":"Photovoltaik","v":0},null,null," kWp installierte Nennleistung ",null,null,null,null,null,null,null,{"$f":"IF(g_wfl,g_wfl*0.02,IF(g_ngf,g_ngf*0.02,\"\"))","v":""},null," kWp erforderliche Nennleistung (zur vollständigen"]
[null,null,null,null,null,null,null,null,null,null,null,null,null,null,null,null," Erfüllung notwendige Nennleistung)"]
[]
[null,null,null,"1.","Es wird eine Photovoltaikanlage betrieben, mit der die Anforderungen des "]
[null,null,null,null,"EWärmeG vollständig erfüllt werden (Erfüllungsgrad = 100 %). ",null,null,null,null,null,null,null,null,null,null,null,null,null,null,null,null,null,{"$f":"IF(ErfüllungsgradPhotovoltaik*100=100,\"X\",\"\")","v":""}]
[null,null,null,null,"oder"]
[null,null,null,"2.","Es wird eine Photovoltaikanlage betrieben, mit der die Anforderungen des "]
[null,null,null,null,"EWärmeG anteilig erfüllt werden (Erfüllungsgrad weniger als 100 %).",null,null,null,null,null,null,null,null,null,null,null,null,null,null,null,null,null,{"$f":"IF(ErfüllungsgradPhotovoltaik*100<100,\"X\",\"\")","v":"X"}]
[]
[null,null,"Erfüllungsgrad (bitte immer angeben, muss mit den Angaben des Sachkundigen übereinstimmen)"]
[]
[null,null,"Die installierte und betriebene Photovoltaikanlage erfüllt die Anforderungen des EWärmeG zu:",null,null,null,null,null,null,null,null,null,null,null,null,null,null,null,null,null,null,null,{"$f":"ErfüllungsgradPhotovoltaik*100","v":0},null,null,null," %"]
[]
[]
[null,"Ort, Datum",null,null,null,null,null,null,null,null,null,null,null,null,"Unterschrift des Eigentümers"]
[]
[]
[]
[]
[]
[]
[]
[]
[]
[]
[]
[]
[]
[]
[]
[]
[]
[]
[]
[]
[]
[]
[]
[]
[]
[]
[]
[null,"Photovoltaik"]
[null,"Bestätigung des Sachkundigen nach § 20 EWärmeG"]
[]
[null,"Hinweis: Diese Vorlage dient der Nachweisführung und ist vom Eigentümer bei der unteren Baurechtsbehörde spätestens 18 Monate nach "]
[null,"Inbetriebnahme der neuen Heizanlage vorzulegen. "]
[]
[]
[null,null,null,"Anschrift des Gebäudes (für das der Nachweis geführt wird)"]
[]
[null,null,null,"Straße und Hausnummer",null,null,null,null,null,null,null,null,null,null,"Postleitzahl",null,null,"Ort"]
[null,null,null,{"$f":"c_strasse_objekt","v":0},null,null,null,null,null,null,null,null,null,null,{"$f":"c_plz_objekt","v":0},null,null,{"$f":"c_ort_objekt","v":0}]
[]
[]
[]
[null,null,"Photovoltaik - Wohngebäude und Nichtwohngebäude"]
[]
[null,null,null,"Hinweis: Bitte zutreffende Angaben ankreuzen und entsprechende Werte eintragen. "]
[]
[null,null,null,"Erfüllungsnachweis nach § 10 Abs. 3 und § 17 Abs. 1 EWärmeG"]
[]
[null,null,null,"Hinweis: Die zur vollständigen Erfüllung (Erfüllungsgrad = 100 %) des EWärmeG erforderliche Nennleistung errechnet sich durch "]
[null,null,null,"Multiplikation der Wohnfläche bzw. der Nettogrundfläche mit dem Faktor 0,02 kWp pro m2. Eine anteilige Erfüllung kann ange-"]
[null,null,null,"rechnet werden (§ 11 oder § 18 EWärmeG)."]
[]
[null,null,null,{"$f":"IF(GebäudeArt=GebäudeArtWohngebäude,g_wfl,\"\")","v":""},null,null," m2 Wohnfläche*",null,null,null,"        oder",null,null,null,{"$f":"IF(GebäudeArt=GebäudeArtNichtwohngebäude,g_ngf,\"\")","v":""},null," m2 Nettogrundfläche*"]
[]
[null,null,null,{"$f":"Photovoltaik","v":0},null,null," kWp installierte Nennleistung ",null,null,null,null,null,null,null,{"$f":"IF(g_wfl,g_wfl*0.02,IF(g_ngf,g_ngf*0.02,\"\"))","v":""},null," kWp erforderliche Nennleistung (zur vollständigen"]
[null,null,null,null,null,null,null,null,null,null,null,null,null,null,null,null," Erfüllung notwendige Nennleistung)"]
[]
[null,null,null,"1.","Die installierte Nennleistung entspricht mindestens der erforderlichen Nennleistung."]
[null,null,null,null,"Damit sind die Anforderung des EWärmeG vollständig erfüllt (Erfüllungsgrad = 100 %).",null,null,null,null,null,null,null,null,null,null,null,null,null,null,null,null,null,{"$f":"IF(ErfüllungsgradPhotovoltaik*100=100,\"X\",\"\")","v":""}]
[null,null,null,null,"oder"]
[null,null,null,"2.","Die installierte Nennleistung ist kleiner als die erforderlichen Nennleistung. Damit sind "]
[null,null,null,null,"die Anforderung des EWärmeG anteilig erfüllt (Erfüllungsgrad weniger als 100 %)."]
[]
[null,null,null,null,null,null,null,null,null,"erreichter\n Erfüllungsgrad",null,null,"  = ","installierte Nennleistung (kWp)",null,null,null,null,null,"x 100 % ="]
[null,null,null,null,null,null,null,null,null,null,null,null,null,null,null,null,null,null,null,null,null,null,{"$f":"IF(ErfüllungsgradPhotovoltaik*100<100,ErfüllungsgradPhotovoltaik*100,\"\")","v":0},null,null,null," %"]
[null,null,null,null,null,null,null,null,null,null,null,null,null,"erforderliche Nennleistung (kWp)"]
[]
[]
[null,null,"Erfüllungsgrad (bitte immer angeben)"]
[]
[null,null,"Die installierte und betriebene Photovoltaikanlage erfüllt die Anforderungen des EWärmeG zu:",null,null,null,null,null,null,null,null,null,null,null,null,null,null,null,null,null,null,null,{"$f":"ErfüllungsgradPhotovoltaik*100","v":0},null,null,null," %"]
[]
[]
[]
[null,null,null,"Ich bin Sachkundiger im Sinne von § 3 Nr. 11 EWärmeG als"]
[]
[null,null,null,null,{"$f":"IF(Qualifikation=SachkundigerBundesOderLandesRecht,\"X\",\"\")","v":""}," Berechtigter nach Bundes- oder Landesrecht zur Ausstellung von Energieausweisen,"]
[]
[null,null,null,null,{"$f":"IF(Qualifikation=SachkundigerZulassungspflichtigesGewerbe,\"X\",\"\")","v":""}," Person, die für ein zulassungspflichtiges Bau-, Ausbau- oder anlagentechnisches Gewerbe oder für "]
[null,null,null,null,null," das Schornsteinfegerwesen die Voraussetzungen zur Eintragung in die Handwerksrolle erfüllt,"]
[]
[null,null,null,null,{"$f":"IF(Qualifikation=SachkundigerHandwerksmeister,\"X\",\"\")","v":""}," Handwerksmeister der zulassungsfreien Handwerke dieser Bereiche,"]
[]
[null,null,null,null,{"$f":"IF(Qualifikation=SachkundigerOhneMeistertitel,\"X\",\"\")","v":""}," Person, die aufgrund ihrer Ausbildung oder ihres beruflichen Werdegangs berechtigt ist, ein solches "]
[null,null,null,null,null," Handwerk ohne Meistertitel selbständig auszuüben."]
[]
[null,null,null,"Hinweis: Ordnungswidrig handelt, wer in den Nachweisen vorsätzlich oder fahrlässig falsche Angaben macht (§ 23 EWärmeG)."]
[]
[null,null,"Name",null,null,null,null,null,null,null,null,"Vorname",null,null,null,null,"Firma des Sachkundigen"]
[null,null,{"$f":"c_nachname_sachkundiger","v":0},null,null,null,null,null,null,null,null,{"$f":"c_vorname_Sachkundiger","v":0},null,null,null,null,{"$f":"c_firmenname_sachkundiger","v":0}]
[]
[]
[]
[null,null,"Ort, Datum",null,null,null,null,null,null,null,null,null,null,null,null,null,"Unterschrift des Sachkundigen"]
[]
[]
[]
[]
[null,null,"* Angabe kann bei Plausibilität (nicht eingehender geprüft) vom Eigentümer übernommen werden."]

{"sheet":"WRG","index":24,"n_rows":154,"n_cols":28,"rows_kept":154,"cut":false,"hidden":true,"merged":[[85,23,86,24],[154,2,156,14],[154,15,156,27],[60,17,60,27],[116,27,117,27],[117,11,118,19],[130,23,130,26],[149,2,151,9],[149,10,151,14],[149,15,151,27],[113,3,113,6],[115,6,118,9],[115,10,118,10],[115,11,116,19],[115,20,118,22],[116,23,117,26],[85,21,86,22],[102,3,109,7],[102,8,109,8],[102,9,109,14],[102,15,109,15],[102,20,109,20],[102,16,109,19],[105,21,106,22],[84,10,87,10],[84,11,87,14],[84,15,87,15],[84,16,87,19],[84,20,87,20],[105,23,106,24],[60,3,60,13],[51,1,51,28],[1,1,1,28],[2,1,2,28],[11,3,11,13],[11,14,11,16],[11,17,11,27],[33,23,33,26],[36,1,36,14],[36,15,36,28],[37,1,39,14],[37,15,39,28],[50,1,50,28],[60,14,60,16],[84,3,87,9]]}
[]
[null,"Wärmerückgewinnung aus Abluft"]
[null,"Nachweis des Eigentümers nach § 20 EWärmeG"]
[]
[null,"Hinweis: Diese Vorlage dient der Nachweisführung und ist der unteren Baurechtsbehörde spätestens 18 Monate nach Inbetriebnahme der neuen"]
[null,"Heizanlage vorzulegen. Die erste Seite ist vom Eigentümer auszufüllen und zu unterschreiben, die Folgeseiten vom Sachkundigen."]
[]
[]
[null,null,null,"Anschrift des Gebäudes (für das der Nachweis geführt wird)"]
[]
[null,null,null,"Straße und Hausnummer",null,null,null,null,null,null,null,null,null,null,"Postleitzahl",null,null,"Ort"]
[null,null,null,{"$f":"c_strasse_objekt","v":0},null,null,null,null,null,null,null,null,null,null,{"$f":"c_plz_objekt","v":0},null,null,{"$f":"c_ort_objekt","v":0}]
[]
[]
[]
[null,null,"Wärmerückgewinnung in Lüftungsanlagen - Nichtwohngebäude"]
[]
[null,null,null,"Hinweis: Bitte zutreffende Angaben ankreuzen und entsprechende Werte eintragen. "]
[]
[null,null,null,"Erfüllungsnachweis nach § 17 Abs. 2  EWärmeG"]
[]
[null,null,null,"Hinweis: Beträgt in einer Lüftungsanlage der Anteil der anrechenbar rückgewonnenen Wärmemenge aus dem Abluftstrom "]
[null,null,null,"mindestens 15 %, sind die Anforderungen des EWärmeG vollständig erfüllt (Erfüllungsgrad = 100 %). Eine anteilige Erfüllung kann "]
[null,null,null,"angerechnet werden (§ 18 EWärmeG)."]
[]
[null,null,null,"1.","Es wird eine Wärmerückgewinnungsanlage betrieben, mit der die Anforderungen"]
[null,null,null,null,"des EWärmeG vollständig erfüllt werden (Erfüllungsgrad = 100 %).",null,null,null,null,null,null,null,null,null,null,null,null,null,null,null,null,null,null,{"$f":"IF(ErfüllungsgradRückgewonneWärmemenge*100=100,\"X\",\"\")","v":""}]
[null,null,null,null,"oder"]
[null,null,null,"2.","Es wird eine Wärmerückgewinnungsanlage betrieben, mit der die Anforderungen"]
[null,null,null,null,"des EWärmeG anteilig erfüllt werden (Erfüllungsgrad weniger als 100 %).",null,null,null,null,null,null,null,null,null,null,null,null,null,null,null,null,null,null,{"$f":"IF(ErfüllungsgradRückgewonneWärmemenge*100<100,\"X\",\"\")","v":"X"}]
[]
[null,null,"Erfüllungsgrad (bitte immer angeben, muss mit den Angaben des Sachkundigen übereinstimmen)"]
[]
[null,null,"Die betriebene Wärmerückgewinnungsanlage erfüllt die Anforderungen des EWärmeG zu:",null,null,null,null,null,null,null,null,null,null,null,null,null,null,null,null,null,null,null,null,{"$f":"ErfüllungsgradRückgewonneWärmemenge*100","v":0},null,null,null," %"]
[]
[]
[null,"Ort, Datum",null,null,null,null,null,null,null,null,null,null,null,null,null,"Unterschrift des Eigentümers"]
[]
[]
[]
[]
[]
[]
[]
[]
[]
[]
[]
[]
[]
[null,"Wärmerückgewinnung aus Abluft"]
[null,"Bestätigung des Sachkundigen nach § 20 EWärmeG"]
[]
[null,"Hinweis: Diese Vorlage dient der Nachweisführung und ist vom Eigentümer bei der unteren Baurechtsbehörde spätestens 18 Monate nach "]
[null,"Inbetriebnahme der neuen Heizanlage vorzulegen. "]
[]
[]
[null,null,null,"Anschrift des Gebäudes (für das der Nachweis geführt wird)"]
[]
[null,null,null,"Straße",null,null,null,null,null,null,null,null,null,null,"Postleitzahl",null,null,"Ort"]
[null,null,null,{"$f":"c_strasse_objekt","v":0},null,null,null,null,null,null,null,null,null,null,{"$f":"c_plz_objekt","v":0},null,null,{"$f":"c_ort_objekt","v":0}]
[]
[]
[]
[null,null,"Wärmerückgewinnung in Lüftungsanlagen - Nichtwohngebäude"]
[]
[null,null,null,"Hinweis: Bitte zutreffende Angaben ankreuzen und entsprechende Werte eintragen. "]
[]
[null,null,null,"Erfüllungsnachweis nach § 17 Abs. 2  EWärmeG"]
[null,null,null,"Hinweis: Beträgt in einer Lüftungsanlage der Anteil der anrechenbar rückgewonnenen Wärmemenge aus dem Abluftstrom "]
[null,null,null,"mindestens 15 %, sind die Anforderungen des EWärmeG vollständig erfüllt (Erfüllungsgrad = 100 %). Eine anteilige Erfüllung kann "]
[null,null,null,"angerechnet werden (§ 18 EWärmeG)."]
[]
[null,null,null,{"$f":"IF(WärmerückgewinnungsgradIst70Prozent=\"Ja\",\"X\",\"\")","v":""}," Der Wärmerückgewinnungsgrad der Anlage beträgt mindestens 70 Prozent. "]
[]
[null,null,null,{"$f":"IF(WärmerückgewinnungLeistungszahlIstGrößer10=\"Ja\",\"X\",\"\")","v":""}," Die Leistungszahl, die als Verhältnis der aus der Wärmerückgewinnung stammenden und genutzten Wärme und "]
[null,null,null,null," dem Stromeinsatz für den Betrieb der Wärmerückgewinnungsanlage ermittelt wird, beträgt mindestens 10."]
[]
[null,null,"A.","Anrechenbar rückgewonnene Wärme"]
[]
[null,null,null,"1.","Einzelfallberechnung"]
[]
[null,null,null,"Hinweis: Die anrechenbar rückgewonnene Wärmemenge ist nach anerkannten Regeln der Technik zu ermitteln."]
[]
[null,null,null,"anrechenbar rück-\ngewonnene Wärmemenge",null,null,null,null,null,null,"  = ","rückgewonnene \nWärmemenge (kWh)",null,null,null,"-","3 x Stromaufwand für \nABW-Anlage (kWh)",null,null,null,"="]
[null,null,null,null,null,null,null,null,null,null,null,null,null,null,null,null,null,null,null,null,null,{"$f":"IF(Kalkulation!C276=FALSE,IF(RückgewonneneWärmemenge>0,RückgewonneneWärmemenge,\"\"),\"\")","v":""},null," kWh"]
[]
[]
[]
[null,null,null,"2. Pauschalierter Erfüllungsnachweis "]
[]
[null,null,null,{"$f":"IF(Kalkulation!C276=TRUE,IF(WärmerückgewinnungBelüfteteNettogrundfläche=\"Ja\",\"X\",\"\"),\"\")","v":""}," Die von der Lüftungsanlage mit Wärmerückgewinnung belüftete Nettogrundfläche beträgt maximal 1000 m2."]
[null,null,null,null," und"]
[null,null,null,{"$f":"IF(Kalkulation!C276=TRUE,IF(WärmerückgewinnungLüftungsNennvolumenstrom=\"Ja\",\"X\",\"\"),\"\")","v":""}," Der Lüftungs-Nennvolumenstrom wird mit höchstens neun Kubikmetern pro Stunde und Quadratmeter"]
[null,null,null,null," belüfteter Nettogrundfläche angesetzt."]
[null,null,null,null," und"]
[null,null,null,{"$f":"IF(Kalkulation!C276=TRUE,IF(WärmerückgewinnungMittlererBetriebsvolumenstrom=\"Ja\",\"X\",\"\"),\"\")","v":""}," Der mittlere Betriebsvolumenstrom der Lüftungsanlage während der Heizzeit wird von Anfang Oktober bis "]
[null,null,null,null," Ende April höchstens bis zu folgenden Anteilen des ansetzbaren Lüftungs-Nennvolumenstroms (siehe oben)"]
[null,null,null,null," angesetzt: Für Wohnbereiche (Anteil in einem Nichtwohngebäude): 1,0; für Bürobereiche: 0,37; für Schulen/"]
[null,null,null,null," Klassenzimmer und Kindergärten/Gruppenräume: 0,2; im Übrigen sind maximal die in DIN V 18599-10 für die "]
[null,null,null,null," jeweilige Nutzung angegebenen Betriebszeiten der Lüftungsanlage anzusetzen."]
[]
[null,null,null,"anrechenbar\nrückgewonnene\nWärmemenge",null,null,null,null,"=","mittlerer Betriebsvolumenstrom der Lüftungsanlage (Außenluftstrom der Zuluft) während der Heizzeit von Anfang Oktober bis Ende April",null,null,null,null,null,"x","13 kWh/(a x m3/h)",null,null,null,"="]
[]
[]
[null,null,null,null,null,null,null,null,null,null,null,null,null,null,null,null,null,null,null,null,null,{"$f":"IF(Kalkulation!C276=TRUE,IF(MittlererBetriebstvolumenstrom>0,MittlererBetriebstvolumenstrom*13,\"\"),\"\")","v":""},null," kWh"]
[]
[]
[]
[]
[]
[null,null,"B.","Ermittlung des Erfüllungsgrades aus A. 1. oder A. 2."]
[]
[null,null,null,{"$f":"Wärmeenergiebedarf","v":0},null,null,null," kWh jährlicher Wärmeenergiebedarf des Gebäudes (§ 3 Nr. 4 EWärmeG)"]
[]
[null,null,null,null,null,null,"erreichter \nErfüllungsgrad   ",null,null,null,"  = ","anrechenbar rückgewonnene Wärmemenge (kWh)",null,null,null,null,null,null,null,null,"x 100 % ="]
[null,null,null,null,null,null,null,null,null,null,null,null,null,null,null,null,null,null,null,null,null,null,null,{"$f":"ErfüllungsgradRückgewonneWärmemenge*100","v":0},null,null,null," %"]
[null,null,null,null,null,null,null,null,null,null,null,"jährlicher Wärmeenergiebedarf (kWh) x 0,15"]
[]
[]
[null,null,null,"1.","Die anrechenbar rückgewonnene Wärmemenge deckt mindestens 15 % des "]
[null,null,null,null,"jährlichen Wärmeenergiebedarfs. Die Anforderungen des EWärmeG sind damit "]
[null,null,null,null,"vollständig erfüllt (Erfüllungsgrad = 100 %).",null,null,null,null,null,null,null,null,null,null,null,null,null,null,null,null,null,null,{"$f":"IF(ErfüllungsgradRückgewonneWärmemenge*100=100,\"X\",\"\")","v":""}]
[null,null,null,null,"oder"]
[null,null,null,"2. ","Die anrechenbar rückgewonnene Wärmemenge deckt weniger als 15 % des "]
[null,null,null,null,"jährlichen Wärmeenergiebedarfs. Die Anforderungen des EWärmeG sind damit "]
[null,null,null,null,"anteilig erfüllt (Erfüllungsgrad weniger als 100 %).",null,null,null,null,null,null,null,null,null,null,null,null,null,null,null,null,null,null,{"$f":"IF(ErfüllungsgradRückgewonneWärmemenge*100<100,\"X\",\"\")","v":"X"}]
[]
[null,null,"Erfüllungsgrad (bitte immer angeben)"]
[]
[null,null,"Die betriebene Wärmerückgewinnungsanlage erfüllt die Anforderungen des EWärmeG zu:",null,null,null,null,null,null,null,null,null,null,null,null,null,null,null,null,null,null,null,null,{"$f":"ErfüllungsgradRückgewonneWärmemenge*100","v":0},null,null,null," %"]
[]
[]
[]
[null,null,null,"Ich bin Sachkundiger im Sinne von § 3 Nr. 11 EWärmeG als"]
[]
[null,null,null,null,{"$f":"IF(Qualifikation=SachkundigerBundesOderLandesRecht,\"X\",\"\")","v":""}," Berechtigter nach Bundes- oder Landesrecht zur Ausstellung von Energieausweisen,"]
[]
[null,null,null,null,{"$f":"IF(Qualifikation=SachkundigerZulassungspflichtigesGewerbe,\"X\",\"\")","v":""}," Person, die für ein zulassungspflichtiges Bau-, Ausbau- oder anlagentechnisches Gewerbe oder für "]
[null,null,null,null,null," das Schornsteinfegerwesen die Voraussetzungen zur Eintragung in die Handwerksrolle erfüllt,"]
[]
[null,null,null,null,{"$f":"IF(Qualifikation=SachkundigerHandwerksmeister,\"X\",\"\")","v":""}," Handwerksmeister der zulassungsfreien Handwerke dieser Bereiche,"]
[]
[null,null,null,null,{"$f":"IF(Qualifikation=SachkundigerOhneMeistertitel,\"X\",\"\")","v":""}," Person, die aufgrund ihrer Ausbildung oder ihres beruflichen Werdegangs berechtigt ist, ein solches "]
[null,null,null,null,null," Handwerk ohne Meistertitel selbständig auszuüben."]
[]
[null,null,null,"Hinweis: Ordnungswidrig handelt, wer in den Nachweisen vorsätzlich oder fahrlässig falsche Angaben macht (§ 23 EWärmeG)."]
[]
[null,null,"Name",null,null,null,null,null,null,null,"Vorname",null,null,null,null,"Firma des Sachkundigen"]
[null,null,{"$f":"c_nachname_sachkundiger","v":0},null,null,null,null,null,null,null,{"$f":"c_vorname_Sachkundiger","v":0},null,null,null,null,{"$f":"c_firmenname_sachkundiger","v":0}]
[]
[]
[]
[null,null,"Ort, Datum",null,null,null,null,null,null,null,null,null,null,null,null,"Unterschrift des Sachkundigen"]

{"sheet":"SEN","index":25,"n_rows":159,"n_cols":27,"rows_kept":159,"cut":false,"hidden":true,"merged":[[25,3,25,5],[1,1,1,28],[2,1,2,28],[11,3,11,13],[11,14,11,16],[11,17,11,25],[93,3,93,5],[27,3,27,5],[41,22,41,25],[44,1,44,13],[44,14,44,27],[45,1,47,13],[45,14,47,27],[69,1,69,27],[70,1,70,27],[79,3,79,13],[79,14,79,16],[79,17,79,25],[96,3,96,5],[106,3,117,25],[127,1,130,4],[127,5,130,5],[127,6,128,19],[127,20,130,21],[128,22,129,25],[159,2,161,13],[159,14,161,26],[128,26,129,26],[129,6,130,19],[134,22,134,25],[154,2,156,8],[154,9,156,13],[154,14,156,26]]}
[]
[null,"Senkung des Wärmeenergiebedarfs"]
[null,"Nachweis des Eigentümers nach § 20 EWärmeG"]
[]
[null,"Hinweis: Diese Vorlage dient der Nachweisführung und ist der unteren Baurechtsbehörde spätestens 18 Monate nach Inbetriebnahme der neuen"]
[null,"Heizanlage vorzulegen. Die erste Seite ist vom Eigentümer auszufüllen und zu unterschreiben, die Folgeseiten vom Sachkundigen."]
[]
[]
[null,null,null,"Anschrift des Gebäudes (für das der Nachweis geführt wird)"]
[]
[null,null,null,"Straße und Hausnummer",null,null,null,null,null,null,null,null,null,null,"Postleitzahl",null,null,"Ort"]
[null,null,null,{"$f":"c_strasse_objekt","v":0},null,null,null,null,null,null,null,null,null,null,{"$f":"c_plz_objekt","v":0},null,null,{"$f":"c_ort_objekt","v":0}]
[]
[]
[]
[null,null,"Senkung des Wärmeenergiebedarfs  - Nichtwohngebäude"]
[]
[null,null,null,"Hinweis: Bitte zutreffende Angaben ankreuzen und entsprechende Werte und Angaben eintragen. "]
[]
[null,null,null,"Erfüllungsnachweis nach § 15 Abs. 2 EWärmeG"]
[]
[null,null,null,"Hinweis: Wird der jährliche Wärmeenergiebedarf durch bauliche Maßnahmen um mindestens 15 % gesenkt, sind die Anforderungen"]
[null,null,null,"des EWärmeG vollständig erfüllt (Erfüllungsgrad = 100 %). Eine anteilige Erfüllung kann angerechnet werden (§ 18 EWärmeG). "]
[null,null,null,"Vor der Heizungserneuerung vorgenommene Maßnahmen können nicht berücksichtigt werden."]
[]
[null,null,null,{"$f":"Wärmeenergiebedarf","v":0},null,null," kWh jährlicher Wärmeenergiebedarf des Gebäudes zum Zeitpunkt der Heizungserneuerung"]
[]
[null,null,null,{"$f":"Wärmeenergiebedarf-(Wärmeenergiebedarf*WärmeenergiebedarfSenkung/100)","v":0},null,null," kWh jährlicher Wärmeenergiebedarf des Gebäudes nach Durchführung der Maßnahmen des "]
[null,null,null,null,null,null," baulichen Wärmeschutzes"]
[]
[null,null,null,"1.","Die Maßnahmen des baulichen Wärmeschutzes senken den jährlichen Wärme-"]
[null,null,null,null,"energiebedarf um mindestens 15 %. Damit sind die Anforderungen des EWärmeG "]
[null,null,null,null,"vollständig erfüllt (Erfüllungsgrad = 100 %).",null,null,null,null,null,null,null,null,null,null,null,null,null,null,null,null,null,{"$f":"IF(ErfüllungsgradSenkungWärmeenergiebedarf*100=100,\"X\",\"\")","v":""}]
[null,null,null,null,"oder"]
[null,null,null,"2.","Die Maßnahmen des baulichen Wärmeschutzes senken den jährlichen Wärme-"]
[null,null,null,null,"energiebedarf um weniger als 15 %. Damit sind die Anforderungen des EWärmeG ",null,null,null,null,null,null,null,null,null,null,null,null,null,null,null,null,null,{"$f":"IF(ErfüllungsgradSenkungWärmeenergiebedarf*100<100,\"X\",\"\")","v":"X"}]
[null,null,null,null,"anteilig erfüllt (Erfüllungsgrad weniger als 100 %)."]
[]
[null,null,"Erfüllungsgrad (bitte immer angeben, muss mit den Angaben des Sachkundigen übereinstimmen)"]
[]
[null,null,"Die durch Maßnahmen des baulichen Wärmeschutzes bewirkte Senkung des Wärmeenergie-"]
[null,null,"bedarfs erfüllt die Anforderungen des EWärmeG zu:",null,null,null,null,null,null,null,null,null,null,null,null,null,null,null,null,null,null,null,{"$f":"ErfüllungsgradSenkungWärmeenergiebedarf*100","v":0},null,null,null," %"]
[]
[]
[null,"Ort, Datum",null,null,null,null,null,null,null,null,null,null,null,null,"Unterschrift des Eigentümers"]
[]
[]
[]
[]
[]
[]
[]
[]
[]
[]
[]
[]
[]
[]
[]
[]
[]
[]
[]
[]
[]
[]
[]
[]
[null,"Senkung des Wärmeenergiebedarfs"]
[null,"Bestätigung des Sachkundigen nach § 20 EWärmeG"]
[]
[null,"Hinweis: Diese Vorlage dient der Nachweisführung und ist vom Eigentümer bei der unteren Baurechtsbehörde spätestens 18 Monate nach "]
[null,"Inbetriebnahme der neuen Heizanlage vorzulegen. "]
[]
[]
[null,null,null,"Anschrift des Gebäudes (für das der Nachweis geführt wird)"]
[]
[null,null,null,"Straße und Hausnummer",null,null,null,null,null,null,null,null,null,null,"Postleitzahl",null,null,"Ort"]
[null,null,null,{"$f":"c_strasse_objekt","v":0},null,null,null,null,null,null,null,null,null,null,{"$f":"c_plz_objekt","v":0},null,null,{"$f":"c_ort_objekt","v":0}]
[]
[]
[]
[null,null,"Senkung des Wärmeenergiebedarfs  - Nichtwohngebäude"]
[]
[null,null,null,"Hinweis: Bitte zutreffende Angaben ankreuzen und entsprechende Werte und Angaben eintragen. "]
[]
[null,null,null,"Erfüllungsnachweis nach § 15 Abs. 2 EWärmeG"]
[]
[null,null,null,"Hinweis: Wird der jährliche Wärmeenergiebedarf durch bauliche Maßnahmen um mindestens 15 % gesenkt, sind die Anforderungen"]
[null,null,null,"des EWärmeG vollständig erfüllt (Erfüllungsgrad = 100 %). Eine anteilige Erfüllung kann angerechnet werden (§ 18 EWärmeG). "]
[null,null,null,"Vor der Heizungserneuerung vorgenommene Maßnahmen können nicht berücksichtigt werden."]
[]
[null,null,null,{"$f":"Wärmeenergiebedarf","v":0},null,null," kWh jährlicher Wärmeenergiebedarf des Gebäudes zum Zeitpunkt der Heizungserneuerung"]
[null,null,null,null,null,null," (jährlicher Wärmeenergiebedarf alt)"]
[]
[null,null,null,{"$f":"Wärmeenergiebedarf-(Wärmeenergiebedarf*WärmeenergiebedarfSenkung/100)","v":0},null,null," kWh jährlicher Wärmeenergiebedarf des Gebäudes nach Durchführung der Maßnahmen des "]
[null,null,null,null,null,null," baulichen Wärmeschutzes (jährlicher Wärmeenergiebedarf neu)"]
[]
[null,null,null,"Gebäudetyp und Beschreibung der Maßnahmen"]
[]
[null,null,null,"Hinweis: Bitte beschreiben Sie im folgenden Textfeld die durchgeführten Maßnahmen. Bitte benennen Sie die Flächen, an denen"]
[null,null,null,"Maßnahmen des baulichen Wärmeschutzes durchgeführt wurden und beziffern Sie deren Größe. Schildern Sie bitte weiterhin die "]
[null,null,null,"Qualität der Hüllflächen (U-Werte vor und nach der Maßnahme). Leiten Sie schließlich den Betrag der Senkung des Wärmeenergie-"]
[null,null,null,"bedarfs gegenüber dem Zeitpunkt der Heizungserneuerung her."]
[]
[]
[]
[]
[]
[]
[]
[]
[]
[]
[]
[]
[]
[]
[null,null,null,"1.","Die Maßnahmen des baulichen Wärmeschutzes senken den jährlichen Wärme-"]
[null,null,null,null,"energiebedarf um mindestens 15 %. Damit sind die Anforderungen des EWärmeG "]
[null,null,null,null,"vollständig erfüllt (Erfüllungsgrad = 100 %).",null,null,null,null,null,null,null,null,null,null,null,null,null,null,null,null,null,{"$f":"IF(ErfüllungsgradSenkungWärmeenergiebedarf*100=100,\"X\",\"\")","v":""}]
[null,null,null,null,"oder"]
[null,null,null,"2.","Die Maßnahmen des baulichen Wärmeschutzes senken den jährlichen Wärme-"]
[null,null,null,null,"energiebedarf um weniger als 15 %. Damit sind die Anforderungen des EWärmeG "]
[null,null,null,null,"anteilig erfüllt (Erfüllungsgrad weniger als 100 %).",null,null,null,null,null,null,null,null,null,null,null,null,null,null,null,null,null,{"$f":"IF(ErfüllungsgradSenkungWärmeenergiebedarf*100<100,\"X\",\"\")","v":"X"}]
[]
[null,"erreichter\nErfüllungsgrad",null,null,null,"=","jährlicher Wärmeenergiebedarf alt (kWh) - jährlicher Wärmeenergiebedarf neu (kWh)",null,null,null,null,null,null,null,null,null,null,null,null,null,"x 100 % ="]
[null,null,null,null,null,null,null,null,null,null,null,null,null,null,null,null,null,null,null,null,null,null,{"$f":"IF(ErfüllungsgradSenkungWärmeenergiebedarf*100<100,ErfüllungsgradSenkungWärmeenergiebedarf*100,\"\")","v":0},null,null,null," %"]
[null,null,null,null,null,null,"jährlicher Wärmeenergiebedarf alt (kWh) x 0,15"]
[]
[]
[null,null,"Erfüllungsgrad (bitte immer angeben)"]
[]
[null,null,"Die durch Maßnahmen des baulichen Wärmeschutzes bewirkte Senkung des Wärmeenergie-",null,null,null,null,null,null,null,null,null,null,null,null,null,null,null,null,null,null,null,{"$f":"ErfüllungsgradSenkungWärmeenergiebedarf*100","v":0},null,null,null," %"]
[null,null,"bedarfs erfüllt die Anforderungen des EWärmeG zu:"]
[]
[]
[]
[null,null,null,"Ich bin Sachkundiger im Sinne von § 3 Nr. 11 EWärmeG als"]
[]
[null,null,null,null,{"$f":"IF(Qualifikation=SachkundigerBundesOderLandesRecht,\"X\",\"\")","v":""}," Berechtigter nach Bundes- oder Landesrecht zur Ausstellung von Energieausweisen,"]
[]
[null,null,null,null,{"$f":"IF(Qualifikation=SachkundigerZulassungspflichtigesGewerbe,\"X\",\"\")","v":""}," Person, die für ein zulassungspflichtiges Bau-, Ausbau- oder anlagentechnisches Gewerbe oder für "]
[null,null,null,null,null," das Schornsteinfegerwesen die Voraussetzungen zur Eintragung in die Handwerksrolle erfüllt,"]
[]
[null,null,null,null,{"$f":"IF(Qualifikation=SachkundigerHandwerksmeister,\"X\",\"\")","v":""}," Handwerksmeister der zulassungsfreien Handwerke dieser Bereiche,"]
[]
[null,null,null,null,{"$f":"IF(Qualifikation=SachkundigerOhneMeistertitel,\"X\",\"\")","v":""}," Person, die aufgrund ihrer Ausbildung oder ihres beruflichen Werdegangs berechtigt ist, ein solches "]
[null,null,null,null,null," Handwerk ohne Meistertitel selbständig auszuüben."]
[]
[null,null,null,"Hinweis: Ordnungswidrig handelt, wer in den Nachweisen vorsätzlich oder fahrlässig falsche Angaben macht (§ 23 EWärmeG)."]
[]
[null,null,"Name",null,null,null,null,null,null,"Vorname",null,null,null,null,"Firma des Sachkundigen"]
[null,null,{"$f":"c_nachname_sachkundiger","v":0},null,null,null,null,null,null,{"$f":"c_vorname_Sachkundiger","v":0},null,null,null,null,{"$f":"c_firmenname_sachkundiger","v":0}]
[]
[]
[]
[null,null,"Ort, Datum",null,null,null,null,null,null,null,null,null,null,null,"Unterschrift des Sachkundigen"]

{"sheet":"ABW","index":26,"n_rows":141,"n_cols":28,"rows_kept":141,"cut":false,"hidden":true,"merged":[[141,2,143,14],[141,15,143,27],[100,27,101,27],[101,11,102,19],[106,23,106,26],[136,2,138,9],[136,10,138,14],[136,15,138,27],[86,15,89,18],[86,19,89,19],[87,20,88,21],[87,22,88,23],[99,6,102,9],[99,10,102,10],[99,11,100,19],[99,20,102,22],[100,23,101,26],[86,14,89,14],[80,3,80,6],[82,3,82,6],[86,3,89,8],[86,9,89,9],[86,10,89,13],[78,3,78,6],[36,1,36,14],[36,15,36,28],[37,1,39,14],[37,15,39,28],[50,1,50,28],[51,1,51,28],[74,3,74,16],[76,3,76,16],[33,23,33,26],[60,3,60,13],[60,14,60,16],[60,17,60,26],[1,1,1,28],[2,1,2,28],[11,3,11,13],[11,14,11,16],[11,17,11,26]]}
[]
[null,"Abwärmenutzung"]
[null,"Nachweis des Eigentümers nach § 20 EWärmeG"]
[]
[null,"Hinweis: Diese Vorlage dient der Nachweisführung und ist der unteren Baurechtsbehörde spätestens 18 Monate nach Inbetriebnahme der neuen"]
[null,"Heizanlage vorzulegen. Die erste Seite ist vom Eigentümer auszufüllen und zu unterschreiben, die Folgeseiten vom Sachkundigen."]
[]
[]
[null,null,null,"Anschrift des Gebäudes (für das der Nachweis geführt wird)"]
[]
[null,null,null,"Straße und Hausnummer",null,null,null,null,null,null,null,null,null,null,"Postleitzahl",null,null,"Ort"]
[null,null,null,{"$f":"c_strasse_objekt","v":0},null,null,null,null,null,null,null,null,null,null,{"$f":"c_plz_objekt","v":0},null,null,{"$f":"c_ort_objekt","v":0}]
[]
[]
[]
[null,null,null,"Abwärmenutzung - Nichtwohngebäude"]
[]
[null,null,null,"Hinweis: Bitte zutreffende Angaben ankreuzen und entsprechende Werte eintragen. "]
[]
[null,null,null,"Erfüllungsnachweis nach § 17 Abs. 3 EWärmeG"]
[]
[null,null,null,"Hinweis: Beträgt der Anteil der anrechenbar genutzten Abwärmemenge aus anderen Prozessen als dem Heizprozess selbst "]
[null,null,null,"mindestens 15 % des jährlichen Wärmeenergiebedarfs, sind die Anforderungen des EWärmeG vollständig erfüllt "]
[null,null,null,"(Erfüllungsgrad = 100 %). Eine anteilige Erfüllung kann angerechnet werden (§ 18 EWärmeG)."]
[]
[null,null,null,null,"1.","Es wird eine Abwärmenutzungsanlage betrieben, mit der die Anforderungen des "]
[null,null,null,null,null,"EWärmeG vollständig erfüllt werden (Erfüllungsgrad = 100 %).",null,null,null,null,null,null,null,null,null,null,null,null,null,null,null,null,null,{"$f":"IF(ErfüllungsgradNutzungAbwärme*100=100,\"X\",\"\")","v":""}]
[null,null,null,null,null,"oder"]
[null,null,null,null,"2.","Es wird eine Abwärmenutzungsanlage betrieben, mit der die Anforderungen des "]
[null,null,null,null,null,"EWärmeG anteilig erfüllt werden (Erfüllungsgrad weniger als 100 %).",null,null,null,null,null,null,null,null,null,null,null,null,null,null,null,null,null,{"$f":"IF(ErfüllungsgradNutzungAbwärme*100<100,\"X\",\"\")","v":"X"}]
[]
[null,null,"Erfüllungsgrad (bitte immer angeben, muss mit den Angaben des Sachkundigen übereinstimmen)"]
[]
[null,null,"Die betriebene Abwärmenutzungsanlage erfüllt die Anforderungen des EWärmeG zu:",null,null,null,null,null,null,null,null,null,null,null,null,null,null,null,null,null,null,null,null,{"$f":"ErfüllungsgradNutzungAbwärme*100","v":0},null,null,null," %"]
[]
[]
[null,"Ort, Datum",null,null,null,null,null,null,null,null,null,null,null,null,null,"Unterschrift des Eigentümers"]
[]
[]
[]
[]
[]
[]
[]
[]
[]
[]
[]
[]
[]
[null,"Abwärmenutzung"]
[null,"Bestätigung des Sachkundigen nach § 20 EWärmeG"]
[]
[null,"Hinweis: Diese Vorlage dient der Nachweisführung und ist vom Eigentümer bei der unteren Baurechtsbehörde spätestens 18 Monate nach "]
[null,"Inbetriebnahme der neuen Heizanlage vorzulegen. "]
[]
[]
[null,null,null,"Anschrift des Gebäudes (für das der Nachweis geführt wird)"]
[]
[null,null,null,"Straße",null,null,null,null,null,null,null,null,null,null,null,"Postleitzahl",null,null,"Ort"]
[null,null,null,{"$f":"c_strasse_objekt","v":0},null,null,null,null,null,null,null,null,null,null,{"$f":"c_plz_objekt","v":0},null,null,{"$f":"c_ort_objekt","v":0}]
[]
[]
[]
[null,null,null,"Abwärmenutzung - Nichtwohngebäude"]
[]
[null,null,null,"Hinweis: Bitte zutreffende Angaben ankreuzen und entsprechende Werte eintragen. "]
[]
[null,null,null,"Erfüllungsnachweis nach § 17 Abs. 3 EWärmeG"]
[]
[null,null,null,"Hinweis: Beträgt der Anteil der anrechenbar genutzten Abwärmemenge aus anderen Prozessen als dem Heizprozess selbst "]
[null,null,null,"mindestens 15 % des jährlichen Wärmeenergiebedarfs, sind die Anforderungen des EWärmeG vollständig erfüllt "]
[null,null,null,"(Erfüllungsgrad = 100 %). Eine anteilige Erfüllung kann angerechnet werden (§ 18 EWärmeG)."]
[]
[null,null,null,null,null,null,null,null,null,null,null,null,null,null,null,null,null," Wärmequelle (Woher kommt die Wärme?)"]
[]
[null,null,null,null,null,null,null,null,null,null,null,null,null,null,null,null,null," Wärmesenke (Wofür wird die Wärme genutzt?)"]
[]
[null,null,null,{"$f":"Wärmeenergiebedarf","v":0},null,null,null," kWh jährlicher Wärmeenergiebedarf des Gebäudes (§ 3 Nr. 4 EWärmeG)"]
[]
[null,null,null,{"$f":"StromaufwandAbwärmenutzungsaufwand","v":0},null,null,null," kWh Stromaufwand zum Betrieb der Abwärmenutzungsanlage (ABW-Anlage)"]
[]
[null,null,null,{"$f":"RückgewonneAbwärmemenge","v":0},null,null,null," kWh genutzte Abwärmemenge"]
[]
[null,null,null,"Hinweis: Die anrechenbar genutzte Abwärmemenge ist nach anerkannten Regeln der Technik zu ermitteln."]
[]
[null,null,null,"anrechenbar genutzte\nAbwärmemenge ",null,null,null,null,null,"  = ","genutzte Abwärme-\nmenge (kWh)",null,null,null,"-","3 x Stromaufwand der\nABW-Anlage (kWh)",null,null,null,"  = "]
[null,null,null,null,null,null,null,null,null,null,null,null,null,null,null,null,null,null,null,null,{"$f":"RückgewonneAbwärmemenge -3 * StromaufwandAbwärmenutzungsaufwand","v":0},null," kWh"]
[]
[]
[]
[null,null,null,"1.","Die anrechenbar genutzte Abwärmemenge deckt mindestens 15 % des jährlichen"]
[null,null,null,null,"Wärmeenergiebedarfs. Die Anforderungen des EWärmeG sind damit vollständig"]
[null,null,null,null,"erfüllt (Erfüllungsgrad = 100 %).",null,null,null,null,null,null,null,null,null,null,null,null,null,null,null,null,null,null,{"$f":"IF(ErfüllungsgradNutzungAbwärme*100=100,\"X\",\"\")","v":""}]
[null,null,null,null,"oder"]
[null,null,null,"2. ","Die anrechenbar genutzte Abwärmemenge deckt weniger als 15 % des jährlichen"]
[null,null,null,null,"Wärmeenergiebedarfs. Die Anforderungen des EWärmeG sind damit anteilig "]
[null,null,null,null,"erfüllt (Erfüllungsgrad weniger als 100 %)."]
[]
[null,null,null,null,null,null,"erreichter \nErfüllungsgrad   ",null,null,null,"  = ","anrechenbar genutzte Abwärmemenge (kWh)",null,null,null,null,null,null,null,null,"x 100 % ="]
[null,null,null,null,null,null,null,null,null,null,null,null,null,null,null,null,null,null,null,null,null,null,null,{"$f":"IF(ErfüllungsgradNutzungAbwärme*100<100,ErfüllungsgradNutzungAbwärme*100,\"\")","v":0},null,null,null," %"]
[null,null,null,null,null,null,null,null,null,null,null,"jährlicher Wärmeenergiebedarf (kWh) x 0,15"]
[]
[]
[null,null,"Erfüllungsgrad (bitte immer angeben)"]
[]
[null,null,"Die betriebene Abwärmenutzungsanlage erfüllt die Anforderungen des EWärmeG zu:",null,null,null,null,null,null,null,null,null,null,null,null,null,null,null,null,null,null,null,null,{"$f":"ErfüllungsgradNutzungAbwärme*100","v":0},null,null,null," %"]
[]
[]
[]
[]
[]
[]
[]
[]
[]
[]
[]
[]
[]
[]
[null,null,null,"Ich bin Sachkundiger im Sinne von § 3 Nr. 11 EWärmeG als"]
[]
[null,null,null,null,{"$f":"IF(Qualifikation=SachkundigerBundesOderLandesRecht,\"X\",\"\")","v":""}," Berechtigter nach Bundes- oder Landesrecht zur Ausstellung von Energieausweisen,"]
[]
[null,null,null,null,{"$f":"IF(Qualifikation=SachkundigerZulassungspflichtigesGewerbe,\"X\",\"\")","v":""}," Person, die für ein zulassungspflichtiges Bau-, Ausbau- oder anlagentechnisches Gewerbe oder für "]
[null,null,null,null,null," das Schornsteinfegerwesen die Voraussetzungen zur Eintragung in die Handwerksrolle erfüllt,"]
[]
[null,null,null,null,{"$f":"IF(Qualifikation=SachkundigerHandwerksmeister,\"X\",\"\")","v":""}," Handwerksmeister der zulassungsfreien Handwerke dieser Bereiche,"]
[]
[null,null,null,null,{"$f":"IF(Qualifikation=SachkundigerOhneMeistertitel,\"X\",\"\")","v":""}," Person, die aufgrund ihrer Ausbildung oder ihres beruflichen Werdegangs berechtigt ist, ein solches "]
[null,null,null,null,null," Handwerk ohne Meistertitel selbständig auszuüben."]
[]
[null,null,null,"Hinweis: Ordnungswidrig handelt, wer in den Nachweisen vorsätzlich oder fahrlässig falsche Angaben macht (§ 23 EWärmeG)."]
[]
[null,null,"Name",null,null,null,null,null,null,null,"Vorname",null,null,null,null,"Firma des Sachkundigen"]
[null,null,{"$f":"c_nachname_sachkundiger","v":0},null,null,null,null,null,null,null,{"$f":"c_vorname_Sachkundiger","v":0},null,null,null,null,{"$f":"c_firmenname_sachkundiger","v":0}]
[]
[]
[]
[null,null,"Ort, Datum",null,null,null,null,null,null,null,null,null,null,null,null,"Unterschrift des Sachkundigen"]